Workbook

Sheet Utilitaire (hidden)
B3: Mot de passe: | C3: !1320PACC | D3: Fiche verrouillée: | E3: Oui - diffusion en ligne
B4: Fiche validée: | C4: Oui | D4: Fiche générée
B5: GES attendu: | D5: Est-ce que le pop-up "validation" s'affiche: | E5: Générée
B6: Feuille accueil complètement remplie: | C6: Oui | D6: Exercice de suivi: | E6: 2022-03-31 | F6: Date de l'exercice: | G6: 2022-03-31
B7: Statut action: | C7: =Accueil!D58 -> en cours | F7: Année Courante | G7: 2022-2023
B8: Feuille Utilitaire visible: | C8: Non | D8: Titre des Onglets: | E8: Plan d'action 2013-2020 sur les changements climatiques
B9: Dernière ligne de la zone de défilement de l'onglet détail des projets: | C9: 392
B10: nombre d'indicateurs approuvés: | C10: 3
B11: Secteur: | C11: Plan d'action 2013-2020 sur les changements climatiques
B12: Numéro de séquence de l'action: | C12: 11.05 | D12: Remplir la section Évaluation requis : | E12: =IF(Utilitaire!C7=I21,"Oui",IF(C7=I23,"Oui","Non")) -> Non | F12: Première ligne masquée dans l'onglet Indicateurs : | G12: 164
B13: Première ligne masquée dans l'onglet Description: | C13: 76 | D13: Affiche onglet Évaluation: | E13: Oui | F13: Première ligne masquée dans l'onglet Évaluation: | G13: 51
B15: Listes Déroulantes
B16: Onglet "Détail des projets" | G16: Onglet "Indicateurs" | H16: DRFM COF | I16: Accueil
B17: Région Administrative | C17: Statut | D17: Classification | E17: Type d'émissions | F17: Info GES | G17: Type d'indicateur | H17: Exercice de suivi | I17: Statut de l'action | J17: Programmes | K17: Fiche verrouillée
B18: 99-toutes les régions | C18: COVID-19 - Reporté ou prolongé | D18: SU-Subvention | E18: QC-Québec | F18: Oui | G18: Minimum à atteindre | H18: 2013-2014-1 | I18: non démarrée | J18: Sans objet | K18: Oui - partenaire
B19: 01-Bas-Saint-Laurent | C19: COVID-19 - Suspendu | D19: CF-Contrat fonctionnement | E19: HQ-Hors-Québec | F19: Non | G19: Maximum à ne pas dépasser | H19: 2013-2014-2 | I19: en élaboration | J19: Programme "Faites de l'air!" | K19: Oui - diffusion en ligne
B20: 02-Saguenay- Lac-Saint-Jean | C20: COVID-19 - Annulé | D20: CI-Contrat immobilisation | E20: ND-Non distingué | G20: Binaire | H20: 2014-2015-1 | I20: en cours | J20: Programme Action-Climat Québec | K20: Non - BGFV
B21: 03-Capitale-Nationale | C21: AC-Actif | D21: CP-Contrat service professionnel | H21: 2014-2015-2 | I21: terminée | J21: Programme Chauffez vert
B22: 04-Mauricie | C22: TE-Terminé | D22: CT-Contrat service technique | H22: 2015-2016-1 | I22: en suspens | J22: Programme Climat municipalités - Phase 2
B23: 05-Estrie | C23: AT-En attente | D23: PI-Projet à l'interne | H23: 2015-2016-2 | I23: Retirée du PACC | J23: Programme d’aide gouvernementale à l’amélioration des services de transport en commun (PAGASTC )
B24: 06-Montréal | C24: SU-Suspendu | D24: AU-Autre | G24: Étape | H24: 2016-2017-1 | J24: Programme d’aide gouvernementale au transport collectif des personnes (PAGTCP)
B25: 07-Outaouais | C25: AN-Annulé | G25: Recherche | H25: 2016-2017-2 | J25: Programme d’aide gouvernementale transitoire en matière de transport routier des personnes | K25: Commentaires
B26: 08-Abitibi-Témiscamingue | C26: AB-Abandonné | G26: Étude de cas et caractérisation des impacts des CC | H26: 2017-2018-1 | J26: Programme d'aide à la réduction des émissions de gaz à effet de serre dans le transport routier des marchandises - ÉcoCamionnage | K26: Accueil
B27: 09-Côte-Nord | C27: Projet en lien avec le transport | D27: Horizon temporel Potentiel GES | F27: Catégories | G27: Surveillance et prévention | H27: 2017-2018-2 | J27: Programme d'aide à la réhabilitation des terrains contaminés - ClimatSol-Plus - Volet 1 | K27: Description
B28: 10-Nord-du-Québec | C28: Oui | D28: À la fin du projet (suite au dernier versement) | F28: Agricole | G28: Réalisation | H28: 2018-2019-1 | J28: Programme d'aide à l'amélioration de l'efficacité du transport maritime, aérien et ferroviaire en matière de réduction des émissions de GES (PETMAF) | K28: Détail des projets
B29: 11-Gaspésie-Iles-de-la-Madeleine | C29: Non | D29: Cinq ans après la commercialisation du produit | F29: Aménagement du territoire | G29: Aide à la décision | H29: 2018-2019-2 | I29: Part de financement par le PACC | J29: Programme d'aide au développement du transport collectif (PADTC) | K29: GES
B30: 12-Chaudières-Appalaches | D30: Dix ans après la commercialisation du produit | F30: Bâtiment | G30: Sensibilisation et formation | H30: 2019-2020-1 | I30: Variable | J30: Programme d'aide aux nouvelles mobilités des personnes (NOMO) | K30: Indicateurs
B31: 13-Laval | D31: 2030 | F31: Biodiversité, écosystèmes et ressources naturelles | G31: Cadre législatif | H31: 2019-2020-2 | I31: =10 & " %" -> 10 % | J31: Programme d'aide financière au développement des transports actifs dans les périmètres urbains (TAPU) | K31: Validation
B32: 14-Lanaudière | D32: 2040 | F32: Industriel, commercial et institutionnel | H32: 2020-2021-1 | I32: =20 & " %" -> 20 % | J32: Programme d'aide financière pour la planification de milieux de vie durables | K32: Tout - autres
B33: 15-Laurentides | D33: 2050 | F33: Matières résiduelles | H33: 2020-2021-2 | I33: =30 & " %" -> 30 % | J33: Programme d'aide financière pour le compostage domestique et communautaire (ACDC)
B34: 16-Montérégie | F34: Reddition de comptes et partenariats | H34: 2021-2022-1 | I34: =40 & " %" -> 40 % | J34: Programme d'aide gouvernementale au transport collectif régional (PAGTCR)
B35: 17-Centre-du-Québec | F35: Santé et sécurité publique | G35: Ajustements | H35: 2021-2022-2 | I35: =50 & " %" -> 50 % | J35: Programme d'appui à la lutte contre les changements climatiques en agriculture (PALCCA) | K35: Onglet Évaluation
B36: Québec méridional | F36: Transports | G36: Agriculture | H36: 2022-2023-1 | I36: =60 & " %" -> 60 % | J36: Programme de biomasse forestière résiduelle | K36: Type de document
B37: À l'extérieur du Québec | F37: Autres | G37: Aménagement du territoire | H37: 2022-2023-2 | I37: =70 & " %" -> 70 % | J37: Programme de coopération climatique internationale (PCCI) | K37: Cadre d'évaluation
G38: Bâtiments et infrastructures | H38: 2023-2024-1 | I38: =80 & " %" -> 80 % | J38: Programme de formation continue sur l'utilisation du bois dans la construction | K38: Cadre de suivi d'évaluation préliminaire
G39: Forêts | H39: 2023-2024-2 | I39: =90 & " %" -> 90 % | J39: Programme de récupération et de valorisation des réfrigérateurs et congélateurs domestiques | K39: Rapport d'évaluation
B40: Onglet "Description" | G40: Industriel, commercial et institutionnel | I40: =100 & " %" -> 100 % | J40: Programme de soutien à la promotion de l'électrification des transports | K40: Résultats
B41: Clientèle | C41: État d'avancement | D41: Moyens | E41: Finalité | F41: COVID | G41: Océan, fleuve ou cours d'eau | J41: Programme de soutien à la réalisation de projets de démonstration de taxis électriques
B42: Citoyens | C42: Nouvelle | D42: Encadrement légal (politiques, stratégies, codes, réglementations, etc.) | E42: Adaptation aux effets des changements climatiques | F42: Aucun changement prévu | G42: Politiques et gestion | J42: Programme de soutien à l'intégration de l'adaptation aux changements climatiques à la planification municipale (PIACC) | K42: Type d'évaluation
B43: Entreprises (grandes entreprises) | C43: En cours | D43: Innovation, recherche et développement | E43: Réduction des émissions de gaz à effet de serre | F43: Diminution des coûts prévus | G43: Services à la population | J43: Programme de soutien au déploiement des autobus scolaires électriques au Québec | K43: En cours d'action
B44: Entreprises (petites ou moyennes entreprises) | C44: Complétée | D44: Réalisation (programmes et subventions favorisant l'exécution de solutions établies) | E44: Réduction et adaptation | F44: Augmentation des coûts prévus | G44: Suivi de l'état de l'environnement | J44: Programme de soutien aux essais de fertilisation | K44: Lorsque l'action est terminée
B45: Établissements de recherche | C45: Inactive | D45: Sensibilisation, formation et promotion | E45: Coordination | F45: L'augmentation prévue du coûts des projets rend le budget 2013-2020 insuffisant pour garantir la réalisation de tous les projets entamés | G45: Autres | J45: Programme de soutien aux municipalités dans la mise en place d'infrastructures de gestion durable des eaux de pluie à la source
B46: Ministères et organismes gouvernementaux | C46: Abandonnée | F46: moins d'un mois | J46: Programme de subventions à l’adaptation des taxis et des autocars interurbains pour le transport des personnes se déplaçant en fauteuil roulant
B47: Municipalités et organismes municipaux | F47: de 1 à 6 mois | J47: Programme de traitement des matières organiques par biométhanisation et compostage (PTMOBC) | K47: Recommandation
B48: Organismes à but non lucratif | F48: de 7 à 12 mois | J48: Programme de vitrine technologique pour les bâtiments et les solutions innovantes en bois | K48: Reconduire
F49: plus de 12 mois | J49: Programme d'innovation en construction bois | K49: Ne pas reconduire
F50: Aucun changement | G50: Risques | J50: Programme ÉcoPerformance | K50: Voir commentaire ci-dessous
F51: Retards prévus, mais les engagements seront tous pris avant le 31 décembre 2020 | G51: Biodiversité | J51: Programme Prime-Vert 2013-2018 | K51: Objectifs initiaux
F52: Retards prévus et les engagements ne pourront pas tous être pris avant le 31 décembre 2020 | G52: Économie | J52: Programme Roulez vert | K52: Oui
F53: Les échéanciers pourront être devancés | G53: Environnement | J53: Programme Technoclimat | K53: Partiellement
F54: Des cibles pourraient être atteintes avant les délais prévus | G54: Ressources naturelles | J54: Programme visant à rendre les établissements d'enseignement écoresponsables | K54: Non
F55: Toutes les cibles devraient être atteintes dans les délais prévus | G55: Santé et sécurité publique | J55: Programme visant la réduction des émissions de GES par le développement du transport intermodal (PREGTI)
F56: Toutes les cibles devraient être atteintes avec certains retards | G56: Services à la population | J56: Programme visant la réduction, la récupération et le recyclage des matières organiques du secteur des industries, commerces et institutions (ICI)
F58: Aucune cible ne pourra être atteinte | J58: Autre programme
G61: Effets des changements climatiques
G62: Dégradation d'écosystèmes
G63: Dégradation du pergélisol
G64: Intensification de l'érosion
G65: Exacerbation des aléas naturels
G66: Intensification des îlots de chaleur
G67: Modifications des régimes hydriques, de vagues ou de glaces
G68: Modifications des régimes de précipitations
G69: Propagation de maladies ou d'espèces nuisibles
G70: Qualité de l'air
G71: Tous les effets
G72: Autres
K82: Onglet de la fiche
K83: Accueil
K84: Description
K85: Détail des projets
K86: GES
K87: Indicateurs
K88: Évaluation
K89: Commentaires
K226: 2021-2022
B227: ONGLET INDICATEURS: Liste des statuts de l'action | K227: =IF(K226=$G$7,IF(Accueil!$D$58<>$C$239,Accueil!$D$58,IF(ISBLANK(K228),J230,K228)),K228) -> non démarrée
C228: 2013-2014 | D228: 2014-2015 | E228: 2015-2016 | F228: 2016-2017 | G228: 2017-2018 | H228: 2018-2019 | I228: 2019-2020 | J228: 2020-2021 | K228: non démarrée | L228: 2022-2023 | M228: 2023-2024 | N228: 2024-2025 | O228: 2025-2026 | P228: 2026-2027 | Q228: 2027-2028 | R228: 2026-2029
B229: Valeurs actuelles | C229: =IF(C228=$G$7,IF(Accueil!$D$58<>$C$239,Accueil!$D$58,IF(ISBLANK(C230),B230,C230)),C230) -> non démarrée | D229: =IF(D228=$G$7,IF(Accueil!$D$58<>$C$239,Accueil!$D$58,IF(ISBLANK(D230),C230,D230)),D230) -> non démarrée | E229: =IF(E228=$G$7,IF(Accueil!$D$58<>$C$239,Accueil!$D$58,IF(ISBLANK(E230),D230,E230)),E230) -> non démarrée | F229: =IF(F228=$G$7,IF(Accueil!$D$58<>$C$239,Accueil!$D$58,IF(ISBLANK(F230),E230,F230)),F230) -> non démarrée | G229: =IF(G228=$G$7,IF(Accueil!$D$58<>$C$239,Accueil!$D$58,IF(ISBLANK(G230),F230,G230)),G230) -> non démarrée | H229: =IF(H228=$G$7,IF(Accueil!$D$58<>$C$239,Accueil!$D$58,IF(ISBLANK(H230),G230,H230)),H230) -> non démarrée | I229: =IF(I228=$G$7,IF(Accueil!$D$58<>$C$239,Accueil!$D$58,IF(ISBLANK(I230),H230,I230)),I230) -> non démarrée | J229: =IF(J228=$G$7,IF(Accueil!$D$58<>$C$239,Accueil!$D$58,IF(ISBLANK(J230),I230,J230)),J230) -> non démarrée | L229: =IF(L228=$G$7,IF(Accueil!$D$58<>$C$239,Accueil!$D$58,IF(ISBLANK(L230),K228,L230)),L230) -> en cours | M229: =IF(M228=$G$7,IF(Accueil!$D$58<>$C$239,Accueil!$D$58,IF(ISBLANK(M230),L230,M230)),M230) -> 0 | N229: =IF(N228=$G$7,IF(Accueil!$D$58<>$C$239,Accueil!$D$58,IF(ISBLANK(N230),M230,N230)),N230) -> 0 | O229: =IF(O228=$G$7,IF(Accueil!$D$58<>$C$239,Accueil!$D$58,IF(ISBLANK(O230),N230,O230)),O230) -> 0 | P229: =IF(P228=$G$7,IF(Accueil!$D$58<>$C$239,Accueil!$D$58,IF(ISBLANK(P230),O230,P230)),P230) -> 0 | Q229: =IF(Q228=$G$7,IF(Accueil!$D$58<>$C$239,Accueil!$D$58,IF(ISBLANK(Q230),P230,Q230)),Q230) -> 0 | R229: =IF(R228=$G$7,IF(Accueil!$D$58<>$C$239,Accueil!$D$58,IF(ISBLANK(R230),Q230,R230)),R230) -> 0
B230: Valeurs précédentes | C230: non démarrée | D230: non démarrée | E230: non démarrée | F230: non démarrée | G230: non démarrée | H230: non démarrée | I230: non démarrée | J230: non démarrée
B233: IdStatutAction | C233: codeStatutAction | D233: valeurStatutAction | E233: rangStatut
B234: 1 | C234: =I18 -> non démarrée | D234: 0 | E234: 1
B235: 2 | C235: =I19 -> en élaboration | D235: 0 | E235: 2
B236: 3 | C236: en cours | D236: 0.5 | E236: 3
B237: 4 | C237: terminée | D237: 1 | E237: 4
B238: 5 | C238: en suspens | D238: 0 | E238: 5
B239: 6 | C239: Retirée du PACC | D239: 0 | E239: 6

Sheet Accueil
E2: EXERCICE DE SUIVI DU PLAN D'ACTION 2013-2020 SUR LES CHANGEMENTS CLIMATIQUES
B10: Bienvenue dans votre fiche de suivi du FECC - Gestion des matières résiduelles
B14: Échéance de transmission : | D14: 2022-06-14
B15: Nouveautés pour l’exercice de suivi de mai 2020
B16: RAPPEL :
B17: * Fin du PACC : Les conventions de subventions se rapportant aux engagements saisis à SAGIR sont maintenant signées.
B18: * Fin du PACC : Les projets réalisés à l'interne dans vos organisations doivent se terminer avant le 31 décembre 2022
B19: * Fin du PACC : Vous devez compléter l'onglet Évaluation.
B20: Consignes générales :
B21: →Les informations doivent correspondre à l'avancement de l'action en date du 31 mars 2022.
B22: →Assurez-vous de valider votre fiche (onglet Validation) avant de la transmettre à l’adresse suivante : suivi.climatique@environnement.gouv.qc.ca
B23: →Toute information confidentielle doit être saisie en bleu.
B24: →Conservez la fiche en format xlsm afin de pouvoir profiter des outils conviviaux.
B25: →La plupart des cellules contenant du texte sont limitées à 250 caractères.
B27: →Copier-coller des informations à partir d’un document Word verrouille les cellules concernées. Pour pouvoir à nouveau écrire et modifier le format de ces cellules, fermez et ouvrez à nouveau la fiche.
B29: →Besoin d’assistance? Écrivez-nous à l’adresse suivante en précisant votre question et vos coordonnées : suivi.climatique@environnement.gouv.qc.ca
K32: suivi.climatique@environnement.gouv.qc.ca
B50: Veuillez vérifier, corriger et compléter les informations ci-dessous :
B52: Priorité : | D52: 11 | E52: Favoriser la réduction de GES reliés aux opérations de l'administration publique
B53: Action : | D53: 11.5 | E53: Investissements en infrastructures écoresponsables
B54: Sous-action : | D54: 11.5
B55: Libellé usuel : | D55: 11.5 | E55: Investissements en infrastructures écoresponsables
B56: Programme : | D56: Programme visant à rendre les établissements d'enseignement écoresponsables
B57: Nom du programme :
B58: Statut de l’action : | D58: en cours
B59: Raison du statut de l’action :
B63: Informations en date du : | D63: =Utilitaire!G6 -> 2022-03-31
B65: Ministère porteur : | D65: MEQ | I65: Direction responsable : | K65: Direction de l'expertise et du développement des inrastructures scolaires
B66: Partenaires : | D66: S.O. | I66: Part de financement par le FECC : | K66: 1
B67: Budget 2013-2020 (M$) : | D67: 90 | I67: Autres sources de financement : | K67: S. O.
B68: Date de lancement de l’action : | D68: 2018-04-27 | I68: Date de fin de l’action : | K68: 2025-12-31
B69: Section réservée à l’usage exclusif du BECC (lignes 70 à 73 non publiées)
B70: Chargé de projet : | D70: Nicolas Faguy, ing | I70: Tél. : | K70: 418 644-2525
B71: Responsable ministériel : | D71: Martin Bérubé, ing | I71: Tél. : | K71: 418 644-2525, poste 3818
B72: Personne ressource pour le BECC : | D72: Nicolas Faguy, ing | I72: Tél. : | K72: 418 644-2525
B73: Estimation des sommes résiduelles au 31 décembre 2020 ($) : | D73: 0 | I73: Précisions sur le montant des sommes résiduelles : | K73: s
B74: Téléphone pour informations : | D74: 418 644-2525
B75: Référence Web : | D75: S. O.
B85: Ministère de l'Éducation

Sheet Description
B2: =Utilitaire!E8 -> Plan d'action 2013-2020 sur les changements climatiques
B3: ="Action " & Accueil!D58 -> Action en cours
B4: =Accueil!D55 -> 11.5 | C4: =Accueil!E55 -> Investissements en infrastructures écoresponsables
B5: Ministère porteur : | D5: =Accueil!$D$65 -> MEQ
B6: Description
B15: Évaluation des effets de la COVID-19 sur la mise en œuvre de l'action
B16: Résultats attendus :
B17: Échéancier :
B18: Sommes engagées (projets en cours) :
B19: Autres :
B41: Informations en date du : | F41: 2022-03-31
B42: Informations générales
B43: Description de l'action: | C43: Mettre en œuvre le Plan d'action 2013-2020 sur les changements climatiques (PACC 2013-2020) pour soutenir les initiatives visant la réduction ou l'évitement de GES dans les bâtiments des centres de services scolaires (CSS) et les commissions scolaires (CS) du Québec. Le programme vise à apporter une aide financière aux projets d'implantation d'un ou de plusieurs moyens ciblés d'économie de consommation de combustibles fossiles dans une perspective de réduction ou d'évitement global des émissions de GES.
B44: Objectif de l'action: | C44: À terme, l'objectif étant d'atteindre une réduction ou un évitement total de 22 754 tonnes de CO2 équivalent par année. Un exemple de projet : Travaux pour remplacer des chaudières fonctionnant au mazout ou au gaz naturel par des systèmes fonctionnant à l'énergie renouvelable (géothermie, aérothermie, chaudières électriques, etc.); ou alors de réduire le temps d'utilisation de chaudières utilisant des énergies fossiles.
B45: Bénéficiaires : | C45: Centres de Services scolaires et Commissions scolaires du Québec
C46: Autres (précisez) :
B47: Critères d'admissibilité : | C47: Les projets d'implantation d'un ou de plusieurs moyens ciblés d'économie de combustibles fossiles dans une perspective de réduction ou d'évitement global des émissions de GES sont admissibles, en autant qu'ils respectent les modalités d'application des mesures d'exemplarité de l'État du PACC 2013-2020 contenues dans le document publié par le ministère de l'Énergie et des Ressources naturelles. Les centres de services scolaires ou les commissions scolaires ont jusqu'à trois ans après la signature de l'entente pour faire la preuve que la cible prévue a été atteinte.
B48: Processus de suivi de l'action : | C48: Pour recevoir la confirmation de l'allocation définitive, la CS ou le CSS présente une demande de reddition de compte au MÉQ qui doit contenir les éléments suivants : a. les sections « RÉELS » du formulaire complétées et envoyées par courriel au MÉQ; b. les onglets « Instructions » et « Comparaison » du formulaire imprimées, complétées et signées; c. le rapport de conciliation signé par un ingénieur membre de l'OIQ présentant et décrivant l'ensemble des activités réalisées; d. une déclaration de réduction d'émissions ou d'évitement de GES validée et vérifiée par une tierce partie, ou par un ministère ou organisme qui en détient les compétences, conformément aux spécifications et aux lignes directrices de la partie 3 de la norme ISO 14064. Deux versements sont faits; un premier (50 %) lors de la confirmation de la fin des travaux (étape C décrite ci-haut) et le dernier lors de l'obtention du rapport de déclaration des réductions de GES (étape D décrite ci-haut).
B49: Résultats et co-bénéfices attendus : | C49: Réduction des émissions de GES des bâtiments du réseau des centres de services scolaires et des commissions scolaires et l'amélioration de leur consommation énergétique.
B50: Résultats et co-bénéfices obtenus dans la dernière année : | C50: Dans la dernière année, considérant l'année budgétaire 2021-2022 (1er avril 2021 au 31 mars 2022), les travaux de 25 projets ont été finalisés. Les réductions annuelles prévues pour ces projets est de 4,3 kT de CO2eq annuellement.
B51: Résultats et co-bénéfices obtenus depuis le lancement de l'action : | C51: Depuis son lancement le 27 avril 2018, l'action a permis d'autoriser la réalisation de 353 projets, pour un total de plus de 86,24M$. Ces projets touchent 516 bâtiments répartis dans plus de 127 municipalités.
B53: Classification
B54: Finalité : | C54: Réduction des émissions de gaz à effet de serre | H54: Moyen : | J54: Réalisation (programmes et subventions favorisant l'exécution de solutions établies)
B62: Mise en œuvre
B63: Étapes (depuis le début de l'action) | J63: Échéancier | M63: État d'avancement
A64: 1 | B64: Signature de l'Entente administrative entre le MEES et MELCC | J64: 2016-12-21 | M64: Complétée
A65: 2 | B65: Élaboration du cadre normatif de la mesure Rendre les établissements scolaires écoresponsables | J65: 2019-02-01 | M65: Complétée
A66: 3 | B66: Approbation du cadre normatif de la mesure Rendre les établissements scolaires écoresponsables | J66: 2018-04-10 | M66: Complétée
A67: 4 | B67: Appel à projets | J67: 2018-04-27 | M67: Complétée
A68: 5 | B68: Réception des demandes | J68: 2021-02-28 | M68: Complétée
A69: 6 | B69: Traitement des demandes | J69: 2021-03-31 | M69: Complétée
B70: Réddition de comptes (en continue) | J70: 2025-10-31 | M70: En cours
A71: 8 | B71: Révision du cadre normatif de la mesure Rendre les établissements scolaires écoresponsables | J71: 2020-12-01 | M71: Abandonnée
A72: 9
B190: Ajouter une ligne
B194: Plans, stratégies ou politiques incluant la mise en œuvre de cette action
B195: Abréviation | D195: Nom complet | N195: Numéro de mesure
B196: PACC 2013-2020 | D196: Plan d'action 2013 - 2020 sur les changements climatiques | N196: 11.5

Sheet Détail des projets
B2: =Utilitaire!E8 -> Plan d'action 2013-2020 sur les changements climatiques
B3: ="Action " & Accueil!D58 -> Action en cours
B4: =Accueil!D55 -> 11.5 | C4: =Accueil!E55 -> Investissements en infrastructures écoresponsables
B5: Ministère porteur : | C5: =Accueil!$D$65 -> MEQ
B6: Détails et prévisions des dépenses par projet
D19: Informations en date du : | G19: 2022-03-31
B22: DÉTAILS DES PROJETS AUTORISÉS | O22: MONTANTS PROVENANT DU FECC ($) | AA22: =MONTH(#REF!) -> 
A23: No | B23: Nom du projet | C23: Nom du requérant ou du bénéficiaire | D23: Volet ou thématique | E23: Catégorie | F23: Nombre de projets | G23: Région administrative | H23: Municipalité | I23: Statut | J23: Classification du projet | K23: Montant engagé ($) | L23: Date de l'engagement | M23: Date du dernier versement | N23: Budget total du projet ($) | O23: 2013-2014 | P23: 2014-2015 | Q23: 2015-2016 | R23: 2016-2017 | S23: 2017-2018 | T23: 2018-2019 | U23: 2019-2020 | V23: 2020-2021 | W23: 2021-2022 | X23: 2022-2023 | Y23: 2023-2024 | Z23: 2024-2025 | AA23: MONTANT DES DÉPENSES RÉELLES ($) | AB23: TOTAL DES DÉPENSES RÉELLES ET PRÉVUES ($)
K24: (convention signée, contrat, lettre de confirmation du ministre ou de son représentant ou lettre d'octroi) | O24: Réel | P24: Réel | Q24: Réel | R24: Réel | S24: Réel | T24: Réel | U24: Réel | V24: Réel | W24: Réel | X24: Prévu | Y24: Prévu | Z24: Prévu
A25: 1 | B25: 50643-002 - Modernisation du réseau de chauffage au mazout de l'école secondaire Marie-Rivier de Drummondville par de l'aérothermie et des chaudières électriques | C25: Commission scolaire des Chênes | D25: Potentiel de réduction : 464 t. CO2 | E25: Bâtiment | F25: 1 | G25: 17-Centre-du-Québec | H25: Drummondville | I25: AC-Actif | J25: SU-Subvention | K25: 1026068 | L25: 2018-05-23 | M25: 2023-12-31 | N25: 1494747 | O25: 0 | P25: 0 | Q25: 0 | R25: 0 | S25: 0 | T25: 0 | W25: 1026068 | X25: 0 | Y25: 0 | Z25: 0 | AA25: =SUM(O25:W25) -> 1026068 | AB25: =SUM(O25:Z25) -> 1026068
A26: 2 | B26: 50643-003 - Remplacement complet du système de chauffage au mazout par de la géothermie et ajout d'un système de ventilation à l'école St-Thomas-d'Aquin | C26: Commission scolaire de Saint-Hyacinthe | D26: Potentiel de réduction : 13 t. CO2 | E26: Bâtiment | F26: 1 | G26: 16-Montérégie | H26: Saint-Hyacinthe | I26: AC-Actif | J26: SU-Subvention | K26: 33714 | L26: 2018-05-23 | M26: 2023-12-31 | N26: 197828 | O26: 0 | P26: 0 | Q26: 0 | R26: 0 | S26: 0 | T26: 0 | W26: 33714 | X26: 0 | Y26: 0 | Z26: 0 | AA26: =SUM(O26:W26) -> 33714 | AB26: =SUM(O26:Z26) -> 33714
A27: 3 | B27: 50643-001 - Amélioration écoénergétique pour 4 bâtiments : Récupération de chaleur, Optimisation des réseaux de chauffage et de ventilation, Modernisation des contrôles centralisés et recommissioning | C27: Commission scolaire de l'Or-et-des-Bois | D27: Potentiel de réduction : 705 t. CO2 | E27: Bâtiment | F27: 4 | G27: 08-Abitibi-Témiscamingue | H27: Val-d'Or | I27: AC-Actif | J27: SU-Subvention | K27: 1569979 | L27: 2018-05-28 | M27: 2023-12-31 | N27: 2898594 | O27: 0 | P27: 0 | Q27: 0 | R27: 0 | S27: 0 | T27: 0 | W27: 1569979 | Y27: 0 | Z27: 0 | AA27: =SUM(O27:W27) -> 1569979 | AB27: =SUM(O27:Z27) -> 1569979
A28: 4 | B28: 50643-004 - Projet de réduction de GES dans 3 écoles : Remplacement de chaudières au mazout par des chaudières électriques | C28: Commission scolaire de la Capitale | D28: Potentiel de réduction : 174 t. CO2 | E28: Bâtiment | F28: 3 | G28: 03-Capitale-Nationale | H28: Québec | I28: AC-Actif | J28: SU-Subvention | K28: 385839 | L28: 2018-06-15 | M28: 2023-12-31 | N28: 826641 | O28: 0 | P28: 0 | Q28: 0 | R28: 0 | S28: 0 | W28: 370958 | X28: 14881 | Y28: 0 | Z28: 0 | AA28: =SUM(O28:W28) -> 370958 | AB28: =SUM(O28:Z28) -> 385839
A29: 5 | B29: 50643-005 - Réduction de GES à l'école Larocque : Remplacement de la chaudière au gaz naturel par de la géothermie | C29: Commission scolaire de Saint-Hyacinthe | D29: Potentiel de réduction : 42 t. CO2 | E29: Bâtiment | F29: 1 | G29: 16-Montérégie | H29: Saint-Hyacinthe | I29: AC-Actif | J29: SU-Subvention | K29: 98280 | L29: 2018-06-15 | M29: 2023-12-31 | N29: 448502 | O29: 0 | P29: 0 | Q29: 0 | R29: 0 | S29: 0 | T29: 0 | W29: 98280 | X29: 0 | Y29: 0 | Z29: 0 | AA29: 98280 | AB29: 98280
A30: 6 | B30: 50643-007 - Remplacement complet du système de chauffage au mazout par de la géothermie et ajout d'un système de ventilation à l'école aux Quatre-Vents - Immeuble St-Bernard | C30: Commission scolaire de Saint-Hyacinthe | D30: Potentiel de réduction : 18 t. CO2 | E30: Bâtiment | F30: 1 | G30: 16-Montérégie | H30: Saint-Hyacinthe | I30: AC-Actif | J30: SU-Subvention | K30: 44820 | L30: 2018-07-17 | M30: 2023-12-31 | N30: 142565 | O30: 0 | P30: 0 | Q30: 0 | R30: 0 | S30: 0 | T30: 0 | W30: 44820 | X30: 0 | Y30: 0 | Z30: 0 | AA30: 44820 | AB30: 44820
A31: 7 | B31: 50643-011 - Réduction de GES à l'école René-Saint-Pierre : Remplacer les chaudières au gaz naturel par de l'aérothermie. | C31: Commission scolaire de Saint-Hyacinthe | D31: Potentiel de réduction : 133 t. CO2 | E31: Bâtiment | F31: 1 | G31: 16-Montérégie | H31: Saint-Hyacinthe | I31: AC-Actif | J31: SU-Subvention | K31: 297160 | L31: 2018-07-17 | M31: 2023-12-31 | N31: 551663 | O31: 0 | P31: 0 | Q31: 0 | R31: 0 | S31: 0 | T31: 0 | W31: 0 | X31: 0 | Y31: 148580 | Z31: 148580 | AA31: 0 | AB31: 297160
A32: 8 | B32: 50643-006 - Réduction de GES à l'école Samuel-Casavant : Remplacer les chaudières au gaz naturel par de la géothermie | C32: Commission scolaire de Saint-Hyacinthe | D32: Potentiel de réduction : 118 t. CO2 | E32: Bâtiment | F32: 1 | G32: 16-Montérégie | H32: Saint-Hyacinthe | I32: AC-Actif | J32: SU-Subvention | K32: 263720 | L32: 2018-08-08 | M32: 2023-12-31 | N32: 552428 | O32: 0 | P32: 0 | Q32: 0 | R32: 0 | S32: 0 | T32: 0 | W32: 263720 | X32: 0 | Y32: 0 | Z32: 0 | AA32: 263720 | AB32: 263720
A33: 9 | B33: 50643-008 - Dimunition des émissions de GES à l'école l'Escouade 2 : Remplacer la chaudière au mazout par une chaudière électrique. | C33: Commission scolaire des Premières Seigneuries | D33: Potentiel de réduction : 20 t. CO2 | E33: Bâtiment | F33: 1 | G33: 03-Capitale-Nationale | H33: Québec | I33: AC-Actif | J33: SU-Subvention | K33: 49440 | L33: 2018-12-21 | M33: 2023-12-31 | N33: 595992 | O33: 0 | P33: 0 | Q33: 0 | R33: 0 | S33: 0 | T33: 0 | W33: 49440 | X33: 0 | Y33: 0 | Z33: 0 | AA33: 49440 | AB33: 49440
A34: 10 | B34: 50643-009 - Remplacement du système de chauffage au mazout du Centre administratif par de la géothermie | C34: Commission scolaire des Premières Seigneuries | D34: Potentiel de réduction : 46 t. CO2 | E34: Bâtiment | F34: 1 | G34: 03-Capitale-Nationale | H34: Québec | I34: AC-Actif | J34: SU-Subvention | K34: 105700 | L34: 2018-12-21 | M34: 2023-12-31 | N34: 530159 | O34: 0 | P34: 0 | Q34: 0 | R34: 0 | S34: 0 | T34: 0 | W34: 105700 | X34: 0 | Y34: 0 | Z34: 0 | AA34: 105700 | AB34: 105700
A35: 11 | B35: 50643-010 - Réduction d'émissions de GES à l'école le Boisé 1 : Remplcer des chaudières au mazout par de la géothermie | C35: Commission scolaire des Premières Seigneuries | D35: Potentiel de réduction : 49 t. CO2 | E35: Bâtiment | F35: 1 | G35: 03-Capitale-Nationale | H35: Québec | I35: AC-Actif | J35: SU-Subvention | K35: 112580 | L35: 2018-12-21 | M35: 2023-12-31 | N35: 547836 | O35: 0 | P35: 0 | Q35: 0 | R35: 0 | S35: 0 | T35: 0 | W35: 112580 | X35: 0 | Y35: 0 | Z35: 0 | AA35: 112580 | AB35: 112580
A36: 12 | B36: 50643-012 - Agrandissement du Centre-Ferland : Mise en œuvre de mesures pour augmenter l'évitement d'émissions de GES | C36: Commission scolaire de la Pointe-de-l'Île | D36: Potentiel de réduction : 15,55 t. CO2 | E36: Bâtiment | F36: 1 | G36: 06-Montréal | H36: Montréal | I36: AC-Actif | J36: SU-Subvention | K36: 34210 | L36: 2018-12-21 | M36: 2023-12-31 | O36: 0 | P36: 0 | Q36: 0 | R36: 0 | S36: 0 | T36: 0 | W36: 34210 | X36: 0 | Y36: 0 | Z36: 0 | AA36: 34210 | AB36: 34210
A37: 13 | B37: 50643-13 - Agrandissement école Sainte-Colette : Mise en œuvre de mesures pour augmenter l'évitement d'émissions de GES | C37: Commission scolaire de la Pointe-de-l'Île | D37: Potentiel de réduction : 16,11 t. CO2 | E37: Bâtiment | F37: 1 | G37: 06-Montréal | H37: Montréal | I37: AC-Actif | J37: SU-Subvention | K37: 35442 | L37: 2018-12-21 | M37: 2023-12-31 | O37: 0 | P37: 0 | Q37: 0 | R37: 0 | S37: 0 | T37: 0 | W37: 35442 | X37: 0 | Z37: 0 | AA37: 35442 | AB37: 35442
A38: 14 | B38: 50643-014 - Agrandissement école Montmartre : Mise en œuvre de mesures pour augmenter l'évitement d'émissions de GES | C38: Commission scolaire de la Pointe-de-l'Île | D38: Potentiel de réduction : 11,32 t. CO2 | E38: Bâtiment | F38: 1 | G38: 06-Montréal | H38: Montréal | I38: AC-Actif | J38: SU-Subvention | K38: 24904 | L38: 2018-12-21 | M38: 2023-12-31 | O38: 0 | P38: 0 | Q38: 0 | R38: 0 | S38: 0 | T38: 0 | W38: 24904 | X38: 0 | Y38: 0 | Z38: 0 | AA38: 24904 | AB38: 24904
A39: 15 | B39: 50643-015 - Agrandissement école Sainte-Marguerite-Bourgeoys : Mise en œuvre de mesures pour augmenter l'évitement d'émissions de GES | C39: Commission scolaire de la Pointe-de-l'Île | D39: Potentiel de réduction : 17,45 t. CO2 | E39: Bâtiment | F39: 1 | G39: 06-Montréal | H39: Montréal | I39: AC-Actif | J39: SU-Subvention | K39: 38390 | L39: 2018-12-21 | M39: 2023-12-31 | O39: 0 | P39: 0 | Q39: 0 | R39: 0 | S39: 0 | T39: 0 | W39: 38390 | X39: 0 | Y39: 0 | Z39: 0 | AA39: 38390 | AB39: 38390
A40: 16 | B40: 50643-016 - Projet de réduction de GES dans 3 écoles : Remplacement de chaudières au mazout par des chaudières électriques et amélioration de l'enveloppe des bâtiments. | C40: Commission scolaire Harricana | D40: Potentiel de réduction : 109 t. CO2 | E40: Bâtiment | F40: 3 | G40: 08-Abitibi-Témiscamingue | H40: Amos | I40: AC-Actif | J40: SU-Subvention | K40: 250442 | L40: 2018-12-21 | M40: 2023-12-31 | N40: 434907 | O40: 0 | P40: 0 | Q40: 0 | R40: 0 | S40: 0 | T40: 0 | W40: 250442 | X40: 0 | Y40: 0 | Z40: 0 | AA40: 250442 | AB40: 250442
A41: 17 | B41: 50643-017 - Projet de remplacement de 3 chaudières au mazout par des chaudières électriques et des accumulateurs thermiques dans 3 écoles | C41: Commission scolaires des Affluents | D41: Potentiel de réduction :205,5 t. CO2 | E41: Bâtiment | F41: 3 | G41: 14-Lanaudière | H41: Repentigny | I41: AC-Actif | J41: SU-Subvention | K41: 467100 | L41: 2019-01-18 | M41: 2023-12-31 | N41: 655558 | W41: 467100 | Y41: 0 | Z41: 0 | AA41: 467100 | AB41: 467100
A42: 18 | B42: 50643-020 - Projet de réduction de la consommation énergétique et des émissions de GES à l'école St-Félix-de-Kingsey | C42: Commission scolaire des Chênes | D42: Potentiel de réduction : 50,0 t. CO2 | E42: Bâtiment | F42: 1 | G42: 17-Centre-du-Québec | H42: Drummondville | I42: AC-Actif | J42: SU-Subvention | K42: 114472 | L42: 2018-12-21 | M42: 2023-12-31 | N42: 299746 | W42: 114472 | X42: 0 | Y42: 0 | Z42: 0 | AA42: 114472 | AB42: 114472
A43: 19 | B43: 50643-019 - Projet de réduction et d'évitement de GES : Ajout d'une chaudière électrique pour chauffer l'agrandissement et réduire l'utilisation de la chaudière au gaz naturel de la partie existante de l'école Alexander-Wolff | C43: Commission scolaire de la Capitale | D43: Potentiel de réduction : 139,0 t. +27,2 CO2 | E43: Bâtiment | F43: 1 | G43: 03-Capitale-Nationale | H43: Québec | I43: AC-Actif | J43: SU-Subvention | K43: 367826 | L43: 2019-03-11 | M43: 2023-12-31 | N43: 390475 | W43: 367826 | X43: 0 | Y43: 0 | Z43: 0 | AA43: 367826 | AB43: =SUM(O43:Z43) -> 367826
A44: 20 | B44: 50643-022 - Projet d'efficacité énergétique et de remplacement de chaudières au mazout par de la géothermie dans 3 écoles | C44: Commission scolaire de la Seigneurie-des-Mille-Îles | D44: Potentiel de réduction : 81,6 t. CO2 | E44: Bâtiment | F44: 3 | G44: 15-Laurentides | H44: Saint-Eustache | I44: AC-Actif | J44: SU-Subvention | K44: 194520 | L44: 2019-01-21 | M44: 2023-12-31 | N44: 811509 | W44: 194520 | X44: 0 | Y44: 0 | Z44: 0 | AA44: 194520 | AB44: =SUM(O44:Z44) -> 194520
A45: 21 | B45: 50643-023 - Projet de modernisation de la chaufferie de l'école Samuel-de-Chaplain : Remplacer 3 chaudières au gaz naturel par de l'aérothermie | C45: Commissin scolaire des Premières-Seigneuries | D45: Potentiel de réduction : 343,2 t. CO2 | E45: Bâtiment | F45: 1 | G45: 03-Capitale-Nationale | H45: Québec | I45: AC-Actif | J45: SU-Subvention | K45: 760106 | L45: 2019-02-22 | M45: 2023-12-31 | N45: 1719567 | W45: 760106 | X45: 0 | Y45: 0 | Z45: 0 | AA45: 760106 | AB45: =SUM(O45:Z45) -> 760106
A46: 22 | B46: 50643-034 - Projet de réduction de GES : Remplacement de la chaudière au mazout par de la géothermie. | C46: Commission scolaire New-Frontiers | D46: Potentiel de réduction : 104,0t. CO2 | E46: Bâtiment | F46: 1 | G46: 16-Montérégie | H46: Châteauguay | I46: AC-Actif | J46: SU-Subvention | K46: 233534 | L46: 2019-02-22 | M46: 2023-12-31 | N46: 477102 | W46: 233534 | X46: 0 | Y46: 0 | Z46: 0 | AA46: 233534 | AB46: =SUM(O46:Z46) -> 233534
A47: 23 | B47: 50643-035 - Projet de réduction de GES : Remplacement de la chaudière au mazout par de l'aérothermie. | C47: Commission scolaire des Premières Seigneuries | D47: Potentiel de réduction : 27,0t. CO2 | E47: Bâtiment | F47: 1 | G47: 03-Capitale-Nationale | H47: Québec | I47: AC-Actif | J47: SU-Subvention | K47: 64686 | L47: 2019-02-22 | M47: 2023-12-31 | N47: 615641 | W47: 64686 | X47: 0 | Y47: 0 | Z47: 0 | AA47: 64686 | AB47: =SUM(O47:Z47) -> 64686
A48: 24 | B48: 50643-033 - Projets de réduction des GES : Plusieurs remplacements de chaudières au mazout par de la géothermie, de l'aérothermie, des chaudières électriques. | C48: Commission scolaire de Saint-Hyacinthe | D48: Potentiel de réduction : 394,0 t CO2 | E48: Bâtiment | F48: 10 | G48: 16-Montérégie | H48: Saint-Hyacinthe | I48: AC-Actif | J48: SU-Subvention | K48: 906092 | L48: 2019-03-07 | M48: 2023-12-31 | N48: 4067646 | W48: 41739 | X48: 297960 | Y48: 283196.5 | Z48: 283196.5 | AA48: 41739 | AB48: =SUM(O48:Z48) -> 906092
A49: 25 | B49: 50643-036 - Projet de réduction des GES : réduire l'utilisation du chauffage au mazout par l'introduction du chauffage par de l'aérothermie. | C49: Commission scolaire de Portneuf | D49: Potentiel de réduction : 37,0 t CO2 | E49: Bâtiment | F49: 2 | G49: 03-Capitale-Nationale | H49: Saint-Alban, | I49: AC-Actif | J49: SU-Subvention | K49: 92500 | L49: 2019-06-04 | M49: 2023-12-31 | N49: 184435 | W49: 92500 | X49: 0 | Y49: 0 | Z49: 0 | AA49: 92500 | AB49: =SUM(O49:Z49) -> 92500
A50: 26 | B50: 50643-037 - Projet de réduction de GES : Conversion du mode chauffage bi-énergie (mazout-électricité) en 100% électrique | C50: Commission scolaire des Hauts-Cantons | D50: Potentiel de réduction : 278,9 t CO2 | E50: Bâtiment | F50: 4 | G50: 05-Estrie | H50: East-Angus | I50: AC-Actif | J50: SU-Subvention | K50: 368689 | L50: 2019-06-04 | M50: 2023-12-31 | N50: 957591 | W50: 368689 | X50: 0 | Y50: 0 | Z50: 0 | AA50: 368689 | AB50: =SUM(O50:Z50) -> 368689
A51: 27 | B51: 50643-038 - Construction d'une nouvelle école primaire : Mise en œuvre de mesures pour augmenter l'évitement d'émissions de GES | C51: Commission scolaire Marguérite-Boureoys | D51: Potentiel d'évitement de GES : 60,8 t CO2 | E51: Bâtiment | F51: 1 | G51: 06-Montréal | H51: LaSalle | I51: AC-Actif | J51: SU-Subvention | K51: 132840 | L51: 2019-06-04 | M51: 2023-12-31 | W51: 132840 | Y51: 0 | Z51: 0 | AA51: 132840 | AB51: =SUM(O51:Z51) -> 132840
A52: 28 | B52: 50643-039 - Construction d'une nouvelle école primaire : Mise en œuvre de mesures pour augmenter l'évitement d'émissions de GES | C52: Commission scolaire Kativik | D52: Potentiel d'évitement de GES : 107,8 t CO2 | E52: Bâtiment | F52: 1 | G52: 10-Nord-du-Québec | H52: Inukjuak | I52: AC-Actif | J52: SU-Subvention | K52: 237151 | L52: 2019-06-04 | M52: 2023-12-31 | W52: 175308 | X52: 0 | Y52: 61843 | Z52: 0 | AA52: =SUM(O52:W52) -> 175308 | AB52: =SUM(O52:Z52) -> 237151
A53: 29 | B53: 50643-040 - Travaux de modernisation de chaufferies : Remplacer 5 chaudières au mazout par des chaudières électriques et optimiser les contrôles des bâtiments. | C53: Commission scolaire des Laurentides | D53: Potentiel de réduction de GES : 100 t CO2 | E53: Bâtiment | F53: 5 | G53: 15-Laurentides | H53: Saint-Rémi d'Amherst, Labelle, La Minerve, Saint-Dona, Sainte-Marguerite | I53: AC-Actif | J53: SU-Subvention | K53: 245000 | L53: 2019-11-12 | M53: 2024-06-30 | N53: 347196 | W53: 0 | X53: 0 | Y53: 122500 | Z53: 122500 | AA53: =SUM(O53:W53) -> 0 | AB53: =SUM(O53:Z53) -> 245000
A54: 30 | B54: 50643-041 - Agrandissement de l'école Jean-Nicolet : Mise en œuvre de mesures pour augmenter l'évitement d'émissions de GES | C54: Commission scolaire de la Pointe-de-l'Île | D54: Potentiel d'évitement de GES : 18,9 t CO2 | E54: Bâtiment | F54: 1 | G54: 06-Montréal | H54: Montréal-Nord | I54: AC-Actif | J54: SU-Subvention | K54: 41599 | L54: 2019-10-21 | M54: 2024-06-30 | W54: 41599 | X54: 0 | Y54: 0 | Z54: 0 | AA54: =SUM(O54:W54) -> 41599 | AB54: =SUM(O54:Z54) -> 41599
A55: 31 | B55: 50643-018 - Projet de réduction et d'évitement (Agrandissement) de GES : Ajout d'une chaudière électrique ainsi que d'une thermopompe | C55: Centre de services scolaires de la Capitale | D55: Potentiel d'évitement de GES : 21 t CO2 | E55: Bâtiment | F55: 1 | G55: 03-Capitale-Nationale | H55: Québec | I55: AC-Actif | J55: SU-Subvention | K55: 57979 | L55: 2019-04-24 | M55: 2023-12-31 | W55: 55903.3518 | X55: 2076 | Y55: 0 | Z55: 0 | AA55: =SUM(O55:W55) -> 55903.3518 | AB55: =SUM(O55:Z55) -> 57979.3518
A56: 32 | B56: 50643-021 - Projet de modernisation de la chaufferie des 3 écoles : Remplacer les chaudières au mazout par une chaudière électrique | C56: Commission scolaire Lester-B-Pearson | D56: Potentiel de réduction de GES : 339 t CO2 | E56: Bâtiment | F56: 3 | G56: 06-Montréal | H56: Montréal | I56: AC-Actif | J56: SU-Subvention | K56: 761548 | L56: 2019-04-24 | M56: 2024-12-31 | N56: 1002111 | W56: 761548 | X56: 0 | Y56: 0 | Z56: 0 | AA56: =SUM(O56:W56) -> 761548 | AB56: =SUM(O56:Z56) -> 761548
A57: 33 | B57: 50643-054 - Agrandissement de l'école: Mise en œuvre de mesures pour augmenter l'évitement d'émissions de GES | C57: Centre de services scolaires des Grandes Seigneuries | D57: Potentiel d'évitement de GES : 28 t CO2 | E57: Bâtiment | F57: 1 | G57: 16-Montérégie | H57: La Prairie | I57: AC-Actif | J57: SU-Subvention | K57: 60617 | L57: 2020-04-30 | M57: 2025-12-31 | W57: 60617 | X57: 0 | Y57: 0 | Z57: 0 | AA57: =SUM(O57:W57) -> 60617 | AB57: =SUM(O57:Z57) -> 60617
A58: 34 | B58: 50643-045 - Remplacer la chaudière au mazout par une chaudière électrique | C58: Centre de services scolaires de la Seigneurie-des-Mille-Îles | D58: Potentiel de réduction de GES : 339 t CO2 | E58: Bâtiment | F58: 2 | G58: 15-Laurentides | H58: Sainte-Thérèse | I58: AC-Actif | J58: SU-Subvention | K58: 133420 | L58: 2020-04-06 | M58: 2025-12-31 | N58: 707934 | W58: 133420 | X58: 0 | Y58: 0 | Z58: 0 | AA58: =SUM(O58:W58) -> 133420 | AB58: =SUM(O58:Z58) -> 133420
A59: 35 | B59: 50643-048 - Nouvelle école : Mise en œuvre de mesures pour augmenter l'évitement d'émissions de GES - Géothermie | C59: Centre de services scolaires Marie-Victorin | D59: Potentiel d'évitement de GES : 67 t CO2 | E59: Bâtiment | F59: 1 | G59: 16-Montérégie | H59: Vauquelin | I59: AC-Actif | J59: SU-Subvention | K59: 147343 | L59: 2020-04-06 | M59: 2025-12-31 | W59: 146438 | X59: 905 | Y59: 0 | Z59: 0 | AA59: =SUM(O59:W59) -> 146438 | AB59: =SUM(O59:Z59) -> 147343
A60: 36 | B60: 50643-050 - Remplacement des systèmes CVAC et d'une chaudière au gaz naturel par une chaudière électrique | C60: Pointe-de-l'Île | D60: Potentiel de réduction de GES : 52 t CO2 | E60: Bâtiment | F60: 1 | G60: 06-Montréal | H60: Montréal | I60: AC-Actif | J60: SU-Subvention | K60: 119400 | L60: 2020-04-06 | M60: 2025-12-31 | N60: 199858 | W60: 119400 | X60: 0 | Y60: 0 | Z60: 0 | AA60: =SUM(O60:W60) -> 119400 | AB60: =SUM(O60:Z60) -> 119400
A61: 37 | B61: 50643-055 - Nouvelle école : Mise en œuvre de mesures pour augmenter l'évitement d'émissions de GES | C61: des-Trois-Lacs | D61: Potentiel d'évitement de GES : 64 t CO2 | E61: Bâtiment | F61: 1 | G61: 16-Montérégie | H61: Vaudreuil | I61: AC-Actif | J61: SU-Subvention | K61: 140822 | L61: 2020-04-06 | M61: 2025-12-31 | W61: 139414 | X61: 1408 | Y61: 0 | Z61: 0 | AA61: =SUM(O61:W61) -> 139414 | AB61: =SUM(O61:Z61) -> 140822
A62: 38 | B62: 50643-056 - Nouveau centre de formation : Mise en œuvre de mesures pour augmenter l'évitement d'émissions de GES | C62: des-Trois-Lacs | D62: Potentiel d'évitement de GES : 24 t CO2 | E62: Bâtiment | F62: 1 | G62: 16-Montérégie | H62: Vaudreuil | I62: AC-Actif | J62: SU-Subvention | K62: 52998 | L62: 2020-04-06 | M62: 2025-12-31 | W62: 52724.46932 | X62: 274 | Y62: 0 | Z62: 0 | AA62: =SUM(O62:W62) -> 52724.46932 | AB62: =SUM(O62:Z62) -> 52998.46932
A63: 39 | B63: 50643-057 - Remplacement des chaudières au Mazout par de la géothermie et une chaudière électrique | C63: de Montréal | D63: Potentiel de réduction de GES : 105 t CO2 | E63: Bâtiment | F63: 1 | G63: 06-Montréal | H63: Montréal | I63: AC-Actif | J63: SU-Subvention | K63: 236000 | L63: 2020-04-06 | M63: 2025-12-31 | N63: 1716319 | W63: 236000 | X63: 0 | Z63: 0 | AA63: =SUM(O63:W63) -> 236000 | AB63: =SUM(O63:Z63) -> 236000
A64: 40 | B64: 50643-061 - Projets de réduction des GES : Élimination des chaudières au mazout et installation d'un système de géothermie | C64: de Saint-Hyacinthe | D64: Potentiel de réduction de GES : 36 t CO2 | E64: Bâtiment | F64: 1 | G64: 16-Montérégie | H64: Saint-Hyacinthe | I64: AC-Actif | J64: SU-Subvention | K64: 84200 | L64: 2020-04-06 | M64: 2025-12-31 | N64: 189200 | W64: 0 | X64: 0 | Y64: 42100 | Z64: 42100 | AA64: =SUM(O64:W64) -> 0 | AB64: =SUM(O64:Z64) -> 84200
A65: 41 | B65: 50643-047 - Remplacer les chaudières au mazout par des chaudières électriques et des accumulateurs thermiques | C65: des Affluents | D65: Potentiel de réduction de GES : 281 t CO2 | E65: Bâtiment | F65: 3 | G65: 14-Lanaudière | H65: Répentigny | I65: AC-Actif | J65: SU-Subvention | K65: 633200 | L65: 2020-04-08 | M65: 2025-12-31 | N65: 1162677 | W65: 631649.546 | X65: 0 | Y65: 1550 | Z65: 0 | AA65: =SUM(O65:W65) -> 631649.546 | AB65: =SUM(O65:Z65) -> 633199.546
A66: 42 | B66: 50643-042 - Projets de réduction des GES : Choix de géothermie et panneaux solaires - 3 bâtiments | C66: des Découvreurs | D66: Potentiel de réduction de GES : 337 t CO2 | E66: Bâtiment | F66: 3 | G66: 03-Capitale-Nationale | H66: Québec | I66: AC-Actif | J66: SU-Subvention | K66: 827852 | L66: 2020-04-09 | M66: 2025-12-31 | N66: 1262265 | W66: 318391.8792 | X66: 0 | Y66: 509460 | Z66: 0 | AA66: =SUM(O66:W66) -> 318391.8792 | AB66: =SUM(O66:Z66) -> 827851.8792
A67: 43 | B67: 50643-043 - Agrandissement de l'école: Mise en œuvre de mesures pour augmenter l'évitement d'émissions de GES | C67: Kativik | D67: Potentiel d'évitement de GES : 112 t CO2 | E67: Bâtiment | F67: 1 | G67: 06-Montréal | H67: Salluit | I67: AC-Actif | J67: SU-Subvention | K67: 327091 | L67: 2020-04-16 | M67: 2025-12-31 | W67: 303441.9761 | X67: 0 | Y67: 23649 | Z67: 0 | AA67: =SUM(O67:W67) -> 303441.9761 | AB67: =SUM(O67:Z67) -> 327090.9761
A68: 44 | B68: 50643-044 - Nouvelle école : Mise en œuvre de mesures pour augmenter l'évitement d'émissions de GES - - Géothermie | C68: de la Seigneurie-des-Mille-Îles | D68: Potentiel d'évitement de GES : 63 t CO2 | E68: Bâtiment | F68: 1 | G68: 15-Laurentides | H68: Mirabel | I68: AC-Actif | J68: SU-Subvention | K68: 138600 | L68: 2020-04-20 | M68: 2025-12-31 | W68: 138455.5446 | X68: 144 | Y68: 0 | Z68: 0 | AA68: =SUM(O68:W68) -> 138455.5446 | AB68: =SUM(O68:Z68) -> 138599.5446
A69: 45 | B69: 50643-052 - Nouvelle école : Mise en œuvre de mesures pour augmenter l'évitement d'émissions de GES | C69: des Grandes-Seigneuries | D69: Potentiel d'évitement de GES : 69 t CO2 | E69: Bâtiment | F69: 1 | G69: 16-Montérégie | H69: Châteauguay | I69: AC-Actif | J69: SU-Subvention | K69: 151571 | L69: 2020-04-20 | M69: 2025-12-31 | W69: 150813.145 | X69: 758 | Z69: 0 | AA69: =SUM(O69:W69) -> 150813.145 | AB69: =SUM(O69:Z69) -> 151571.145
A70: 46 | B70: 50643-064 - Projets de réduction des GES : Plusieurs options - 11 bâtiments | C70: de Rouyn-Noranda | D70: Potentiel de réduction de GES : 1 181 t CO2 | E70: Bâtiment | F70: 11 | G70: 08-Abitibi-Témiscamingue | H70: Plusieurs | I70: AC-Actif | J70: SU-Subvention | K70: 2653112 | L70: 2020-04-27 | M70: 2025-12-31 | N70: 4991853 | W70: 2465304.375 | X70: 187808 | Z70: 0 | AA70: =SUM(O70:W70) -> 2465304.375 | AB70: =SUM(O70:Z70) -> 2653112.375
A71: 47 | B71: 50643-046 - Projets de réduction des GES : Remplacer les chaudières au mazout par des chaudières électriques et réduction de l'utilisation des chaudières au gaz | C71: de Montréal | D71: Potentiel de réduction de GES : 989 t CO2 | E71: Bâtiment | F71: 8 | G71: 06-Montréal | H71: Montréal | I71: AC-Actif | J71: SU-Subvention | K71: 2032653 | L71: 2020-04-27 | M71: 2025-12-31 | N71: 4372598 | W71: 2032653 | X71: 0 | Z71: 0 | AA71: =SUM(O71:W71) -> 2032653 | AB71: =SUM(O71:Z71) -> 2032653
A72: 48 | B72: 50643-065 - Remplacer les chaudières au gaz par un système à haut rendement (géothermie) | C72: New-Frontiers | D72: Potentiel de réduction de GES : 75 t CO2 | E72: Bâtiment | F72: 3 | G72: 16-Montérégie | H72: Châteauguay | I72: AC-Actif | J72: SU-Subvention | K72: 170301 | L72: 2020-04-29 | M72: 2025-12-31 | N72: 646542 | W72: 17849.05672 | X72: 67301 | Y72: 85150.5 | Z72: 0 | AA72: =SUM(O72:W72) -> 17849.05672 | AB72: =SUM(O72:Z72) -> 170300.5567
A73: 49 | B73: 50643-066 - Projets de réduction des GES : Remplacer les chaudières de mazout par de la géothermie et des chaudières électriques | C73: Eastern Towships | D73: Potentiel de réduction de GES : 443 t CO2 | E73: Bâtiment | F73: 1 | G73: 11-Gaspésie-Iles-de-la-Madeleine | H73: Magog | I73: AC-Actif | J73: SU-Subvention | K73: 979659 | L73: 2020-04-29 | M73: 2025-12-31 | N73: 2095151 | W73: 924273.0136 | X73: 55386 | AA73: =SUM(O73:W73) -> 924273.0136 | AB73: =SUM(O73:Z73) -> 979659.0136
A74: 50 | B74: 50643-051 - Agrandissement de l'école: Mise en œuvre de mesures pour augmenter l'évitement d'émissions de GES | C74: des Grandes-Seigneuries | D74: Potentiel d'évitement de GES : 60 t CO2 | E74: Bâtiment | F74: 1 | G74: 16-Montérégie | H74: Saint-Clotilde | I74: AC-Actif | J74: SU-Subvention | K74: 171971 | L74: 2020-04-30 | M74: 2025-12-31 | W74: 115037.6684 | X74: 56933 | Z74: 0 | AA74: =SUM(O74:W74) -> 115037.6684 | AB74: =SUM(O74:Z74) -> 171970.6684
A75: 51 | B75: 50643-063 - Nouvelle école : Mise en œuvre de mesures pour augmenter l'évitement d'émissions de GES - - Géothermie | C75: Marie-Victorin | D75: Potentiel d'évitement de GES : 72 t CO2 | E75: Bâtiment | F75: 1 | G75: 16-Montérégie | H75: Longueuil | I75: AC-Actif | J75: SU-Subvention | K75: 158288 | L75: 2020-04-30 | M75: 2025-12-31 | W75: 157746.0438 | Y75: 0 | Z75: 0 | AA75: =SUM(O75:W75) -> 157746.0438 | AB75: =SUM(O75:Z75) -> 157746.0438
A76: 52 | B76: 50643-067 - Conversion de chaufferies de combustible fossile vers l'électricité | C76: des Chênes | D76: Potentiel de réduction de GES : 126 t CO2 | E76: Bâtiment | F76: 3 | G76: 17-Centre-du-Québec | H76: Drummondville | I76: AC-Actif | J76: SU-Subvention | K76: 292695 | L76: 2020-04-30 | M76: 2025-12-31 | N76: 1124170 | W76: 292695 | Y76: 0 | Z76: 0 | AA76: =SUM(O76:W76) -> 292695 | AB76: =SUM(O76:Z76) -> 292695
A77: 53 | B77: 50643-068 - Projets de réduction des GES : Modernisation de chaufferie - 4 bâtiments (remplacer les chaudières à combustibles par des chaudières électriques et des thermopompes) | C77: des Hauts-Cantons | D77: Potentiel de réduction de GES : 337 t CO2 | E77: Bâtiment | F77: 4 | G77: 05-Estrie | H77: East Angus | I77: AC-Actif | J77: SU-Subvention | K77: 760586 | L77: 2020-04-30 | M77: 2025-12-31 | N77: 1083997 | W77: 654179.381 | X77: 106407 | Z77: 0 | AA77: =SUM(O77:W77) -> 654179.381 | AB77: =SUM(O77:Z77) -> 760586.381
A78: 54 | B78: 50643-049 - Agrandissement de l'école: Mise en œuvre de mesures pour augmenter l'évitement d'émissions de GES | C78: des Patriotes | D78: Potentiel d'évitement de GES : 16,7 t CO2 | E78: Bâtiment | F78: 1 | G78: 16-Montérégie | H78: Saint-Bruno-de-Montarville | I78: AC-Actif | J78: SU-Subvention | K78: 36795 | L78: 2020-04-30 | M78: 2025-12-31 | W78: 1806.6345 | X78: 0 | Y78: 34988 | Z78: 0 | AA78: =SUM(O78:W78) -> 1806.6345 | AB78: =SUM(O78:Z78) -> 36794.6345
A79: 55 | B79: 50643-069 - Remplacer les chaudières au gaz naturel par des chaudières électriques et chaudières au GN de plus petites puissances : 7 bâtiments | C79: Marguérite-Bourgeoys | D79: Potentiel de réduction de GES : 572 t CO2 | E79: Bâtiment | F79: 7 | G79: 06-Montréal | H79: Montréal | I79: AC-Actif | J79: SU-Subvention | K79: 1293544 | L79: 2020-05-05 | M79: 2025-12-31 | N79: 3011247 | W79: 1293544 | Y79: 0 | Z79: 0 | AA79: =SUM(O79:W79) -> 1293544 | AB79: =SUM(O79:Z79) -> 1293544
A80: 56 | B80: 50643-070 - Projets de réduction des GES : modernisation de chaufferie - conversion del - ajout de climatisation - aérothermie | C80: Sir-Wilfrid-Laurier | D80: Potentiel de réduction de GES : 1 109 t CO2 | E80: Bâtiment | F80: 20 | G80: 15-Laurentides | H80: Plusieurs | I80: AC-Actif | J80: SU-Subvention | K80: 2545530 | L80: 2020-05-14 | M80: 2025-12-31 | N80: 6519027 | W80: 2418527.453 | Y80: 127003 | Z80: 0 | AA80: =SUM(O80:W80) -> 2418527.453 | AB80: =SUM(O80:Z80) -> 2545530.453
A81: 57 | B81: 50643-053 - Agrandissement de l'école: Mise en œuvre de mesures pour augmenter l'évitement d'émissions de GES | C81: des Grandes-Seigneuries | D81: Potentiel d'évitement de GES : 53 t CO2 | E81: Bâtiment | F81: 1 | G81: 16-Montérégie | H81: La Prairie | I81: AC-Actif | J81: SU-Subvention | K81: 121574 | L81: 2020-05-19 | M81: 2025-12-31 | W81: 91180.4924 | X81: 0 | Y81: 30394 | Z81: 0 | AA81: =SUM(O81:W81) -> 91180.4924 | AB81: =SUM(O81:Z81) -> 121574.4924
A82: 58 | B82: 50643-059 - Agrandissement de l'école: Mise en œuvre de mesures pour augmenter l'évitement d'émissions de GES | C82: des Grandes-Seigneuries | D82: Potentiel d'évitement de GES : 16,5 t CO2 | E82: Bâtiment | F82: 1 | G82: 16-Montérégie | H82: La Prairie | I82: AC-Actif | J82: SU-Subvention | K82: 35464 | L82: 2020-05-21 | M82: 2025-12-31 | W82: 35464 | X82: 0 | Z82: 0 | AA82: =SUM(O82:W82) -> 35464 | AB82: =SUM(O82:Z82) -> 35464
A83: 59 | B83: 50643-074 - Nouvelle école : Mise en œuvre de mesures pour augmenter l'évitement d'émissions de GES | C83: Beauce-Etchemin | D83: Potentiel d'évitement de GES : 72 t CO2 | E83: Bâtiment | F83: 1 | G83: 12-Chaudières-Appalaches | H83: Saint-Georges | I83: AC-Actif | J83: SU-Subvention | K83: 158402 | L83: 2020-06-22 | M83: 2025-12-31 | W83: 57024.72 | X83: 0 | Y83: 101377 | Z83: 0 | AA83: =SUM(O83:W83) -> 57024.72 | AB83: =SUM(O83:Z83) -> 158401.72
A84: 60 | B84: 50643-073Remplacer des chaudières fonctionnant au combustible par de la géothermie | C84: des Premières-Seigneuries | D84: Potentiel de réduction de GES : 176 t CO2 | E84: Bâtiment | F84: 2 | G84: 03-Capitale-Nationale | H84: Québec | I84: AC-Actif | J84: SU-Subvention | K84: 398223 | L84: 2020-07-15 | M84: 2025-12-31 | N84: 1149244 | W84: 398223 | X84: 0 | Z84: 0 | AA84: =SUM(O84:W84) -> 398223 | AB84: =SUM(O84:Z84) -> 398223
A85: 61 | B85: 50643-071 - Projets de réduction des GES : Remplacer des chaudières à combustibles par de l'énergie renouvelable(électricité) dans 18 bâtiments | C85: des Bois-Francs Nord | D85: Potentiel de réduction de GES : 722 t CO2 | E85: Bâtiment | F85: 18 | G85: 17-Centre-du-Québec | H85: Plusieurs | I85: AC-Actif | J85: SU-Subvention | K85: 1678794 | L85: 2020-07-16 | M85: 2025-12-31 | N85: 4178327 | W85: 53292.02498 | X85: 786105 | Y85: 839397 | Z85: 0 | AA85: =SUM(O85:W85) -> 53292.02498 | AB85: =SUM(O85:Z85) -> 1678794.025
A86: 62 | B86: 50643-058 - Remplacer des chaudières au gaz naturel par des chaudières électriques | C86: Montréal | D86: Potentiel de réduction de GES : 211 t CO2 | E86: Bâtiment | F86: 2 | G86: 06-Montréal | H86: Montréal | I86: AC-Actif | J86: SU-Subvention | K86: 471495 | L86: 2020-07-15 | M86: 2025-12-31 | N86: 607541 | W86: 471495 | X86: 0 | Z86: 0 | AA86: =SUM(O86:W86) -> 471495 | AB86: =SUM(O86:Z86) -> 471495
A87: 63 | B87: 50643-072 - Nouvelle école secondaire : Mise en œuvre de mesures pour augmenter l'évitement d'émissions de GES | C87: des Portages-de-l'Outaouais | D87: Potentiel d'évitement de GES : 106 t CO2 | E87: Bâtiment | F87: 1 | G87: 07-Outaouais | H87: Gatineau | I87: AC-Actif | J87: SU-Subvention | K87: 233739 | L87: 2020-07-16 | M87: 2025-12-31 | W87: 233252.0224 | X87: 0 | Z87: 0 | AA87: =SUM(O87:W87) -> 233252.0224 | AB87: =SUM(O87:Z87) -> 233252.0224
A88: 64 | B88: 50643-060 - Remplacer le système de chauffage à base de mazout par un système de chauffage géothermique | C88: Saint-Hyacinthe | D88: Potentiel de réduction de GES : 33 t CO2 | E88: Agricole | F88: 1 | G88: 16-Montérégie | H88: Saint-Hyacinthe | I88: AC-Actif | J88: SU-Subvention | K88: 76766 | L88: 2020-07-17 | M88: 2025-12-31 | N88: 532190 | W88: 0 | X88: 0 | Y88: 38383 | Z88: 38383 | AA88: =SUM(O88:W88) -> 0 | AB88: =SUM(O88:Z88) -> 76766
A89: 65 | B89: 50643-062 - Projet de réduction GES: Modernisation de la chaufferie de deux écoles - Remplacement des chaudières existantes et utilisation de l'électricité comme source d'énergie primaire | C89: Hautes-Rivières | D89: Potetiel de Réduction de GES : 71,0 tCO2 | E89: Bâtiment | F89: 2 | G89: 16-Montérégie | H89: Saint-Jean-sur-Richelieu | I89: AC-Actif | J89: SU-Subvention | K89: 166200 | L89: 2020-04-06 | M89: 2025-12-31 | N89: 312638 | W89: 166200 | Y89: 0 | Z89: 0 | AA89: =SUM(O89:W89) -> 166200 | AB89: =SUM(O89:Z89) -> 166200
A90: 66 | B90: 50643-075 - Projet de réduction des GES: Modernisation de la chaufferie de l'immeuble Boisé-des-Pins | C90: Chemin du Roy | D90: Potetiel de Réduction de GES : 48,27 tCO2 | E90: Bâtiment | F90: 1 | G90: 04-Mauricie | H90: Trois-Rivière | I90: AC-Actif | J90: SU-Subvention | K90: 93792 | L90: 2021-03-22 | M90: 2025-12-31 | N90: 489415 | W90: 0 | X90: 0 | Y90: 46896 | Z90: 46896 | AA90: =SUM(O90:W90) -> 0 | AB90: =SUM(O90:Z90) -> 93792
A91: 67 | B91: 50643-076 - Installation de systèmes aérothermiques, remplacement de chaudières au mazout par des chaudières électriques, conversion d'éclairage, optimisation de contrôles centralisés et de systèmes géothermiques. | C91: Trois-Lacs | D91: Potetiel de Réduction de GES : 850,4 tCO2 | E91: Bâtiment | F91: 12 | G91: 16-Montérégie | H91: Plusieurs | I91: AC-Actif | J91: SU-Subvention | K91: 1930880 | L91: 2021-03-01 | M91: 2025-12-31 | N91: 3423840 | W91: 1250124.324 | X91: 0 | Y91: 680756 | AA91: =SUM(O91:W91) -> 1250124.324 | AB91: =SUM(O91:Z91) -> 1930880.324
A92: 68 | B92: 50643-077 - Projets de réduction des GES: Modernisation de la chaufferie de l'école la Frontalière - installation d'un système d'aérothermie | C92: Hauts-Cantons | D92: Potetiel de Réduction de GES : 548,63 tCO2 | E92: Bâtiment | F92: 1 | G92: 05-Estrie | H92: Coaticook | I92: AC-Actif | J92: SU-Subvention | K92: 1211984.14 | L92: 2021-03-31 | M92: 2025-12-31 | N92: 1775727 | W92: 7559.000012 | X92: 0 | Y92: 605992.07 | Z92: 598433 | AA92: =SUM(O92:W92) -> 7559.000012 | AB92: =SUM(O92:Z92) -> 1211984.07
A93: 69 | B93: 50643-078 - Nouveau centre de formation: Mise en œuvre de mesures pour augmenter l'évitement d'émissions de GES - utilisation de la géothermie | C93: Affluents | D93: Potetiel de Évitement de GES : 51.548 tCO2 | E93: Bâtiment | F93: 1 | G93: 14-Lanaudière | H93: Mascouche | I93: AC-Actif | J93: SU-Subvention | K93: 113406 | L93: 2021-03-26 | M93: 2025-12-31 | W93: 0 | X93: 0 | Y93: 56703 | Z93: 56703 | AA93: =SUM(O93:W93) -> 0 | AB93: =SUM(O93:Z93) -> 113406
A94: 70 | B94: 50643-079 - Agrandissement de l'école Albert-Naud: Installation d'un système de chauffage électrique - installation d'une thermopompe | C94: Lac-Saint-Jean | D94: Potetiel de Évitement de GES : 81.1 tCO2 | E94: Bâtiment | F94: 1 | G94: 02-Saguenay- Lac-Saint-Jean | H94: Alma | I94: AC-Actif | J94: SU-Subvention | K94: 188524 | L94: 2021-03-26 | M94: 2025-12-31 | W94: 183525.181 | X94: 4999 | AA94: =SUM(O94:W94) -> 183525.181 | AB94: =SUM(O94:Z94) -> 188524.181
A95: 71 | B95: 50643-080 - Agrandissement de l'école Bon-Conseil: Installation d'un système de géothermie | C95: Lac-Saint-Jean | D95: Potetiel de Évitement de GES : 87.6 tCO2 | E95: Bâtiment | F95: 1 | G95: 02-Saguenay- Lac-Saint-Jean | H95: Hébertville | I95: AC-Actif | J95: SU-Subvention | K95: 197723 | L95: 2021-03-26 | M95: 2025-12-31 | W95: 194343.614 | X95: 3379 | AA95: =SUM(O95:W95) -> 194343.614 | AB95: =SUM(O95:Z95) -> 197722.614
A96: 72 | B96: 50643-081 - Nouveau centre de formation à Mirabel: Mise en œuvre de mesures pour augmenter l'évitement d'émissions de GES - système de géothermie | C96: Seigneurie-des-Mille-Îles | D96: Potetiel de Évitement de GES : 48,05 tCO2 | E96: Bâtiment | F96: 1 | G96: 15-Laurentides | H96: Mirabel | I96: AC-Actif | J96: SU-Subvention | K96: 105710 | L96: 2020-10-03 | M96: 2025-12-31 | W96: 105710 | Y96: 0 | Z96: 0 | AA96: =SUM(O96:W96) -> 105710 | AB96: =SUM(O96:Z96) -> 105710
A97: 73 | B97: 50643-082 - Projet de réduction des GES: Remplacement des chaudières existantes - 2 bâtiments | C97: Hautes-Rivières | D97: Potetiel de Réduction de GES : 198,37 tCO2 | E97: Bâtiment | F97: 2 | G97: 16-Montérégie | H97: Plusieurs | I97: AC-Actif | J97: SU-Subvention | K97: 446417.5 | L97: 2021-03-31 | M97: 2025-12-31 | N97: 627860 | W97: 446417.5043 | X97: 0 | AA97: =SUM(O97:W97) -> 446417.5043 | AB97: =SUM(O97:Z97) -> 446417.5043
A98: 74 | B98: 50643-083 - Projet de réduction GES: Installation de systèmes aérothermiques, conversion d'éclairage et optimisation de contrôles centralisés | C98: Des Sommets | D98: Potetiel de Réduction de GES : 643,7 tCO2 | E98: Bâtiment | F98: 5 | G98: 05-Estrie | H98: Plusieurs | I98: AC-Actif | J98: SU-Subvention | K98: 1441140 | L98: 2021-02-10 | M98: 2025-12-31 | N98: 3205029 | W98: 485967.7575 | X98: 0 | Y98: 955172 | AA98: =SUM(O98:W98) -> 485967.7575 | AB98: =SUM(O98:Z98) -> 1441139.757
A99: 75 | B99: 50643-084 - Nouvelle école: Mise en œuvre de mesures pour favoriser l'évitement d'émissions de GES - système de géothermie | C99: Eastern Townships | D99: Potetiel de Évitement de GES : 38,17 tCO2 | E99: Bâtiment | F99: 1 | G99: 17-Centre-du-Québec | H99: Drummondville | I99: AC-Actif | J99: SU-Subvention | K99: 83978 | L99: 2021-03-19 | M99: 2025-12-31 | W99: 0 | X99: 0 | Y99: 41989 | Z99: 41989 | AA99: =SUM(O99:W99) -> 0 | AB99: =SUM(O99:Z99) -> 83978
A100: 76 | B100: 50643-085 - Projet de réduction des GES: Modernisation des chaufferies - Installation de systèmes d'aérothermie (12 bâtiments) | C100: Eastern Townships | D100: Potetiel de Réduction de GES : 1 408,8 tCO2 | E100: Bâtiment | F100: 12 | G100: 05-Estrie | H100: Plusieurs | I100: AC-Actif | J100: SU-Subvention | K100: 3159354 | L100: 2021-03-26 | M100: 2025-12-31 | N100: 4923554 | W100: 0 | X100: 0 | Y100: 1579677 | Z100: 1579677 | AA100: =SUM(O100:W100) -> 0 | AB100: =SUM(O100:Z100) -> 3159354
A101: 77 | B101: 50643-087 - Projet de réduction des GES: Modernisation de la chaufferie de l'école Saint-Bonaventure - Remplacer les chaudières à l'huile par des chaudières électriques et une thermopompe | C101: Chênes | D101: Potetiel de Réduction de GES : 41,0 tCO2 | E101: Bâtiment | F101: 1 | G101: 17-Centre-du-Québec | H101: Saint-Bonaventure | I101: AC-Actif | J101: SU-Subvention | K101: 95200 | L101: 2021-03-26 | M101: 2025-12-31 | N101: 349242 | W101: 0 | X101: 0 | Y101: 47600 | Z101: 47600 | AA101: =SUM(O101:W101) -> 0 | AB101: =SUM(O101:Z101) -> 95200
A102: 78 | B102: 50643-088 - Agrandissement de l'école Desjardins: Modernisation de la chaufferie - Remplacement des chaudière au GN par un système hybride (géothermie et chaudière GN) | C102: Région-de-Sherbrooke | D102: Potetiel de Évitement de GES : 47,03 tCO2 | E102: Bâtiment | F102: 1 | G102: 05-Estrie | H102: Sherbrooke | I102: AC-Actif | J102: SU-Subvention | K102: 139664 | L102: 2021-03-26 | M102: 2025-12-31 | N102: 415899 | W102: 0 | X102: 0 | Y102: 69832 | Z102: 69832 | AA102: =SUM(O102:W102) -> 0 | AB102: =SUM(O102:Z102) -> 139664
A103: 79 | B103: 50643-089 - Agrandissement de l'école Cardinal-Roy: Installation d'un système de aérothermie et d'une chaudière électrique | C103: de la Capitale | D103: Potetiel de Évitement de GES : 33,42 tCO2 | E103: Bâtiment | F103: 1 | G103: 03-Capitale-Nationale | H103: Québec | I103: AC-Actif | J103: SU-Subvention | K103: 73522 | L103: 2021-03-26 | M103: 2025-12-31 | W103: 7352.2 | X103: 0 | Y103: 36761 | Z103: 29409 | AA103: =SUM(O103:W103) -> 7352.2 | AB103: =SUM(O103:Z103) -> 73522.2
A104: 80 | B104: 50643-090 - Agrandissement de l'école Joseph-François-Perrault: Installation d'un système de aérothermie | C104: de la Capitale | D104: Potetiel de Évitement de GES : 39,03 tCO2 | E104: Bâtiment | F104: 1 | G104: 03-Capitale-Nationale | H104: Québec | I104: AC-Actif | J104: SU-Subvention | K104: 85873 | L104: 2021-03-26 | M104: 2025-12-31 | W104: 8587.3 | X104: 0 | Y104: 42936.5 | Z104: 34349 | AA104: =SUM(O104:W104) -> 8587.3 | AB104: =SUM(O104:Z104) -> 85872.8
A105: 81 | B105: 50643-091 - Nouvelle Lab-École Limoilou: Mise en œuvre de mesures pour favoriser l'évitement d'émissions de GES - système d'aérothermie | C105: de la Capitale | D105: Potetiel de Évitement de GES : 51,03 tCO2 | E105: Bâtiment | F105: 1 | G105: 03-Capitale-Nationale | H105: Québec | I105: AC-Actif | J105: SU-Subvention | K105: 112266 | L105: 2021-03-09 | M105: 2025-12-31 | W105: 84920.56097 | X105: 0 | Y105: 27345 | AA105: =SUM(O105:W105) -> 84920.56097 | AB105: =SUM(O105:Z105) -> 112265.561
A106: 82 | B106: 50643-092 - Projet de réduction des GES: Modernisation de la chaufferie du centre Louis-Joliet - Système de géothermie | C106: de la Capitale | D106: Potetiel de Réduction de GES : 285,48 tCO2 | E106: Bâtiment | F106: 1 | G106: 03-Capitale-Nationale | H106: Québec | I106: AC-Actif | J106: SU-Subvention | K106: 633057 | L106: 2021-03-31 | M106: 2025-12-31 | N106: 5881425 | W106: 247926.1877 | X106: 68602 | Y106: 316528.5 | AA106: =SUM(O106:W106) -> 247926.1877 | AB106: =SUM(O106:Z106) -> 633056.6877
A107: 83 | B107: 50643-093 - Projet de réduction des GES: Installation d'un système de géothermie - modernisation des chaufferies - 3 écoles | C107: des Premières-Seigneuries | D107: Potetiel de Réduction de GES : 570,91 tCO2 | E107: Bâtiment | F107: 3 | G107: 03-Capitale-Nationale | H107: Québec | I107: AC-Actif | J107: SU-Subvention | K107: 1271200 | L107: 2021-03-26 | M107: 2025-12-31 | N107: 6437025 | W107: 1271200 | X107: 0 | AA107: =SUM(O107:W107) -> 1271200 | AB107: =SUM(O107:Z107) -> 1271200
A108: 84 | B108: 50643-094 - Projet de réduction de GES: Modernisation des chaufferies - Installation de système de géothermie (Saint-Marc, secondaire de) et d'aréothermie (Saumonière) | C108: Portneuf | D108: Potetiel de Réduction de GES : 307,46 tCO2 | E108: Bâtiment | F108: 2 | G108: 03-Capitale-Nationale | H108: Plusieurs | I108: AC-Actif | J108: SU-Subvention | K108: 686411 | L108: 2021-03-26 | M108: 2025-12-31 | N108: 1944351 | W108: 686411 | X108: 0 | AA108: =SUM(O108:W108) -> 686411 | AB108: =SUM(O108:Z108) -> 686411
A109: 85 | B109: 50643-095 - Projet de réduction GES: Remplacement des chaudière au GN de l'école Saint-Thérèse par des thermopompes air-eau | C109: Chemin du Roy | D109: Potetiel de Réduction de GES : 40,73 tCO2 | E109: Bâtiment | F109: 1 | G109: 04-Mauricie | H109: Trois-Rivière | I109: AC-Actif | J109: SU-Subvention | K109: 94615 | L109: 2021-03-31 | M109: 2025-12-31 | N109: 512986 | W109: 0 | X109: 0 | Y109: 47307.5 | Z109: 47307.5 | AA109: =SUM(O109:W109) -> 0 | AB109: =SUM(O109:Z109) -> 94615
A110: 86 | B110: 50643-096 - Agrandissement de l'école Saint-Joseph: Mise en œuvre de mesures pour favoriser l'évitement d'émissions de GES | C110: Chemin du Roy | D110: Potetiel de Évitement de GES : 24,42 tCO2 | E110: Bâtiment | F110: 1 | G110: 04-Mauricie | H110: Maskinongé | I110: AC-Actif | J110: SU-Subvention | K110: 53728 | L110: 2021-03-31 | M110: 2025-12-31 | W110: 0 | X110: 0 | Y110: 26864 | Z110: 26864 | AA110: =SUM(O110:W110) -> 0 | AB110: =SUM(O110:Z110) -> 53728
A111: 87 | B111: 50643-097 - Nouvelle école Sainte-Lucie: Mise en œuvre de mesures pour favoriser l'évitement d'émissions de GES | C111: CSDM | D111: Potetiel de Évitement de GES : 58,53 tCO2 | E111: Bâtiment | F111: 1 | G111: 06-Montréal | H111: Montréal | I111: AC-Actif | J111: SU-Subvention | K111: 128773 | L111: 2021-03-31 | M111: 2025-12-31 | W111: 128773 | X111: 0 | AA111: =SUM(O111:W111) -> 128773 | AB111: =SUM(O111:Z111) -> 128773
A112: 88 | B112: 50643-098 - Projet de réduction des GES: Modernisation des chaufferies de l'école Saint-Donas et du Centre de loisirs communautaires Lajeunesse | C112: CSDM | D112: Potetiel de Réduction de GES : 239,49 tCO2 | E112: Bâtiment | F112: 2 | G112: 06-Montréal | H112: Montréal | I112: AC-Actif | J112: SU-Subvention | K112: 528650 | L112: 2021-03-09 | M112: 2025-12-31 | N112: 720718 | W112: 482244.9567 | X112: 0 | Y112: 46405 | AA112: =SUM(O112:W112) -> 482244.9567 | AB112: =SUM(O112:Z112) -> 528649.9567
A113: 89 | B113: 50643-099 - Projet de réduction des GES: Modernisation de chaufferies - 23 bâtiments | C113: CSDM | D113: Potetiel de Réduction de GES : 2 664,26 tCO2 | E113: Bâtiment | F113: 23 | G113: 06-Montréal | H113: Montréal | I113: AC-Actif | J113: SU-Subvention | K113: 5976363 | L113: 2021-03-26 | M113: 2025-12-31 | N113: 6547839 | W113: 4119645.474 | X113: 1856718 | AA113: =SUM(O113:W113) -> 4119645.474 | AB113: =SUM(O113:Z113) -> 5976363.474
A114: 90 | B114: 50643-100 - Projet de réduction des GES: Remplacement de certaines chaudières au gaz par des chaudières électriques -- 2 bâtiments | C114: Marguérite-Bourgeoys | D114: Potetiel de Réduction de GES : 175,46 tCO2 | E114: Bâtiment | F114: 2 | G114: 06-Montréal | H114: Montréal | I114: AC-Actif | J114: SU-Subvention | K114: 396016 | L114: 2021-03-31 | M114: 2025-12-31 | N114: 618251 | W114: 0 | X114: 0 | Y114: 198008 | Z114: 198008 | AA114: =SUM(O114:W114) -> 0 | AB114: =SUM(O114:Z114) -> 396016
A115: 91 | B115: 50643-101 - Projet de réduction des GES: Modernisation de la chaufferie de l'école Dollard-des-Ormeaux - Remplacement des chaudière au GN par un système hybride (électrique et GN) | C115: Marguérite-Bourgeoys | D115: Potetiel de Réduction de GES : 76,26 tCO2 | E115: Bâtiment | F115: 1 | G115: 06-Montréal | H115: Montréal | I115: AC-Actif | J115: SU-Subvention | K115: 136640 | L115: 2021-03-31 | M115: 2025-12-31 | N115: 136640 | W115: 0 | X115: 0 | Y115: 68320 | Z115: 68320 | AA115: =SUM(O115:W115) -> 0 | AB115: =SUM(O115:Z115) -> 136640
A116: 92 | B116: 50643-102 - Projet de réduction des GES: Remplacement des chaudière au GN de l'école Saint-Clément Ouest par un système hybride (électrique et GN) | C116: Marguérite-Bourgeoys | D116: Potetiel de Réduction de GES : 153,19 tCO2 | E116: Bâtiment | F116: 1 | G116: 06-Montréal | H116: Mont-Royal | I116: AC-Actif | J116: SU-Subvention | K116: 191727 | L116: 2021-03-31 | M116: 2025-12-31 | N116: 191727 | W116: 0 | X116: 0 | Y116: 95863.5 | Z116: 95863.5 | AA116: =SUM(O116:W116) -> 0 | AB116: =SUM(O116:Z116) -> 191727
A117: 93 | B117: 50643-103 - Projet de réduction des GES: Remplacement des chaudière au GN de l'édifice Bois-Franc de l'école Bois-Franc-Aquarelle par un système hybride (électrique et GN) | C117: Marguérite-Bourgeoys | D117: Potetiel de Réduction de GES : 102,74 tCO2 | E117: Bâtiment | F117: 1 | G117: 06-Montréal | H117: Montréal | I117: AC-Actif | J117: SU-Subvention | K117: 148897 | L117: 2021-03-31 | M117: 2025-12-31 | N117: 148897 | W117: 0 | X117: 0 | Y117: 74448.5 | Z117: 74448.5 | AA117: =SUM(O117:W117) -> 0 | AB117: =SUM(O117:Z117) -> 148897
A118: 94 | B118: 50643-104 - Agrandissement de l'école Beau-Séjour Sud: ajout d'une chaudière électrique | C118: Marguérite-Bourgeoys | D118: Potetiel de Évitement de GES : 45,39 tCO2 | E118: Bâtiment | F118: 1 | G118: 06-Montréal | H118: Montréal | I118: AC-Actif | J118: SU-Subvention | K118: 95743 | L118: 2021-03-31 | M118: 2025-12-31 | N118: 95743 | W118: 0 | X118: 0 | Y118: 47871.5 | Z118: 47871.5 | AA118: =SUM(O118:W118) -> 0 | AB118: =SUM(O118:Z118) -> 95743
A119: 95 | B119: 50643-105 - Projet de réduction des GES: remplacement d'une chaudière GN de l'école Sainte-Geneviève Ouest par une chaudière électrique, installation d'un système de ventilation avec récupération de chaleur | C119: Marguérite-Bourgeoys | D119: Potetiel de Réduction de GES : 107,94 tCO2 | E119: Bâtiment | F119: 1 | G119: 06-Montréal | H119: Montréal | I119: AC-Actif | J119: SU-Subvention | K119: 153017 | L119: 2021-03-31 | M119: 2025-12-31 | N119: 153017 | W119: 0 | X119: 0 | Y119: 76508.5 | Z119: 76508.5 | AA119: =SUM(O119:W119) -> 0 | AB119: =SUM(O119:Z119) -> 153017
A120: 96 | B120: 50643-106 - Projet de réduction des GES: Modernisation de la chaufferie de l'école Pointe-Claire - Remplacement des chaudière au GN par un système hybride (chaudière électrique et chaudière GN) | C120: Marguérite-Bourgeoys | D120: Potetiel de Réduction de GES : 109,87 tCO2 | E120: Bâtiment | F120: 1 | G120: 06-Montréal | H120: Pointe-Claire | I120: AC-Actif | J120: SU-Subvention | K120: 164147 | L120: 2021-03-31 | M120: 2025-12-31 | N120: 164147 | W120: 0 | X120: 0 | Y120: 82073.5 | Z120: 82073.5 | AA120: =SUM(O120:W120) -> 0 | AB120: =SUM(O120:Z120) -> 164147
A121: 97 | B121: 50643-107 - Projet de réduction des GES: ajout de thermopompes en parallèles au système éxistant de l'école Nouvelle-Querbes | C121: Marguérite-Bourgeoys | D121: Potetiel de Réduction de GES : 42,97 tCO2 | E121: Bâtiment | F121: 1 | G121: 06-Montréal | H121: Montréal | I121: AC-Actif | J121: SU-Subvention | K121: 99543 | L121: 2021-03-31 | M121: 2025-12-31 | N121: 729815 | W121: 0 | X121: 0 | Y121: 49771.5 | Z121: 49771.5 | AA121: =SUM(O121:W121) -> 0 | AB121: =SUM(O121:Z121) -> 99543
A122: 98 | B122: 50643-108 - Projet de réduction des GES: Modernisation de la chaufferie de l'édifice 290 Deslauriers - Remplacement des chaudière au GN par un système hybride (chaudière électrique et chaudière GN) | C122: Marguérite-Bourgeoys | D122: Potetiel de Réduction de GES : 77,84 tCO2 | E122: Bâtiment | F122: 1 | G122: 06-Montréal | H122: Montréal | I122: AC-Actif | J122: SU-Subvention | K122: 175755 | L122: 2021-03-31 | M122: 2025-12-31 | N122: 197400 | W122: 0 | X122: 0 | Y122: 87877.5 | Z122: 87877.5 | AA122: =SUM(O122:W122) -> 0 | AB122: =SUM(O122:Z122) -> 175755
A123: 99 | B123: 50643-109 - Projet de réduction des GES: Remplacer la chaudière au GN de l'édifice Filion du CEA Outremont par des chaudières électriques | C123: Marguérite-Bourgeoys | D123: Potetiel de Réduction de GES : 18,48 tCO2 | E123: Bâtiment | F123: 1 | G123: 06-Montréal | H123: Montréal | I123: AC-Actif | J123: SU-Subvention | K123: 45147 | L123: 2021-03-09 | M123: 2025-12-31 | N123: 193277 | W123: 0 | X123: 0 | Y123: 22573.5 | Z123: 22573.5 | AA123: =SUM(O123:W123) -> 0 | AB123: =SUM(O123:Z123) -> 45147
A124: 100 | B124: 50643-110 - Projet de réduction des GES: Remplacer les chaudières au GN du centre d'éducation d'Outremont par des chaudières électriques | C124: Marguérite-Bourgeoys | D124: Potetiel de Réduction de GES : 117,59 tCO2 | E124: Bâtiment | F124: 1 | G124: 06-Montréal | H124: Montréal | I124: AC-Actif | J124: SU-Subvention | K124: 263196 | L124: 2021-03-31 | M124: 2025-12-31 | N124: 290115 | W124: 0 | X124: 0 | Y124: 131598 | Z124: 131598 | AA124: =SUM(O124:W124) -> 0 | AB124: =SUM(O124:Z124) -> 263196
A125: 101 | B125: 50643-111 - Agrandissement de l'école Saint-Rémi: Mise en œuvre de mesures pour favoriser l'évitement d'émissions de GES - Chaufferies séparées | C125: Marguérite-Bourgeoys | D125: Potetiel de Évitement de GES : 37,46 tCO2 | E125: Bâtiment | F125: 1 | G125: 06-Montréal | H125: Beaconsfield | I125: AC-Actif | J125: SU-Subvention | K125: 82410 | L125: 2021-03-18 | M125: 2025-12-31 | W125: 0 | X125: 0 | Y125: 41205 | Z125: 41205 | AA125: =SUM(O125:W125) -> 0 | AB125: =SUM(O125:Z125) -> 82410
A126: 102 | B126: 50643-112 - Agrandissement de l'école La Source: Mise en œuvre de mesures pour favoriser l'évitement d'émissions de GES | C126: Affluents | D126: Potetiel de Évitement de GES : 9,01 tCO2 | E126: Bâtiment | F126: 1 | G126: 14-Lanaudière | H126: Mascouche | I126: AC-Actif | J126: SU-Subvention | K126: 19822 | L126: 2021-03-26 | M126: 2025-12-31 | W126: 0 | X126: 0 | Y126: 9911 | Z126: 9911 | AA126: =SUM(O126:W126) -> 0 | AB126: =SUM(O126:Z126) -> 19822
A127: 103 | B127: 50643-113 - Agrandissement de l'école Félix-Leclerc: Mise en œuvre de mesures pour favoriser l'évitement d'émissions de GES - ajout d'un système de géothermie | C127: Affluents | D127: Potetiel de Évitement de GES : 18,44 tCO2 | E127: Bâtiment | F127: 1 | G127: 14-Lanaudière | H127: Repentigny | I127: AC-Actif | J127: SU-Subvention | K127: 39371 | L127: 2021-03-31 | M127: 2025-12-31 | W127: 0 | X127: 0 | Y127: 19685.5 | Z127: 19685.5 | AA127: =SUM(O127:W127) -> 0 | AB127: =SUM(O127:Z127) -> 39371
A128: 104 | B128: 50643-114 - Agrandissement de l'école Gareau: Mise en œuvre de mesures pour favoriser l'évitement d'émissions de GES - ajout d'un système de géothermie | C128: Affluents | D128: Potetiel de Évitement de GES : 37,32 tCO2 | E128: Bâtiment | F128: 1 | G128: 14-Lanaudière | H128: L'Assomption | I128: AC-Actif | J128: SU-Subvention | K128: 82093 | L128: 2021-03-31 | M128: 2025-12-31 | W128: 0 | X128: 0 | Y128: 41046.5 | Z128: 41046.5 | AA128: =SUM(O128:W128) -> 0 | AB128: =SUM(O128:Z128) -> 82093
A129: 105 | B129: 50643-115 - Projet de réduction des GES: Remplacement des systèmes fonctionnant au GN par des systèmes électriques - 2 bâtiments | C129: Affluents | D129: Potetiel de Réduction de GES : 102,41 tCO2 | E129: Bâtiment | F129: 2 | G129: 14-Lanaudière | H129: Plusieurs | I129: AC-Actif | J129: SU-Subvention | K129: 235306 | L129: 2021-03-31 | M129: 2025-12-31 | N129: 378514 | W129: 0 | X129: 0 | Y129: 117653 | Z129: 117653 | AA129: =SUM(O129:W129) -> 0 | AB129: =SUM(O129:Z129) -> 235306
A130: 106 | B130: 50643-116 - Agrandissement des écoles: Installation de systèmes d'aérothermie - 3 bâtiments | C130: Samares | D130: Potetiel de Évitement de GES : 51,0 tCO2 | E130: Bâtiment | F130: 3 | G130: 14-Lanaudière | H130: Plusieurs | I130: AC-Actif | J130: SU-Subvention | K130: 112200 | L130: 2021-03-09 | M130: 2025-12-31 | W130: 100980 | X130: 0 | Y130: 11220 | AA130: =SUM(O130:W130) -> 100980 | AB130: =SUM(O130:Z130) -> 112200
A131: 107 | B131: 50643-117 - Nouvelle école secondaire Mirabel: Mise en œuvre de mesures pour favoriser l'évitement d'émissions de GES | C131: Seigneurie-des-Mille-Îles | D131: Potetiel de Évitement de GES : 248,0 tCO2 | E131: Bâtiment | F131: 1 | G131: 14-Lanaudière | H131: N/D | I131: AC-Actif | J131: SU-Subvention | K131: 545600 | L131: 2021-03-09 | M131: 2025-12-31 | W131: 0 | X131: 0 | Y131: 272800 | Z131: 272800 | AA131: =SUM(O131:W131) -> 0 | AB131: =SUM(O131:Z131) -> 545600
A132: 108 | B132: 50643-118 - Modernisation de la chaufferie: Transformation de l'aile Girouard en école - installation d'un système de géothermie | C132: Saint-Hyacinthe | D132: Potetiel de Réduction de GES : 69,9 tCO2 | E132: Bâtiment | F132: 1 | G132: 16-Montérégie | H132: Saint-Hyacinthe | I132: AC-Actif | J132: SU-Subvention | K132: 153780 | L132: 2021-03-31 | M132: 2025-12-31 | W132: 78072.92308 | X132: 0 | Y132: 75707 | AA132: =SUM(O132:W132) -> 78072.92308 | AB132: =SUM(O132:Z132) -> 153779.9231
A133: 109 | B133: 50643-119 - Projet de réduction des GES: ajout d'un système de géothermie en parallèles au système éxistant de l'école Christ-Roi | C133: Marie-Victorin | D133: Potetiel de Réduction de GES : 47,89 tCO2 | E133: Bâtiment | F133: 1 | G133: 16-Montérégie | H133: Longueuil | I133: AC-Actif | J133: SU-Subvention | K133: 110380 | L133: 2021-03-31 | M133: 2025-12-31 | N133: 189891 | W133: 0 | X133: 0 | Y133: 55190 | Z133: 55190 | AA133: =SUM(O133:W133) -> 0 | AB133: =SUM(O133:Z133) -> 110380
A134: 110 | B134: 50643-120 - Agrandissement de l'école Christ-Roi: Installation d'un système de géothermie | C134: Marie-Victorin | D134: Potetiel de Évitement de GES : 52,0 tCO2 | E134: Bâtiment | F134: 1 | G134: 16-Montérégie | H134: Longueuil | I134: AC-Actif | J134: SU-Subvention | K134: 114400 | L134: 2021-03-31 | M134: 2025-12-31 | W134: 0 | X134: 0 | Y134: 57200 | Z134: 57200 | AA134: =SUM(O134:W134) -> 0 | AB134: =SUM(O134:Z134) -> 114400
A135: 111 | B135: 50643-121 - Nouvelle construction: Mise en œuvre de mesures pour favoriser l'évitement d'émissions de GES - immeuble des Glaieuls - utilisation de la géothermie | C135: Marie-Victorin | D135: Potetiel de Évitement de GES : 75,12 tCO2 | E135: Bâtiment | F135: 1 | G135: 16-Montérégie | H135: Longueuil | I135: AC-Actif | J135: SU-Subvention | K135: 165508 | L135: 2021-03-09 | M135: 2025-12-31 | W135: 0 | X135: 0 | Y135: 82754 | Z135: 82754 | AA135: =SUM(O135:W135) -> 0 | AB135: =SUM(O135:Z135) -> 165508
A136: 112 | B136: 50643-122 - Agrandissement de l'école Saint-Michelle-Archange: Remplacer la chaudière au mazout par un système de géothermie | C136: Grandes-Seigneuries | D136: Potetiel de Évitement de GES : 124,25 tCO2 | E136: Bâtiment | F136: 1 | G136: 16-Montérégie | H136: Saint-Michel | I136: AC-Actif | J136: SU-Subvention | K136: 278343 | L136: 2021-03-26 | M136: 2025-12-31 | N136: 2488170 | W136: 0 | X136: 0 | Y136: 139171.5 | Z136: 139171.5 | AA136: =SUM(O136:W136) -> 0 | AB136: =SUM(O136:Z136) -> 278343
A137: 113 | B137: 50643-123 - Nouvelle école Saint-Sylvère: Mise en œuvre de mesures pour augmenter l'évitement d'émissions de GES - système d'aérothermie | C137: Riveraine | D137: Potetiel de Évitement de GES : 22,0 tCO2 | E137: Bâtiment | F137: 1 | G137: 17-Centre-du-Québec | H137: Saint-Sylvère | I137: AC-Actif | J137: SU-Subvention | K137: 48407 | L137: 2021-03-22 | M137: 2025-12-31 | W137: 0 | X137: 0 | Y137: 24203.5 | Z137: 24203.5 | AA137: =SUM(O137:W137) -> 0 | AB137: =SUM(O137:Z137) -> 48407
A138: 114 | B138: 50643-124 - Nouvelle école Saint-Célestin: Mise en œuvre de mesures pour favoriser l'évitement d'émissions de GES - système d'aérothermie | C138: Riveraine | D138: Potetiel de Évitement de GES : 32,25 tCO2 | E138: Bâtiment | F138: 1 | G138: 17-Centre-du-Québec | H138: Saint-Célestin | I138: AC-Actif | J138: SU-Subvention | K138: 70957 | L138: 2021-03-18 | M138: 2025-12-31 | W138: 53217.75 | X138: 0 | Y138: 17739 | AA138: =SUM(O138:W138) -> 53217.75 | AB138: =SUM(O138:Z138) -> 70956.75
A139: 115 | B139: 50643-125 - Nouvelle Lab-école Shefford: Mise en œuvre de mesures pour favoriser l'évitement d'émissions de GES | C139: Val-des-Cerfs | D139: Potetiel de Évitement de GES : 49,14 tCO2 | E139: Bâtiment | F139: 1 | G139: 16-Montérégie | H139: Shefford | I139: AC-Actif | J139: SU-Subvention | K139: 108099 | L139: 2021-03-26 | M139: 2025-12-31 | W139: 1473.634981 | X139: 0 | Y139: 54049.5 | Z139: 52576 | AA139: =SUM(O139:W139) -> 1473.634981 | AB139: =SUM(O139:Z139) -> 108099.135
A140: 116 | B140: 50643-126 - Projet de réduction de GES: Modernisation des chaufferies - Installation de système de géothermie (Nouvelles-Technologies) et remplacement des chaudières au mazout par des électriques (Rose-des-Vents et Lucioles) | C140: Seigneurie-des-Mille-Îles | D140: Potetiel de Réduction de GES : 194,52 tCO2 | E140: Bâtiment | F140: 3 | G140: 15-Laurentides | H140: Plusieurs | I140: AC-Actif | J140: SU-Subvention | K140: 442945.25 | L140: 2021-03-31 | M140: 2025-12-31 | N140: 3094756 | W140: 442945.25 | X140: 0 | AA140: =SUM(O140:W140) -> 442945.25 | AB140: =SUM(O140:Z140) -> 442945.25
A141: 117 | B141: 50643-127 - Projet de réduction des GES: Modernisation des chaufferies - Installation de systèmes de géothermies - 3 bâtiments | C141: CSDM | D141: Potetiel de Réduction de GES : 436,99 tCO2 | E141: Bâtiment | F141: 3 | G141: 06-Montréal | H141: Montréal | I141: AC-Actif | J141: SU-Subvention | K141: 976378 | L141: 2021-03-31 | M141: 2025-12-31 | N141: 1243059 | W141: 697689.9707 | X141: 0 | Y141: 278688 | AA141: =SUM(O141:W141) -> 697689.9707 | AB141: =SUM(O141:Z141) -> 976377.9707
A142: 118 | B142: 50643-128 - Nouvelle écoles Longue-Pointe: Mise en œuvre de mesures pour augmenter l'évitement d'émissions de GES - Géothermie | C142: CSDM | D142: Potetiel de Évitement de GES : 80,09 tCO2 | E142: Bâtiment | F142: 1 | G142: 06-Montréal | H142: Montréal | I142: AC-Actif | J142: SU-Subvention | K142: 175569 | L142: 2021-03-31 | M142: 2025-12-31 | W142: 76838.11606 | X142: 0 | Y142: 87784.5 | Z142: 10946 | AA142: =SUM(O142:W142) -> 76838.11606 | AB142: =SUM(O142:Z142) -> 175568.6161
A143: 119 | B143: 50643-129 - Nouvelle Lab-école Marguerite-d-Youville: Mise en œuvre de mesures pour favoriser l'évitement d'émissions de GES | C143: Rives-Du-Saguenay | D143: Potetiel de Évitement de GES : 48,36 tCO2 | E143: Bâtiment | F143: 1 | G143: 02-Saguenay- Lac-Saint-Jean | H143: Saguenay | I143: AC-Actif | J143: SU-Subvention | K143: 106389.8 | L143: 2021-03-31 | M143: 2025-12-31 | W143: 0 | X143: 0 | Y143: 53194.9 | Z143: 53194.9 | AA143: =SUM(O143:W143) -> 0 | AB143: =SUM(O143:Z143) -> 106389.8
A144: 120 | B144: 50643-130 - Nouvelle école à Blainville, secteur Chambéry : Mise en œuvre de mesures pour augmenter l'évitement d'émissions de GES - Systèmes de géothermie | C144: Seigneurie-des-Mille-Îles | D144: Potetiel de Évitement de GES : 363,36 tCO2 | E144: Bâtiment | F144: 1 | G144: 15-Laurentides | H144: Blainville | I144: AC-Actif | J144: SU-Subvention | K144: 146887 | L144: 2021-03-26 | M144: 2025-12-31 | W144: 0 | X144: 0 | Y144: 73443.5 | Z144: 73443.5 | AA144: =SUM(O144:W144) -> 0 | AB144: =SUM(O144:Z144) -> 146887
A145: 121 | B145: 50643-131 - Nouvelle école Léry : Mise en œuvre de mesures pour augmenter l'évitement d'émissions de GES - système de géothermie | C145: Grandes-Seigneuries | D145: Potetiel de Évitement de GES : 67,32 tCO2 | E145: Bâtiment | F145: 1 | G145: 16-Montérégie | H145: Léry | I145: AC-Actif | J145: SU-Subvention | K145: 148095.2 | L145: 2021-03-26 | M145: 2025-12-31 | W145: 0 | X145: 0 | Y145: 74047.6 | Z145: 74047.6 | AA145: =SUM(O145:W145) -> 0 | AB145: =SUM(O145:Z145) -> 148095.2
A146: 122 | B146: 50643-132 - Agrandissment de l'école Deux-Soleils: Remplacement de 2 chaudières au mazout - Installation de thermopompe | C146: Des Sommets | D146: Potetiel de Évitement de GES : 41,23 tCO2 | E146: Bâtiment | F146: 2 | G146: 05-Estrie | H146: Magog | I146: AC-Actif | J146: SU-Subvention | K146: 95706 | L146: 2021-03-31 | M146: 2025-12-31 | W146: 0 | X146: 0 | Y146: 47853 | Z146: 47853 | AA146: =SUM(O146:W146) -> 0 | AB146: =SUM(O146:Z146) -> 95706
A147: 123 | B147: 50643-133 - Projet de réduction de GES: Piscine Sylvie-Bernier - Conversion vers géothermie | C147: des Découvreurs | D147: Potetiel de Réduction de GES : 337,49 tCO2 | E147: Bâtiment | F147: 1 | G147: 03-Capitale-Nationale | H147: Québec | I147: AC-Actif | J147: SU-Subvention | K147: 747487 | L147: 2021-03-31 | M147: 2025-12-31 | N147: 1395121 | W147: 0 | X147: 0 | Y147: 373743.5 | Z147: 373743.5 | AA147: =SUM(O147:W147) -> 0 | AB147: =SUM(O147:Z147) -> 747487
A148: 124 | B148: 50643-134 - Nouvelle école à Mirabel, secteur Domaine-Vert-Nord 2: Mise en œuvre de mesures pour favoriser l'évitement d'émissions de GES - Système de géothermie - | C148: Seigneurie-des-Mille-Îles | D148: Potetiel de Évitement de GES : 48,45 tCO2 | E148: Bâtiment | F148: 1 | G148: 15-Laurentides | H148: Mirabel | I148: AC-Actif | J148: SU-Subvention | K148: 106579 | L148: 2021-03-26 | M148: 2025-12-31 | W148: 0 | X148: 0 | Y148: 53289.5 | Z148: 53289.5 | AA148: =SUM(O148:W148) -> 0 | AB148: =SUM(O148:Z148) -> 106579
A149: 125 | B149: 50643-135 - Nouvelle école Saint-Augustin : Mise en œuvre de mesures pour augmenter l'évitement d'émissions de GES - Systèmes de géothermie - | C149: Seigneurie-des-Mille-Îles | D149: Potetiel de Évitement de GES : 45,9 tCO2 | E149: Bâtiment | F149: 1 | G149: 15-Laurentides | H149: Mirabel | I149: AC-Actif | J149: SU-Subvention | K149: 100989 | L149: 2021-03-26 | M149: 2025-12-31 | W149: 19543.36714 | X149: 0 | Y149: 50494.5 | Z149: 30951 | AA149: =SUM(O149:W149) -> 19543.36714 | AB149: =SUM(O149:Z149) -> 100988.8671
A150: 126 | B150: 50643-136 - Nouvelle école à Ste-Marthe-sur-le-Lac : Mise en œuvre de mesures pour augmenter l'évitement d'émissions de GES - Systèmes de géothermie - | C150: Seigneurie-des-Mille-Îles | D150: Potetiel de Évitement de GES : 66,77 tCO2 | E150: Bâtiment | F150: 1 | G150: 15-Laurentides | H150: Sainte-Marthe-sur-le-Lac | I150: AC-Actif | J150: SU-Subvention | K150: 146887 | L150: 2021-03-26 | M150: 2025-12-31 | W150: 0 | X150: 0 | Y150: 73443.5 | Z150: 73443.5 | AA150: =SUM(O150:W150) -> 0 | AB150: =SUM(O150:Z150) -> 146887
A151: 127 | B151: 50643-137 - Nouvelle école à Terrebonne 640N: Mise en œuvre de mesures pour augmenter l'évitement d'émissions de GES - Systèmes de géothermie - | C151: Seigneurie-des-Mille-Îles | D151: Potetiel de Évitement de GES : 58,11 tCO2 | E151: Bâtiment | F151: 1 | G151: 14-Lanaudière | H151: Terrebonne | I151: AC-Actif | J151: SU-Subvention | K151: 127846 | L151: 2021-03-26 | M151: 2025-12-31 | W151: 0 | X151: 0 | Y151: 63923 | Z151: 63923 | AA151: =SUM(O151:W151) -> 0 | AB151: =SUM(O151:Z151) -> 127846
A152: 128 | B152: 50643-138 - Nouvelle école à Terrebonne (Urbanova): Mise en œuvre de mesures pour augmenter l'évitement d'émissions de GES - Systèmes de géothermie - | C152: Seigneurie-des-Mille-Îles | D152: Potetiel de Évitement de GES : 77,37 tCO2 | E152: Bâtiment | F152: 1 | G152: 14-Lanaudière | H152: Terrebonne | I152: AC-Actif | J152: SU-Subvention | K152: 170212 | L152: 2021-03-26 | M152: 2025-12-31 | W152: 0 | X152: 0 | Y152: 85106 | Z152: 85106 | AA152: =SUM(O152:W152) -> 0 | AB152: =SUM(O152:Z152) -> 170212
A153: 129 | B153: 50643-139 - Nouveau Complexe Multi-sports Polyvalente de St-Georges: Mise en œuvre de mesures pour augmenter l'évitement d'émissions de GES - système d'aérothermie | C153: Beauce-Etchemin | D153: Potetiel de Évitement de GES : 39,69 tCO2 | E153: Bâtiment | F153: 1 | G153: 12-Chaudières-Appalaches | H153: Saint-Georges | I153: AC-Actif | J153: SU-Subvention | K153: 87307 | L153: 2021-03-31 | M153: 2025-12-31 | W153: 0 | X153: 0 | Y153: 43653.5 | Z153: 43653.5 | AA153: =SUM(O153:W153) -> 0 | AB153: =SUM(O153:Z153) -> 87307
A154: 130 | B154: 50643-140 - Agrandissement de l'école Marie-Victorin: Mise en œuvre de mesures pour favoriser l'évitement d'émissions de GES - utilisation de la géothermie | C154: Marie-Victorin | D154: Potetiel de Évitement de GES : 38,81 tCO2 | E154: Bâtiment | F154: 1 | G154: 16-Montérégie | H154: Brossard | I154: AC-Actif | J154: SU-Subvention | K154: 85382 | L154: 2021-03-31 | M154: 2025-12-31 | W154: 17429.60783 | X154: 0 | Y154: 42691 | Z154: 25261 | AA154: =SUM(O154:W154) -> 17429.60783 | AB154: =SUM(O154:Z154) -> 85381.60783
A155: 131 | B155: 50643-141 - Projet de réduction GES: Modernisation de chaufferie de l'école Marie-Victorin: Système de chauffage lié à l'agrandissement - géothermie | C155: Marie-Victorin | D155: Potetiel de Réduction de GES : 43,69 tCO2 | E155: Bâtiment | F155: 1 | G155: 16-Montérégie | H155: Brossard | I155: AC-Actif | J155: SU-Subvention | K155: 101140 | L155: 2021-03-31 | M155: 2025-12-31 | N155: 202896 | W155: 0 | X155: 0 | Y155: 50570 | Z155: 50570 | AA155: =SUM(O155:W155) -> 0 | AB155: =SUM(O155:Z155) -> 101140
A156: 132 | B156: 50643-144 - Projet de réduction GES: Modernisation de la chaufferie de l'école Bois-Joli: Remplacement des chaudières GN par système hybride (électrique et GN) | C156: Draveurs | D156: Potetiel de Réduction de GES : 55,9 tCO2 | E156: Bâtiment | F156: 1 | G156: 07-Outaouais | H156: Gatineau | I156: AC-Actif | J156: SU-Subvention | K156: 127985.7 | L156: 2021-03-31 | M156: 2025-12-31 | N156: 138746 | W156: 0 | X156: 0 | Y156: 63992.85 | Z156: 63992.85 | AA156: =SUM(O156:W156) -> 0 | AB156: =SUM(O156:Z156) -> 127985.7
A157: 133 | B157: 50643-145 - Agrandissement de l'école primaire Du Phare: Mise en œuvre de mesure pour favoriser l'évitement d'émission de GES | C157: Cote-du-sud | D157: Potetiel de Évitement de GES : 12,68 tCO2 | E157: Bâtiment | F157: 1 | G157: 12-Chaudières-Appalaches | H157: Saint-Michel-de-Bellechasse | I157: AC-Actif | J157: SU-Subvention | K157: 27900 | L157: 2021-03-31 | M157: 2025-12-31 | W157: 0 | X157: 0 | Y157: 13950 | Z157: 13950 | AA157: =SUM(O157:W157) -> 0 | AB157: =SUM(O157:Z157) -> 27900
A158: 134 | B158: 50643-146 - Projet de réduction GES: Modernisation de chaufferies: Remplacement chaudières au GN par des électriques - 3 bâtiments | C158: Marguérite-Bourgeoys | D158: Potetiel de Réduction de GES : 198,06 tCO2 | E158: Bâtiment | F158: 3 | G158: 06-Montréal | H158: Montréal | I158: AC-Actif | J158: SU-Subvention | K158: 450733.06 | L158: 2021-03-31 | M158: 2025-12-31 | N158: 932818 | W158: 0 | X158: 0 | Y158: 225366.53 | Z158: 225366.53 | AA158: =SUM(O158:W158) -> 0 | AB158: =SUM(O158:Z158) -> 450733.06
A159: 135 | B159: 50643-147 - Agrandissement de l'école Maclean: Mise en oeuvre de mesure pour favoriser l'évitement d'émission de GES | C159: Central Québec | D159: Potetiel de Évitement de GES : 31,39 tCO2 | E159: Bâtiment | F159: 1 | G159: 10-Nord-du-Québec | H159: Chibougamau | I159: AC-Actif | J159: SU-Subvention | K159: 69058 | L159: 2021-03-31 | M159: 2025-12-31 | W159: 0 | X159: 0 | Y159: 34529 | Z159: 34529 | AA159: =SUM(O159:W159) -> 0 | AB159: =SUM(O159:Z159) -> 69058
A160: 136 | B160: 50643-149 - Projet de réduction GES: Modernisation de chaufferies dans 3 écoles | C160: CSDM | D160: Potetiel de Réduction de GES : 825,66 tCO2 | E160: Bâtiment | F160: 3 | G160: 06-Montréal | H160: Montréal | I160: AC-Actif | J160: SU-Subvention | K160: 1831453.54 | L160: 2021-03-31 | M160: 2025-12-31 | N160: 5767568 | W160: 0 | X160: 0 | Y160: 915726.77 | Z160: 915726.77 | AA160: =SUM(O160:W160) -> 0 | AB160: =SUM(O160:Z160) -> 1831453.54
A161: 137 | B161: 50643-151 - Agrandissement de École secondaire Mont-Royal: Mise en oeuvre de mesure pour favoriser l'évitement d'émission de GES - chaufferies séparées | C161: Marguérite-Bourgeoys | D161: Potetiel de Évitement de GES : 42,94 tCO2 | E161: Bâtiment | F161: 1 | G161: 06-Montréal | H161: Montréal | I161: AC-Actif | J161: SU-Subvention | K161: 94476.8 | L161: 2021-03-09 | M161: 2025-12-31 | W161: 0 | X161: 0 | Y161: 47238.4 | Z161: 47238.4 | AA161: =SUM(O161:W161) -> 0 | AB161: =SUM(O161:Z161) -> 94476.8
A162: 138 | B162: 50643-152 - Projet de réduction GES: Modernisation de la chaufferie de l'école Marguerite-Bourgeoys | C162: Hautes-Rivières | D162: Potetiel de Réduction de GES : 119,93 tCO2 | E162: Bâtiment | F162: 1 | G162: 16-Montérégie | H162: Saint-Jean-sur-Richelieu | I162: AC-Actif | J162: SU-Subvention | K162: 268853 | L162: 2021-03-31 | M162: 2025-12-31 | N162: 1485202 | W162: 0 | X162: 0 | Y162: 134426.5 | Z162: 134426.5 | AA162: =SUM(O162:W162) -> 0 | AB162: =SUM(O162:Z162) -> 268853
A163: 139 | B163: 50643-153 - Projet de réduction GES: Rénovation de chaufferie du bâtiment Le 4835, avenue Christophe-Colomb (762059) | C163: CSDM | D163: Potetiel de Réduction de GES : 152,85 tCO2 | E163: Bâtiment | F163: 1 | G163: 06-Montréal | H163: Montréal | I163: AC-Actif | J163: SU-Subvention | K163: 341262 | L163: 2021-03-31 | M163: 2025-12-31 | N163: 429561 | W163: 0 | X163: 0 | Y163: 170631 | Z163: 170631 | AA163: =SUM(O163:W163) -> 0 | AB163: =SUM(O163:Z163) -> 341262
A164: 140 | B164: 50643-154 - Projet de réduction de GES: Modernisation des systèmes de ventilation fonctionnant au gaz de l'école Professionnelle des métiers, édifice Laurier (596) par des électriques. | C164: Hautes-Rivières | D164: Potetiel de Réduction de GES : 119,93 tCO2 | E164: Bâtiment | F164: 1 | G164: 16-Montérégie | H164: Saint-Jean-sur-Richelieu | I164: AC-Actif | J164: SU-Subvention | K164: 160838 | L164: 2021-03-31 | M164: 2025-12-31 | N164: 1485202 | W164: 0 | X164: 0 | Y164: 80419 | Z164: 80419 | AA164: =SUM(O164:W164) -> 0 | AB164: =SUM(O164:Z164) -> 160838
A165: 141 | B165: 50643-155 - Modernisation des chaufferies: Remplacement des chaudières GN par chaudière électrique et installation d'un système d'aérothermie (N-D-d-L) | C165: Hautes-Rivières | D165: Potetiel de Réduction de GES : 131,36 tCO2 | E165: Bâtiment | F165: 2 | G165: 16-Montérégie | H165: Saint-Jean-sur-Richelieu | I165: AC-Actif | J165: SU-Subvention | K165: 298996.77 | L165: 2021-03-31 | M165: 2025-12-31 | N165: 851157 | W165: 0 | X165: 0 | Y165: 149498.38 | Z165: 149498.38 | AA165: =SUM(O165:W165) -> 0 | AB165: =SUM(O165:Z165) -> 298996.76
A166: 142 | B166: 50643-156 - Agrandissement école secondaire École Armand‐Corbeil: Mise en œuvre de mesure pour favoriser l'évitement d'émission de GES - Installation | C166: Affluents | D166: Potetiel de Réduction et évitement de GES : 71,84 tCO2 | E166: Bâtiment | F166: 1 | G166: 14-Lanaudière | H166: Terrebonne | I166: AC-Actif | J166: SU-Subvention | K166: 158050 | L166: 2021-03-31 | M166: 2025-12-31 | W166: 0 | X166: 0 | Y166: 79025 | Z166: 79025 | AA166: =SUM(O166:W166) -> 0 | AB166: =SUM(O166:Z166) -> 158050
A167: 143 | B167: 50643-157 - Projet de réduction de GES: Modernisation de la chaufferie - raccordement du système de chauffage de la piscine à celui de l'agrandissement. | C167: Affluents | D167: Potetiel de Réduction et évitement de GES : 43,97 tCO2 | E167: Bâtiment | F167: 1 | G167: 14-Lanaudière | H167: Terrebonne | I167: AC-Actif | J167: SU-Subvention | K167: 100734 | L167: 2021-03-31 | M167: 2025-12-31 | N167: 254723 | W167: 0 | X167: 0 | Y167: 50367 | Z167: 50367 | AA167: =SUM(O167:W167) -> 0 | AB167: =SUM(O167:Z167) -> 100734
A168: 144 | B168: 50643-158 - Projet de réduction de GES: Modernisation de la chaufferie de l'école de la Voltige - Remplacement chaudières au gaz par une chaudière électrique | C168: Chemin du Roy | D168: Potetiel de Réduction de GES : 59,02 tCO2 | E168: Bâtiment | F168: 1 | G168: 04-Mauricie | H168: Trois-Rivière | I168: AC-Actif | J168: SU-Subvention | K168: 105155 | L168: 2021-03-31 | M168: 2025-12-31 | N168: 187753 | W168: 10515.38448 | X168: 0 | Y168: 52577.5 | Z168: 42062 | AA168: =SUM(O168:W168) -> 10515.38448 | AB168: =SUM(O168:Z168) -> 105154.8845
A169: 145 | B169: 50643-159 - Projet de réduction GES: Modernisation de la chaufferie du centre Durocher: réfection de la chaufferie - Aérothermie | C169: Rives-Du-Saguenay | D169: Potetiel de Réduction de GES : 37,65 tCO2 | E169: Bâtiment | F169: 1 | G169: 02-Saguenay- Lac-Saint-Jean | H169: Saguenay | I169: AC-Actif | J169: SU-Subvention | K169: 87835 | L169: 2021-03-31 | M169: 2025-12-31 | N169: 185940 | W169: 0 | X169: 0 | Y169: 43917.5 | Z169: 43917.5 | AA169: =SUM(O169:W169) -> 0 | AB169: =SUM(O169:Z169) -> 87835
A170: 146 | B170: 50643-160 - Agrandissement de l'école primaire Cuillierrier. Mise en œuvre de mesure pour favoriser l'évitement d'émission de GES avec de l'aérothermie | C170: Trois-Lacs | D170: Potetiel de Évitement de GES : 8,06 tCO2 | E170: Bâtiment | F170: 1 | G170: 16-Montérégie | H170: Saint-Clet | I170: AC-Actif | J170: SU-Subvention | K170: 17732 | L170: 2021-03-31 | M170: 2025-12-31 | W170: 0 | X170: 0 | Y170: 8866 | Z170: 8866 | AA170: =SUM(O170:W170) -> 0 | AB170: =SUM(O170:Z170) -> 17732
A171: 147 | B171: 50643-161 - Projet de réduction GES: Transformation du Centre communautaire Albert-Gariépy en école - Remplacement de chaudière au gaz par de la géothermie | C171: Marguérite-Bourgeoys | D171: Potetiel de Réduction de GES : 103,0 tCO2 | E171: Bâtiment | F171: 1 | G171: 06-Montréal | H171: Montréal | I171: AC-Actif | J171: SU-Subvention | K171: 231600 | L171: 2021-03-09 | M171: 2025-12-31 | N171: 1099370 | W171: 0 | X171: 0 | Y171: 115800 | Z171: 115800 | AA171: =SUM(O171:W171) -> 0 | AB171: =SUM(O171:Z171) -> 231600
A172: 148 | B172: 50643-163 - Agrandissement et réaménagement de l'école secondaire Le Carrefour: Mise en œuvre de mesure pour favoriser l'évitement d'émission de GES | C172: Patriotes | D172: Potetiel de Évitement de GES : 44,1 tCO2 | E172: Bâtiment | F172: 1 | G172: 16-Montérégie | H172: Varennes | I172: AC-Actif | J172: SU-Subvention | K172: 97020 | L172: 2021-03-31 | M172: 2025-12-31 | W172: 0 | X172: 0 | Y172: 48510 | Z172: 48510 | AA172: =SUM(O172:W172) -> 0 | AB172: =SUM(O172:Z172) -> 97020
A173: 149 | B173: 50643-164 - nouvelle école sur le terrain de l'école Trait-d 'Union: Mise en œuvre de mesure pour favoriser l'évitement d'émission de GES | C173: Seigneurie-des-Mille-Îles | D173: Potetiel de Évitement de GES : 41,75 tCO2 | E173: Bâtiment | F173: 1 | G173: 15-Laurentides | H173: Sainte-Thérèse | I173: AC-Actif | J173: SU-Subvention | K173: 91843 | L173: 2021-03-31 | M173: 2025-12-31 | W173: 0 | X173: 0 | Y173: 45921.5 | Z173: 45921.5 | AA173: =SUM(O173:W173) -> 0 | AB173: =SUM(O173:Z173) -> 91843
A174: 150 | B174: 50643-165 - Nouvelle école Félix-Antoine-Savard: Mise en œuvre de mesure pour favoriser l'évitement d'émission de GES | C174: Charlevoix | D174: Potetiel de Évitement de GES : 81,47 tCO2 | E174: Bâtiment | F174: 1 | G174: 03-Capitale-Nationale | H174: La Malbaie | I174: AC-Actif | J174: SU-Subvention | K174: 179234 | L174: 2021-03-31 | M174: 2025-12-31 | W174: 0 | X174: 0 | Y174: 89617 | Z174: 89617 | AA174: =SUM(O174:W174) -> 0 | AB174: =SUM(O174:Z174) -> 179234
A175: 151 | B175: 50643-166 - Agandissement de l'immeuble Bon-Séjour de l'École Au Coeur-des-Monts - Mise en œuvre de mesure pour favoriser l'évitement d'émission de GES | C175: Saint-Hyacinthe | D175: Potetiel de Évitement de GES : 12,05 tCO2 | E175: Bâtiment | F175: 1 | G175: 16-Montérégie | H175: Saint-Pie | I175: AC-Actif | J175: SU-Subvention | K175: 26257 | L175: 2021-03-09 | M175: 2025-12-31 | W175: 0 | X175: 0 | Y175: 13128.5 | Z175: 13128.5 | AA175: =SUM(O175:W175) -> 0 | AB175: =SUM(O175:Z175) -> 26257
A176: 152 | B176: 50643-167 - Projet de réduction GES: Modernisation de la chaufferie du Pavillon Clermont de l'école Boréal - Remplacement d'une chaudière au mazout par une électrique | C176: Lac-Abitibi | D176: Potetiel de Réduction de GES : 58,51 tCO2 | E176: Bâtiment | F176: 1 | G176: 08-Abitibi-Témiscamingue | H176: Clermont | I176: AC-Actif | J176: SU-Subvention | K176: 133722 | L176: 2021-03-09 | M176: 2025-12-31 | N176: 177210 | W176: 133722 | X176: 0 | AA176: =SUM(O176:W176) -> 133722 | AB176: =SUM(O176:Z176) -> 133722
A177: 153 | B177: 50643-168 - Nouvelle école Terre-Soleil: Mise en œuvre de mesure pour favoriser l'évitement d'émission de GES | C177: Seigneurie-des-Mille-Îles | D177: Potetiel de Évitement de GES : 58,63 tCO2 | E177: Bâtiment | F177: 1 | G177: 15-Laurentides | H177: Sainte-Thérèse | I177: AC-Actif | J177: SU-Subvention | K177: 128982 | L177: 2021-03-31 | M177: 2025-12-31 | W177: 0 | X177: 0 | Y177: 64491 | Z177: 64491 | AA177: =SUM(O177:W177) -> 0 | AB177: =SUM(O177:Z177) -> 128982
A178: 154 | B178: 50643-169 - Nouveau Centre de formation professionnelle Sainte-Justine-de-Newton - Mise en œuvre de mesure pour favoriser l'évitement d'émission de GES | C178: Trois-Lacs | D178: Potetiel de Évitement de GES : 14,54 tCO2 | E178: Bâtiment | F178: 1 | G178: 16-Montérégie | H178: Les Cèdres | I178: AC-Actif | J178: SU-Subvention | K178: 31986 | L178: 2021-03-09 | M178: 2025-12-31 | W178: 0 | X178: 0 | Y178: 15993 | Z178: 15993 | AA178: =SUM(O178:W178) -> 0 | AB178: =SUM(O178:Z178) -> 31986
A179: 155 | B179: 50643-171 - Nouvelle Lab École Rimouski: Mise en œuvre de mesure pour favoriser l'évitement d'émission de GES | C179: Phares | D179: Potetiel de Évitement de GES : 68,2 tCO2 | E179: Bâtiment | F179: 1 | G179: 01-Bas-Saint-Laurent | H179: Rimouski | I179: AC-Actif | J179: SU-Subvention | K179: 150029 | L179: 2021-03-31 | M179: 2025-12-31 | W179: 0 | X179: 0 | Y179: 75014.5 | Z179: 75014.5 | AA179: =SUM(O179:W179) -> 0 | AB179: =SUM(O179:Z179) -> 150029
A180: 156 | B180: 50643-172 - Projet de réduction GES: Modernisation de la chaufferie de 2 bâtiments - Remplacement de chaudières au mazout | C180: Seigneurie-des-Mille-Îles | D180: Potetiel de Réduction de GES : 39,54 tCO2 | E180: Bâtiment | F180: 2 | G180: 15-Laurentides | H180: Plusieurs | I180: AC-Actif | J180: SU-Subvention | K180: 96981 | L180: 2021-03-31 | M180: 2025-12-31 | N180: 330044 | W180: 0 | X180: 0 | Y180: 48490.5 | Z180: 48490.5 | AA180: =SUM(O180:W180) -> 0 | AB180: =SUM(O180:Z180) -> 96981
A181: 157 | B181: 50643-173 - Agrandissement de l'école de la Baie-Saint-François: Mise en œuvre de mesure pour favoriser l'évitement d'émission de GES | C181: Vallée-des-Tisserands | D181: Potetiel de Évitement de GES : 85,76 tCO2 | E181: Bâtiment | F181: 1 | G181: 16-Montérégie | H181: Salaberry-de-Valleyfield | I181: AC-Actif | J181: SU-Subvention | K181: 188672 | L181: 2021-03-31 | M181: 2025-12-31 | W181: 0 | X181: 0 | Y181: 94336 | Z181: 94336 | AA181: =SUM(O181:W181) -> 0 | AB181: =SUM(O181:Z181) -> 188672
A182: 158 | B182: 50643-174 - Nouvelle école à Saint-Hyacinthe: Mise en œuvre de mesure pour favoriser l'évitement d'émission de GES | C182: Saint-Hyacinthe | D182: Potetiel de Évitement de GES : 58,58 tCO2 | E182: Bâtiment | F182: 1 | G182: 16-Montérégie | H182: Sainte-Hyacinthe | I182: AC-Actif | J182: SU-Subvention | K182: 128867.2 | L182: 2021-03-31 | M182: 2025-12-31 | W182: 89431.07244 | X182: 0 | Y182: 39436 | AA182: =SUM(O182:W182) -> 89431.07244 | AB182: =SUM(O182:Z182) -> 128867.0724
A183: 159 | B183: 50643-176 - Projet de réduction GES: Modernisation de la chaufferie du siège social - Conversion chaudière au mazout vers électrique | C183: Hauts-Cantons | D183: Potetiel de Réduction de GES : 28,69 tCO2 | E183: Bâtiment | F183: 1 | G183: 05-Estrie | H183: East Angus | I183: AC-Actif | J183: SU-Subvention | K183: 68140 | L183: 2021-03-09 | M183: 2025-12-31 | N183: 232425 | W183: 6814 | X183: 0 | Y183: 34070 | Z183: 27256 | AA183: =SUM(O183:W183) -> 6814 | AB183: =SUM(O183:Z183) -> 68140
A184: 160 | B184: 50643-177 - Projet de réduction GES: Modernisation de la chaufferie de 4 bâtiments | C184: Hauts-Cantons | D184: Potetiel de Réduction de GES : 148,91 tCO2 | E184: Bâtiment | F184: 4 | G184: 05-Estrie | H184: Plusieurs | I184: AC-Actif | J184: SU-Subvention | K184: 347492 | L184: 2021-03-31 | M184: 2025-12-31 | N184: 897161 | W184: 208141 | X184: 0 | Y184: 139351 | AA184: =SUM(O184:W184) -> 208141 | AB184: =SUM(O184:Z184) -> 347492
A185: 161 | B185: 50643-178 - Agrandissement de l'école des Sentiers: Mise en œuvre de mesure pour favoriser l'évitement d'émission de GES | C185: Navigateurs | D185: Potetiel de Évitement de GES : 24,7 tCO2 | E185: Bâtiment | F185: 1 | G185: 12-Chaudières-Appalaches | H185: Saint-Apollinaire | I185: AC-Actif | J185: SU-Subvention | K185: 54340 | L185: 2021-03-31 | M185: 2025-12-31 | W185: 8151 | X185: 0 | Y185: 27170 | Z185: 19019 | AA185: =SUM(O185:W185) -> 8151 | AB185: =SUM(O185:Z185) -> 54340
A186: 162 | B186: 50643-179 - Projet de réduction GES: Modernisation de la chaufferie de l'école Antoine-Saint-Exupéry: Conversion d'une chaudière au gaz par une électrique | C186: Pointe-de-l'Île | D186: Potetiel de Réduction de GES : 142,59 tCO2 | E186: Bâtiment | F186: 1 | G186: 06-Montréal | H186: Montréal | I186: AC-Actif | J186: SU-Subvention | K186: 317720 | L186: 2021-03-31 | M186: 2025-12-31 | N186: 114639 | W186: 313823.2712 | X186: 0 | Y186: 3897 | AA186: =SUM(O186:W186) -> 313823.2712 | AB186: =SUM(O186:Z186) -> 317720.2712
A187: 163 | B187: 50643-180 - Projet de réduction GES: Modernisation de la chaufferie de l'école Saint-Michel: Remplacement de la chaudière à l'huile | C187: Chemin du Roy | D187: Potetiel de Réduction de GES : 29,96 tCO2 | E187: Bâtiment | F187: 1 | G187: 04-Mauricie | H187: Trois-Rivière | I187: AC-Actif | J187: SU-Subvention | K187: 68388 | L187: 2021-03-31 | M187: 2025-12-31 | N187: 174737 | W187: 0 | X187: 0 | Y187: 34194 | Z187: 34194 | AA187: =SUM(O187:W187) -> 0 | AB187: =SUM(O187:Z187) -> 68388
A188: 164 | B188: 50643-181 - Agrandissement de l'école Jean‐Baptiste‐Meilleur: Mise en œuvre de mesure pour favoriser l'évitement d'émission de GES | C188: Affluents | D188: Potetiel de Évitement de GES : 45,22 tCO2 | E188: Bâtiment | F188: 1 | G188: 14-Lanaudière | H188: Repentigny | I188: AC-Actif | J188: SU-Subvention | K188: 99484 | L188: 2021-03-31 | M188: 2025-12-31 | W188: 0 | X188: 0 | Y188: 49742 | Z188: 49742 | AA188: =SUM(O188:W188) -> 0 | AB188: =SUM(O188:Z188) -> 99484
A189: 165 | B189: 50643-182 - Agrandissement de l'école Notre-Dame: Mise en œuvre de mesure pour favoriser l'évitement d'émission de GES - ajout géothermie | C189: Sorel-Tracy | D189: Potetiel de Évitement de GES : 30,49 tCO2 | E189: Bâtiment | F189: 1 | G189: 16-Montérégie | H189: Yamaska | I189: AC-Actif | J189: SU-Subvention | K189: 67071 | L189: 2021-03-31 | M189: 2025-12-31 | W189: 0 | X189: 0 | Y189: 33535.5 | Z189: 33535.5 | AA189: =SUM(O189:W189) -> 0 | AB189: =SUM(O189:Z189) -> 67071
A190: 166 | B190: 50643-186 - Projet de réduction GES: Modernisation de la chaufferies de l'école de l'Épervière: Remplacement de chaudières au GN par de la géothermie + Agrandissement | C190: Navigateurs | D190: Potetiel de Réduction et évitement de GES : 34,26 tCO2 | E190: Bâtiment | F190: 1 | G190: 12-Chaudières-Appalaches | H190: Saint-Agapit | I190: AC-Actif | J190: SU-Subvention | K190: 122691 | L190: 2021-03-31 | M190: 2025-12-31 | N190: 1151708 | W190: 0 | X190: 0 | Y190: 61345.5 | Z190: 61345.5 | AA190: =SUM(O190:W190) -> 0 | AB190: =SUM(O190:Z190) -> 122691
A191: 167 | B191: 50643-187 - Agrandissement école des Quatre-Vents: Mise en œuvre de mesure pour favoriser l'évitement d'émission de GES | C191: Navigateurs | D191: Potetiel de Évitement de GES : 6,62 tCO2 | E191: Bâtiment | F191: 1 | G191: 12-Chaudières-Appalaches | H191: Saint-Apollinaire | I191: AC-Actif | J191: SU-Subvention | K191: 14568 | L191: 2021-03-31 | M191: 2025-12-31 | W191: 0 | X191: 0 | Y191: 7284 | Z191: 7284 | AA191: =SUM(O191:W191) -> 0 | AB191: =SUM(O191:Z191) -> 14568
A192: 168 | B192: 50643-188 - Agrandissement Sainte-Hélène: Mise en œuvre de mesure pour favoriser l'évitement d'émission de GES | C192: Navigateurs | D192: Potetiel de Évitement de GES : 6,62 tCO2 | E192: Bâtiment | F192: 1 | G192: 12-Chaudières-Appalaches | H192: Lévis | I192: AC-Actif | J192: SU-Subvention | K192: 14568 | L192: 2021-03-31 | M192: 2025-12-31 | W192: 0 | X192: 0 | Y192: 7284 | Z192: 7284 | AA192: =SUM(O192:W192) -> 0 | AB192: =SUM(O192:Z192) -> 14568
A193: 169 | B193: 50643-190 - Agrandissement école Bon-Pasteur (Gymnase): Mise en œuvre de mesure pour favoriser l'évitement d'émission de GES | C193: Baie-James | D193: Potetiel de Évitement de GES : 8,52 tCO2 | E193: Bâtiment | F193: 1 | G193: 10-Nord-du-Québec | H193: Chibougamau | I193: AC-Actif | J193: SU-Subvention | K193: 18736 | L193: 2021-03-09 | M193: 2025-12-31 | W193: 0 | X193: 0 | Y193: 9368 | Z193: 9368 | AA193: =SUM(O193:W193) -> 0 | AB193: =SUM(O193:Z193) -> 18736
A194: 170 | B194: 50643-191 - Agrandissement de l'école Mosaïque: Mise en œuvre de mesure pour favoriser l'évitement d'émission de GES | C194: Marguérite-Bourgeoys | D194: Potetiel de Évitement de GES : 33,93 tCO2 | E194: Bâtiment | F194: 1 | G194: 06-Montréal | H194: Côte-Saint-Luc | I194: AC-Actif | J194: SU-Subvention | K194: 74644 | L194: 2021-03-31 | M194: 2025-12-31 | W194: 0 | X194: 0 | Y194: 37322 | Z194: 37322 | AA194: =SUM(O194:W194) -> 0 | AB194: =SUM(O194:Z194) -> 74644
A195: 171 | B195: 50643-192 - Agrandissement de l'école Lajoie: Mise en œuvre de mesure pour favoriser l'évitement d'émission de GES - Remplacer les chaudières au GN par des chaudières électriques dans le bâtiment existant | C195: Marguérite-Bourgeoys | D195: Potetiel de Réduction et évitement de GES : 112,5 tCO2 | E195: Bâtiment | F195: 1 | G195: 06-Montréal | H195: Outremont | I195: AC-Actif | J195: SU-Subvention | K195: 286745 | L195: 2021-03-31 | M195: 2025-12-31 | N195: 606967 | W195: 0 | X195: 0 | Y195: 143372.5 | Z195: 143372.5 | AA195: =SUM(O195:W195) -> 0 | AB195: =SUM(O195:Z195) -> 286745
A196: 172 | B196: 50643-193 - Agrandissment de l'école Saint-Louis: Remplacer les chaudières au GN par des chaudières électriques dans le bâtiment existant et géothermie dans l'agrandissement | C196: Marguérite-Bourgeoys | D196: Potetiel de Réduction et évitement de GES : 82,76 tCO2 | E196: Bâtiment | F196: 1 | G196: 06-Montréal | H196: Pointe-Claire | I196: AC-Actif | J196: SU-Subvention | K196: 263931 | L196: 2021-03-31 | M196: 2025-12-31 | N196: 222012 | W196: 0 | X196: 0 | Y196: 131965.5 | Z196: 131965.5 | AA196: =SUM(O196:W196) -> 0 | AB196: =SUM(O196:Z196) -> 263931
A197: 173 | B197: 50643-194 - Projet de réduction GES: Modernisation de la chaufferie du CEA Champlain - Remplacer les chaudières au GN par des chaudières électriques | C197: Marguérite-Bourgeoys | D197: Potetiel de Réduction de GES : 176,45 tCO2 | E197: Bâtiment | F197: 1 | G197: 06-Montréal | H197: Montréal | I197: AC-Actif | J197: SU-Subvention | K197: 379985 | L197: 2021-03-09 | M197: 2025-12-31 | N197: 188687 | W197: 0 | X197: 0 | Y197: 189992.5 | Z197: 189992.5 | AA197: =SUM(O197:W197) -> 0 | AB197: =SUM(O197:Z197) -> 379985
A198: 174 | B198: 50643-195 - Agrandissment de l'école Paul-Guérin-Lajoie - Remplacer les chaudières au GN par des chaudières électriques dans le bâtiment existant et géothermie dans l'agrandissement | C198: Marguérite-Bourgeoys | D198: Potetiel de Réduction et évitement de GES : 33,08 tCO2 | E198: Bâtiment | F198: 1 | G198: 06-Montréal | H198: Montréal | I198: AC-Actif | J198: SU-Subvention | K198: 145132 | L198: 2021-03-31 | M198: 2025-12-31 | N198: 213152 | W198: 0 | X198: 0 | Y198: 72566 | Z198: 72566 | AA198: =SUM(O198:W198) -> 0 | AB198: =SUM(O198:Z198) -> 145132
A199: 175 | B199: 50643-200 - Mammouth - Construction d'une école secondaire dans l'arrondissement Charlesbourg (1256 places-élèves) | C199: des Premières-Seigneuries | D199: Potetiel de Évitement de GES : 174,0 tCO2 | E199: Bâtiment | F199: 1 | G199: 03-Capitale-Nationale | H199: Québec | I199: AC-Actif | J199: SU-Subvention | K199: 466400 | L199: 2021-03-31 | M199: 2025-12-31 | W199: 62777.44 | X199: 0 | Y199: 233200 | Z199: 170423 | AA199: =SUM(O199:W199) -> 62777.44 | AB199: =SUM(O199:Z199) -> 466400.44
A200: 176 | B200: 50643-201 - Mammouth - Construction d'une école secondaire à Anjou - Pointe-de-l'ile, projet A (1 863 places-élèves) | C200: Pointe-de-l'Île | D200: Potetiel de Évitement de GES : 245,0 tCO2 | E200: Bâtiment | F200: 1 | G200: 06-Montréal | H200: Montréal | I200: AC-Actif | J200: SU-Subvention | K200: 655600 | L200: 2021-03-31 | M200: 2025-12-31 | W200: 0 | X200: 0 | Y200: 327800 | Z200: 327800 | AA200: =SUM(O200:W200) -> 0 | AB200: =SUM(O200:Z200) -> 655600
A201: 177 | B201: 50643-202 - Mammouth - Contruction d'une école selondaire à Montréal-Nord / St-Léonard - Pointe-de-l'ile, projet B (1706 places-élèves) | C201: Pointe-de-l'Île | D201: Potetiel de Évitement de GES : 224,0 tCO2 | E201: Bâtiment | F201: 1 | G201: 06-Montréal | H201: Montréal | I201: AC-Actif | J201: SU-Subvention | K201: 598400 | L201: 2021-03-31 | M201: 2025-12-31 | W201: 0 | X201: 0 | Y201: 299200 | Z201: 299200 | AA201: =SUM(O201:W201) -> 0 | AB201: =SUM(O201:Z201) -> 598400
A202: 178 | B202: 50643-203 - Mammouth - Construction d'une école secondaire dans le secteur LaSalle (terrain Cégep André-Laurendeau) (1024 places-élèves) | C202: Marguérite-Bourgeoys | D202: Potetiel de Évitement de GES : 150,0 tCO2 | E202: Bâtiment | F202: 1 | G202: 06-Montréal | H202: Montréal | I202: AC-Actif | J202: SU-Subvention | K202: 400400 | L202: 2021-03-31 | M202: 2025-12-31 | W202: 0 | X202: 0 | Y202: 200200 | Z202: 200200 | AA202: =SUM(O202:W202) -> 0 | AB202: =SUM(O202:Z202) -> 400400
A203: 179 | B203: 50643-204 - Mammouth - Construction d'une école secondaire dans le secteur Nord-Ouest (secteur Ste-Geneviève - terrain Cégep Gérald-Godin) (913 places-élèves) | C203: Marguérite-Bourgeoys | D203: Potetiel de Évitement de GES : 139,0 tCO2 | E203: Bâtiment | F203: 1 | G203: 06-Montréal | H203: Montréal | I203: AC-Actif | J203: SU-Subvention | K203: 371800 | L203: 2021-03-31 | M203: 2025-12-31 | W203: 0 | X203: 0 | Y203: 185900 | Z203: 185900 | AA203: =SUM(O203:W203) -> 0 | AB203: =SUM(O203:Z203) -> 371800
A204: 180 | B204: 50643-205 - Mammouth - Construction d'une école primaire-secondaire à l'Île-des-Sœurs (18 classes du primaire et 959 places-élèves au secondaire) | C204: Marguérite-Bourgeoys | D204: Potetiel de Évitement de GES : 138,0 tCO2 | E204: Bâtiment | F204: 1 | G204: 06-Montréal | H204: Montréal | I204: AC-Actif | J204: SU-Subvention | K204: 369600 | L204: 2021-03-31 | M204: 2025-12-31 | W204: 0 | X204: 0 | Y204: 184800 | Z204: 184800 | AA204: =SUM(O204:W204) -> 0 | AB204: =SUM(O204:Z204) -> 369600
A205: 181 | B205: 50643-206 - Mammouth - Construction d'une école secondaire à Laval (2 150 places-élèves) | C205: Laval | D205: Potetiel de Évitement de GES : 283,0 tCO2 | E205: Bâtiment | F205: 1 | G205: 13-Laval | H205: Laval | I205: AC-Actif | J205: SU-Subvention | K205: 756800 | L205: 2021-03-31 | M205: 2025-12-31 | W205: 0 | X205: 0 | Y205: 378400 | Z205: 378400 | AA205: =SUM(O205:W205) -> 0 | AB205: =SUM(O205:Z205) -> 756800
A206: 182 | B206: 50643-207 - Mammouth - Construction d'une école secondaire à Terrebonne | C206: Affluents | D206: Potetiel de Évitement de GES : 174,0 tCO2 | E206: Bâtiment | F206: 1 | G206: 14-Lanaudière | H206: Terrebonne | I206: AC-Actif | J206: SU-Subvention | K206: 466400 | L206: 2021-03-31 | M206: 2025-12-31 | W206: 0 | X206: 0 | Y206: 233200 | Z206: 233200 | AA206: =SUM(O206:W206) -> 0 | AB206: =SUM(O206:Z206) -> 466400
A207: 183 | B207: 50643-208 - Mammouth - Construction d'une école secondaire à Mirabel (1 280 places-élèves) (Saint-Augustin) | C207: Seigneurie-des-Mille-Îles | D207: Potetiel de Évitement de GES : 184,0 tCO2 | E207: Bâtiment | F207: 1 | G207: 15-Laurentides | H207: Mirabel | I207: AC-Actif | J207: SU-Subvention | K207: 490600 | L207: 2021-03-31 | M207: 2025-12-31 | W207: 0 | X207: 0 | Y207: 245300 | Z207: 245300 | AA207: =SUM(O207:W207) -> 0 | AB207: =SUM(O207:Z207) -> 490600
A208: 184 | B208: 50643-209 - Mammouth - Construction d'une école secondaire à Saint-Jérôme (1 256 places-élèves) | C208: Rivière-du-Nord | D208: Potetiel de Évitement de GES : 174,0 tCO2 | E208: Bâtiment | F208: 1 | G208: 15-Laurentides | H208: Saint-Jérôme | I208: AC-Actif | J208: SU-Subvention | K208: 466400 | L208: 2021-03-31 | M208: 2025-12-31 | W208: 135010.5263 | X208: 0 | Y208: 233200 | Z208: 98189 | AA208: =SUM(O208:W208) -> 135010.5263 | AB208: =SUM(O208:Z208) -> 466399.5263
A209: 185 | B209: 50643-210 - Mammouth - Agrandissement de l'école secondaire de Chambly (1 365 places-élèves) | C209: Patriotes | D209: Potetiel de Évitement de GES : 182,0 tCO2 | E209: Bâtiment | F209: 1 | G209: 16-Montérégie | H209: Chambly | I209: AC-Actif | J209: SU-Subvention | K209: 486200 | L209: 2021-03-31 | M209: 2025-12-31 | W209: 0 | X209: 0 | Y209: 243100 | Z209: 243100 | AA209: =SUM(O209:W209) -> 0 | AB209: =SUM(O209:Z209) -> 486200
A210: 186 | B210: 50643-211 - Mammouth - Construction de l'école secondaire Louis-Philippe-Paré (2512 places-élèves) et démolition de l'infrastructure existante | C210: Grandes-Seigneuries | D210: Potetiel de Évitement de GES : 344,0 tCO2 | E210: Bâtiment | F210: 1 | G210: 16-Montérégie | H210: Châteauguay | I210: AC-Actif | J210: SU-Subvention | K210: 919600 | L210: 2021-03-31 | M210: 2025-12-31 | W210: 0 | X210: 0 | Y210: 459800 | Z210: 459800 | AA210: =SUM(O210:W210) -> 0 | AB210: =SUM(O210:Z210) -> 919600
A211: 187 | B211: 50643-212 - Mammouth - Construction d'une école secondaire à Vaudreuil-Dorion (1 256 places-élèves) | C211: Trois-Lacs | D211: Potetiel de Évitement de GES : 174,0 tCO2 | E211: Bâtiment | F211: 1 | G211: 16-Montérégie | H211: Vaudreuil-Dorion | I211: AC-Actif | J211: SU-Subvention | K211: 466400 | L211: 2021-03-31 | M211: 2025-12-31 | W211: 0 | X211: 0 | Y211: 233200 | Z211: 233200 | AA211: =SUM(O211:W211) -> 0 | AB211: =SUM(O211:Z211) -> 466400
A212: 188 | B212: 50643-213 - Mammouth - Construction d'une école secondaire à Saint-Zotique (1256 places-élèves) | C212: Trois-Lacs | D212: Potetiel de Évitement de GES : 174,0 tCO2 | E212: Bâtiment | F212: 1 | G212: 16-Montérégie | H212: Saint-Zotique | I212: AC-Actif | J212: SU-Subvention | K212: 466400 | L212: 2021-03-31 | M212: 2025-12-31 | W212: 0 | X212: 0 | Y212: 233200 | Z212: 233200 | AA212: =SUM(O212:W212) -> 0 | AB212: =SUM(O212:Z212) -> 466400
A213: 189 | B213: 50643-214 - Mammouth - Construction d'une école secondaire à Drummondville | C213: Chênes | D213: Potetiel de Évitement de GES : 174,0 tCO2 | E213: Bâtiment | F213: 1 | G213: 17-Centre-du-Québec | H213: Drummondville | I213: AC-Actif | J213: SU-Subvention | K213: 466400 | L213: 2021-03-31 | M213: 2025-12-31 | W213: 0 | X213: 0 | Y213: 233200 | Z213: 233200 | AA213: =SUM(O213:W213) -> 0 | AB213: =SUM(O213:Z213) -> 466400
A214: 190 | B214: 50643-300 - Nouveau Batiment: Mise en œuvre de mesure pour favoriser l'évitement d'émission de GES | C214: Kamouraska - Rivière-du-loup | D214: Potetiel de Évitement de GES : 62,5 tCO2 | E214: Bâtiment | F214: 1 | G214: 01-Bas-Saint-Laurent | H214: N/D | I214: AC-Actif | J214: SU-Subvention | K214: 137500 | L214: 2021-03-31 | M214: 2025-12-31 | W214: 0 | X214: 0 | Y214: 68750 | Z214: 68750 | AA214: =SUM(O214:W214) -> 0 | AB214: =SUM(O214:Z214) -> 137500
A215: 191 | B215: 50643-301 - Construction bâtiment - Saint-Modeste | C215: Kamouraska - Rivière-du-loup | D215: Potetiel de Réduction de GES : 16,27 tCO2 | E215: Bâtiment | F215: 1 | G215: 01-Bas-Saint-Laurent | H215: Saint-Modeste | I215: AC-Actif | J215: SU-Subvention | K215: 35794 | L215: 2021-03-31 | M215: 2025-12-31 | W215: 0 | X215: 0 | Y215: 17897 | Z215: 17897 | AA215: =SUM(O215:W215) -> 0 | AB215: =SUM(O215:Z215) -> 35794
... 162 more rows

Sheet GES
B2: =Utilitaire!E8 -> Plan d'action 2013-2020 sur les changements climatiques
B3: ="Action " & Accueil!D58 -> Action en cours
B4: =Accueil!D55 -> 11.5 | C4: =Accueil!E55 -> Investissements en infrastructures écoresponsables
B5: Ministère porteur : | C5: =Accueil!$D$65 -> MEQ
B6: GES
B19: Informations en date du : | D19: 2022-03-31
B20: Potentiel de réduction des GES évalué lors de la sélection des projets de cette action : | G20: Oui | I20: Réductions réelles quantifiables des émissions de GES attendues pour cette action : | O20: Oui
F22: ÉVALUATION DU POTENTIEL DE RÉDUCTION ET D'ÉVITEMENT D'ÉMISSIONS DE GES À TERME. | H22: DÉTAIL DES ÉMISSIONS DE GES RÉDUITES OU ÉVITÉES (en tonnes éq. CO2)
B23: Nom du projet | C23: Nom du requérant ou du bénéficiaire | D23: Région administrative | E23: Montant engagé ($) | F23: Potentiel de réduction des GES sur une base annuelle | G23: Horizon temporel pour la réalisation du potentiel | H23: Coût/tonne estimé | I23: Type d'émission | J23: Émissions rapportées dans l'inventaire | K23: Durée du projet | L23: Émissions | N23: Vérifiées | P23: 2013-2014 | R23: 2014-2015 | T23: 2015-2016 | V23: 2016-2017 | X23: 2017-2018 | Z23: 2018-2019 | AB23: 2019-2020 | AD23: 2020-2021 | AF23: 2021-2022 | AH23: 2022-2023 | AJ23: 2023-2024 | AL23: 2024-2025
F24: (tonnes éq. CO2) | H24: $ ------------ tonne éq. CO2 | K24: (années) | L24: Réduites | M24: Évitées | N24: Tierce partie | O24: M/O | P24: Vérifié | Q24: Non vérifié | R24: Vérifié | S24: Non vérifié | T24: Vérifié | U24: Non vérifié | V24: Vérifié | W24: Non vérifié | X24: Vérifié | Y24: Non vérifié | Z24: Vérifié | AA24: Non vérifié | AB24: Vérifié | AC24: Non vérifié | AD24: Vérifié | AE24: Non vérifié | AF24: Vérifié | AG24: Non vérifié | AH24: Vérifié | AI24: Non vérifié | AJ24: Vérifié | AK24: Non vérifié | AL24: Vérifié | AM24: Non vérifié
B25: =IF(LEN('Détail des projets'!B25)=0,"",'Détail des projets'!B25) -> 50643-002 - Modernisation du réseau de chauffage au mazout de l'école secondaire Marie-Rivier de Drummondville par de l'aérothermie et des chaudières électriques | C25: ='Détail des projets'!C25 -> Commission scolaire des Chênes | D25: =IF(LEN('Détail des projets'!G25)=0,"",'Détail des projets'!G25) -> 17-Centre-du-Québec | E25: =IF(LEN('Détail des projets'!K25)=0,"",'Détail des projets'!K25) -> 1026068 | F25: 464 | G25: À la fin du projet (suite au dernier versement) | H25: 128.8575 | K25: 25
B26: =IF(LEN('Détail des projets'!B26)=0,"",'Détail des projets'!B26) -> 50643-003 - Remplacement complet du système de chauffage au mazout par de la géothermie et ajout d'un système de ventilation à l'école St-Thomas-d'Aquin | C26: =IF(LEN('Détail des projets'!C26)=0,"",'Détail des projets'!C26) -> Commission scolaire de Saint-Hyacinthe | D26: =IF(LEN('Détail des projets'!G26)=0,"",'Détail des projets'!G26) -> 16-Montérégie | E26: =IF(LEN('Détail des projets'!K26)=0,"",'Détail des projets'!K26) -> 33714 | F26: 13 | G26: À la fin du projet (suite au dernier versement) | H26: 380.4384615 | K26: 40
B27: =IF(LEN('Détail des projets'!B27)=0,"",'Détail des projets'!B27) -> 50643-001 - Amélioration écoénergétique pour 4 bâtiments : Récupération de chaleur, Optimisation des réseaux de chauffage et de ventilation, Modernisation des contrôles centralisés et recommissioning | C27: =IF(LEN('Détail des projets'!C27)=0,"",'Détail des projets'!C27) -> Commission scolaire de l'Or-et-des-Bois | D27: =IF(LEN('Détail des projets'!G27)=0,"",'Détail des projets'!G27) -> 08-Abitibi-Témiscamingue | E27: =IF(LEN('Détail des projets'!K27)=0,"",'Détail des projets'!K27) -> 1569979 | F27: 705 | G27: À la fin du projet (suite au dernier versement) | H27: 137.0493617 | K27: 30
B28: =IF(LEN('Détail des projets'!B28)=0,"",'Détail des projets'!B28) -> 50643-004 - Projet de réduction de GES dans 3 écoles : Remplacement de chaudières au mazout par des chaudières électriques | C28: =IF(LEN('Détail des projets'!C28)=0,"",'Détail des projets'!C28) -> Commission scolaire de la Capitale | D28: =IF(LEN('Détail des projets'!G28)=0,"",'Détail des projets'!G28) -> 03-Capitale-Nationale | E28: =IF(LEN('Détail des projets'!K28)=0,"",'Détail des projets'!K28) -> 385839 | F28: 174 | G28: À la fin du projet (suite au dernier versement) | H28: 135.7374384 | K28: 35
B29: =IF(LEN('Détail des projets'!B29)=0,"",'Détail des projets'!B29) -> 50643-005 - Réduction de GES à l'école Larocque : Remplacement de la chaudière au gaz naturel par de la géothermie | C29: =IF(LEN('Détail des projets'!C29)=0,"",'Détail des projets'!C29) -> Commission scolaire de Saint-Hyacinthe | D29: =IF(LEN('Détail des projets'!G29)=0,"",'Détail des projets'!G29) -> 16-Montérégie | E29: =IF(LEN('Détail des projets'!K29)=0,"",'Détail des projets'!K29) -> 98280 | F29: 42 | G29: À la fin du projet (suite au dernier versement) | H29: 266.9654762 | K29: 40
B30: =IF(LEN('Détail des projets'!B30)=0,"",'Détail des projets'!B30) -> 50643-007 - Remplacement complet du système de chauffage au mazout par de la géothermie et ajout d'un système de ventilation à l'école aux Quatre-Vents - Immeuble St-Bernard | C30: =IF(LEN('Détail des projets'!C30)=0,"",'Détail des projets'!C30) -> Commission scolaire de Saint-Hyacinthe | D30: =IF(LEN('Détail des projets'!G30)=0,"",'Détail des projets'!G30) -> 16-Montérégie | E30: =IF(LEN('Détail des projets'!K30)=0,"",'Détail des projets'!K30) -> 44820 | F30: 18 | G30: À la fin du projet (suite au dernier versement) | H30: 198.0069444 | K30: 40
B31: =IF(LEN('Détail des projets'!B31)=0,"",'Détail des projets'!B31) -> 50643-011 - Réduction de GES à l'école René-Saint-Pierre : Remplacer les chaudières au gaz naturel par de l'aérothermie. | C31: =IF(LEN('Détail des projets'!C31)=0,"",'Détail des projets'!C31) -> Commission scolaire de Saint-Hyacinthe | D31: =IF(LEN('Détail des projets'!G31)=0,"",'Détail des projets'!G31) -> 16-Montérégie | E31: =IF(LEN('Détail des projets'!K31)=0,"",'Détail des projets'!K31) -> 297160 | F31: 133 | G31: À la fin du projet (suite au dernier versement) | H31: 165.9136842 | K31: 25
B32: =IF(LEN('Détail des projets'!B32)=0,"",'Détail des projets'!B32) -> 50643-006 - Réduction de GES à l'école Samuel-Casavant : Remplacer les chaudières au gaz naturel par de la géothermie | C32: =IF(LEN('Détail des projets'!C32)=0,"",'Détail des projets'!C32) -> Commission scolaire de Saint-Hyacinthe | D32: =IF(LEN('Détail des projets'!G32)=0,"",'Détail des projets'!G32) -> 16-Montérégie | E32: =IF(LEN('Détail des projets'!K32)=0,"",'Détail des projets'!K32) -> 263720 | F32: 118 | G32: À la fin du projet (suite au dernier versement) | H32: 117.0398305 | K32: 40
B33: =IF(LEN('Détail des projets'!B33)=0,"",'Détail des projets'!B33) -> 50643-008 - Dimunition des émissions de GES à l'école l'Escouade 2 : Remplacer la chaudière au mazout par une chaudière électrique. | C33: =IF(LEN('Détail des projets'!C33)=0,"",'Détail des projets'!C33) -> Commission scolaire des Premières Seigneuries | D33: =IF(LEN('Détail des projets'!G33)=0,"",'Détail des projets'!G33) -> 03-Capitale-Nationale | E33: =IF(LEN('Détail des projets'!K33)=0,"",'Détail des projets'!K33) -> 49440 | F33: 20 | G33: À la fin du projet (suite au dernier versement) | H33: 851.4171429 | K33: 35
B34: =IF(LEN('Détail des projets'!B34)=0,"",'Détail des projets'!B34) -> 50643-009 - Remplacement du système de chauffage au mazout du Centre administratif par de la géothermie | C34: =IF(LEN('Détail des projets'!C34)=0,"",'Détail des projets'!C34) -> Commission scolaire des Premières Seigneuries | D34: =IF(LEN('Détail des projets'!G34)=0,"",'Détail des projets'!G34) -> 03-Capitale-Nationale | E34: =IF(LEN('Détail des projets'!K34)=0,"",'Détail des projets'!K34) -> 105700 | F34: 46 | G34: À la fin du projet (suite au dernier versement) | H34: 288.1298913 | K34: 40
B35: =IF(LEN('Détail des projets'!B35)=0,"",'Détail des projets'!B35) -> 50643-010 - Réduction d'émissions de GES à l'école le Boisé 1 : Remplcer des chaudières au mazout par de la géothermie | C35: =IF(LEN('Détail des projets'!C35)=0,"",'Détail des projets'!C35) -> Commission scolaire des Premières Seigneuries | D35: =IF(LEN('Détail des projets'!G35)=0,"",'Détail des projets'!G35) -> 03-Capitale-Nationale | E35: =IF(LEN('Détail des projets'!K35)=0,"",'Détail des projets'!K35) -> 112580 | F35: 49 | G35: À la fin du projet (suite au dernier versement) | H35: 279.5081633 | K35: 40
B36: =IF(LEN('Détail des projets'!B36)=0,"",'Détail des projets'!B36) -> 50643-012 - Agrandissement du Centre-Ferland : Mise en œuvre de mesures pour augmenter l'évitement d'émissions de GES | C36: =IF(LEN('Détail des projets'!C36)=0,"",'Détail des projets'!C36) -> Commission scolaire de la Pointe-de-l'Île | D36: =IF(LEN('Détail des projets'!G36)=0,"",'Détail des projets'!G36) -> 06-Montréal | E36: =IF(LEN('Détail des projets'!K36)=0,"",'Détail des projets'!K36) -> 34210 | F36: 16 | G36: À la fin du projet (suite au dernier versement)
B37: =IF(LEN('Détail des projets'!B37)=0,"",'Détail des projets'!B37) -> 50643-13 - Agrandissement école Sainte-Colette : Mise en œuvre de mesures pour augmenter l'évitement d'émissions de GES | C37: =IF(LEN('Détail des projets'!C37)=0,"",'Détail des projets'!C37) -> Commission scolaire de la Pointe-de-l'Île | D37: =IF(LEN('Détail des projets'!G37)=0,"",'Détail des projets'!G37) -> 06-Montréal | E37: =IF(LEN('Détail des projets'!K37)=0,"",'Détail des projets'!K37) -> 35442 | F37: 16 | G37: À la fin du projet (suite au dernier versement)
B38: =IF(LEN('Détail des projets'!B38)=0,"",'Détail des projets'!B38) -> 50643-014 - Agrandissement école Montmartre : Mise en œuvre de mesures pour augmenter l'évitement d'émissions de GES | C38: =IF(LEN('Détail des projets'!C38)=0,"",'Détail des projets'!C38) -> Commission scolaire de la Pointe-de-l'Île | D38: =IF(LEN('Détail des projets'!G38)=0,"",'Détail des projets'!G38) -> 06-Montréal | E38: =IF(LEN('Détail des projets'!K38)=0,"",'Détail des projets'!K38) -> 24904 | F38: 11 | G38: À la fin du projet (suite au dernier versement)
B39: =IF(LEN('Détail des projets'!B39)=0,"",'Détail des projets'!B39) -> 50643-015 - Agrandissement école Sainte-Marguerite-Bourgeoys : Mise en œuvre de mesures pour augmenter l'évitement d'émissions de GES | C39: =IF(LEN('Détail des projets'!C39)=0,"",'Détail des projets'!C39) -> Commission scolaire de la Pointe-de-l'Île | D39: =IF(LEN('Détail des projets'!G39)=0,"",'Détail des projets'!G39) -> 06-Montréal | E39: =IF(LEN('Détail des projets'!K39)=0,"",'Détail des projets'!K39) -> 38390 | F39: 17 | G39: À la fin du projet (suite au dernier versement)
B40: =IF(LEN('Détail des projets'!B40)=0,"",'Détail des projets'!B40) -> 50643-016 - Projet de réduction de GES dans 3 écoles : Remplacement de chaudières au mazout par des chaudières électriques et amélioration de l'enveloppe des bâtiments. | C40: =IF(LEN('Détail des projets'!C40)=0,"",'Détail des projets'!C40) -> Commission scolaire Harricana | D40: =IF(LEN('Détail des projets'!G40)=0,"",'Détail des projets'!G40) -> 08-Abitibi-Témiscamingue | E40: =IF(LEN('Détail des projets'!K40)=0,"",'Détail des projets'!K40) -> 250442 | F40: 109 | G40: À la fin du projet (suite au dernier versement) | H40: 113.9992136 | K40: 35
B41: =IF(LEN('Détail des projets'!B41)=0,"",'Détail des projets'!B41) -> 50643-017 - Projet de remplacement de 3 chaudières au mazout par des chaudières électriques et des accumulateurs thermiques dans 3 écoles | C41: =IF(LEN('Détail des projets'!C41)=0,"",'Détail des projets'!C41) -> Commission scolaires des Affluents | D41: =IF(LEN('Détail des projets'!G41)=0,"",'Détail des projets'!G41) -> 14-Lanaudière | E41: =IF(LEN('Détail des projets'!K41)=0,"",'Détail des projets'!K41) -> 467100 | F41: 205.5 | G41: À la fin du projet (suite au dernier versement) | H41: 91.14466458 | K41: 35
B42: =IF(LEN('Détail des projets'!B42)=0,"",'Détail des projets'!B42) -> 50643-020 - Projet de réduction de la consommation énergétique et des émissions de GES à l'école St-Félix-de-Kingsey | C42: =IF(LEN('Détail des projets'!C42)=0,"",'Détail des projets'!C42) -> Commission scolaire des Chênes | D42: =IF(LEN('Détail des projets'!G42)=0,"",'Détail des projets'!G42) -> 17-Centre-du-Québec | E42: =IF(LEN('Détail des projets'!K42)=0,"",'Détail des projets'!K42) -> 114472 | F42: 50 | G42: À la fin du projet (suite au dernier versement) | H42: 239.7968 | K42: 25
B43: =IF(LEN('Détail des projets'!B43)=0,"",'Détail des projets'!B43) -> 50643-019 - Projet de réduction et d'évitement de GES : Ajout d'une chaudière électrique pour chauffer l'agrandissement et réduire l'utilisation de la chaudière au gaz naturel de la partie existante de l'école Alexander-Wolff | C43: =IF(LEN('Détail des projets'!C43)=0,"",'Détail des projets'!C43) -> Commission scolaire de la Capitale | D43: =IF(LEN('Détail des projets'!G43)=0,"",'Détail des projets'!G43) -> 03-Capitale-Nationale | E43: =IF(LEN('Détail des projets'!K43)=0,"",'Détail des projets'!K43) -> 367826 | F43: 166.2 | G43: À la fin du projet (suite au dernier versement) | H43: 67.1265257 | K43: 35
B44: =IF(LEN('Détail des projets'!B44)=0,"",'Détail des projets'!B44) -> 50643-022 - Projet d'efficacité énergétique et de remplacement de chaudières au mazout par de la géothermie dans 3 écoles | C44: =IF(LEN('Détail des projets'!C44)=0,"",'Détail des projets'!C44) -> Commission scolaire de la Seigneurie-des-Mille-Îles | D44: =IF(LEN('Détail des projets'!G44)=0,"",'Détail des projets'!G44) -> 15-Laurentides | E44: =IF(LEN('Détail des projets'!K44)=0,"",'Détail des projets'!K44) -> 194520 | F44: 81.6 | G44: À la fin du projet (suite au dernier versement) | H44: 248.6240809 | K44: 40
B45: =IF(LEN('Détail des projets'!B45)=0,"",'Détail des projets'!B45) -> 50643-023 - Projet de modernisation de la chaufferie de l'école Samuel-de-Chaplain : Remplacer 3 chaudières au gaz naturel par de l'aérothermie | C45: =IF(LEN('Détail des projets'!C45)=0,"",'Détail des projets'!C45) -> Commissin scolaire des Premières-Seigneuries | D45: =IF(LEN('Détail des projets'!G45)=0,"",'Détail des projets'!G45) -> 03-Capitale-Nationale | E45: =IF(LEN('Détail des projets'!K45)=0,"",'Détail des projets'!K45) -> 760106 | F45: 343.2 | G45: À la fin du projet (suite au dernier versement) | H45: 200.4157343 | K45: 25
B46: =IF(LEN('Détail des projets'!B46)=0,"",'Détail des projets'!B46) -> 50643-034 - Projet de réduction de GES : Remplacement de la chaudière au mazout par de la géothermie. | C46: =IF(LEN('Détail des projets'!C46)=0,"",'Détail des projets'!C46) -> Commission scolaire New-Frontiers | D46: =IF(LEN('Détail des projets'!G46)=0,"",'Détail des projets'!G46) -> 16-Montérégie | E46: =IF(LEN('Détail des projets'!K46)=0,"",'Détail des projets'!K46) -> 233534 | F46: 104 | G46: À la fin du projet (suite au dernier versement) | H46: 114.6879808 | K46: 40
B47: =IF(LEN('Détail des projets'!B47)=0,"",'Détail des projets'!B47) -> 50643-035 - Projet de réduction de GES : Remplacement de la chaudière au mazout par de l'aérothermie. | C47: =IF(LEN('Détail des projets'!C47)=0,"",'Détail des projets'!C47) -> Commission scolaire des Premières Seigneuries | D47: =IF(LEN('Détail des projets'!G47)=0,"",'Détail des projets'!G47) -> 03-Capitale-Nationale | E47: =IF(LEN('Détail des projets'!K47)=0,"",'Détail des projets'!K47) -> 64686 | F47: 27 | G47: À la fin du projet (suite au dernier versement) | H47: 912.0607407 | K47: 25
B48: =IF(LEN('Détail des projets'!B48)=0,"",'Détail des projets'!B48) -> 50643-033 - Projets de réduction des GES : Plusieurs remplacements de chaudières au mazout par de la géothermie, de l'aérothermie, des chaudières électriques. | C48: =IF(LEN('Détail des projets'!C48)=0,"",'Détail des projets'!C48) -> Commission scolaire de Saint-Hyacinthe | D48: =IF(LEN('Détail des projets'!G48)=0,"",'Détail des projets'!G48) -> 16-Montérégie | E48: =IF(LEN('Détail des projets'!K48)=0,"",'Détail des projets'!K48) -> 906092 | F48: 394 | G48: À la fin du projet (suite au dernier versement) | H48: 344.1324873 | K48: 30
B49: =IF(LEN('Détail des projets'!B49)=0,"",'Détail des projets'!B49) -> 50643-036 - Projet de réduction des GES : réduire l'utilisation du chauffage au mazout par l'introduction du chauffage par de l'aérothermie. | C49: =IF(LEN('Détail des projets'!C49)=0,"",'Détail des projets'!C49) -> Commission scolaire de Portneuf | D49: =IF(LEN('Détail des projets'!G49)=0,"",'Détail des projets'!G49) -> 03-Capitale-Nationale | E49: =IF(LEN('Détail des projets'!K49)=0,"",'Détail des projets'!K49) -> 92500 | F49: 37 | G49: À la fin du projet (suite au dernier versement) | H49: 199.3891892 | K49: 25
B50: =IF(LEN('Détail des projets'!B50)=0,"",'Détail des projets'!B50) -> 50643-037 - Projet de réduction de GES : Conversion du mode chauffage bi-énergie (mazout-électricité) en 100% électrique | C50: =IF(LEN('Détail des projets'!C50)=0,"",'Détail des projets'!C50) -> Commission scolaire des Hauts-Cantons | D50: =IF(LEN('Détail des projets'!G50)=0,"",'Détail des projets'!G50) -> 05-Estrie | E50: =IF(LEN('Détail des projets'!K50)=0,"",'Détail des projets'!K50) -> 368689 | F50: 278.9 | G50: À la fin du projet (suite au dernier versement) | H50: 114.4485479 | K50: 30
B51: =IF(LEN('Détail des projets'!B51)=0,"",'Détail des projets'!B51) -> 50643-038 - Construction d'une nouvelle école primaire : Mise en œuvre de mesures pour augmenter l'évitement d'émissions de GES | C51: =IF(LEN('Détail des projets'!C51)=0,"",'Détail des projets'!C51) -> Commission scolaire Marguérite-Boureoys | D51: =IF(LEN('Détail des projets'!G51)=0,"",'Détail des projets'!G51) -> 06-Montréal | E51: =IF(LEN('Détail des projets'!K51)=0,"",'Détail des projets'!K51) -> 132840 | F51: 60.8 | G51: À la fin du projet (suite au dernier versement)
B52: =IF(LEN('Détail des projets'!B52)=0,"",'Détail des projets'!B52) -> 50643-039 - Construction d'une nouvelle école primaire : Mise en œuvre de mesures pour augmenter l'évitement d'émissions de GES | C52: =IF(LEN('Détail des projets'!C52)=0,"",'Détail des projets'!C52) -> Commission scolaire Kativik | D52: =IF(LEN('Détail des projets'!G52)=0,"",'Détail des projets'!G52) -> 10-Nord-du-Québec | E52: =IF(LEN('Détail des projets'!K52)=0,"",'Détail des projets'!K52) -> 237151 | F52: 107.8 | G52: À la fin du projet (suite au dernier versement)
B53: =IF(LEN('Détail des projets'!B53)=0,"",'Détail des projets'!B53) -> 50643-040 - Travaux de modernisation de chaufferies : Remplacer 5 chaudières au mazout par des chaudières électriques et optimiser les contrôles des bâtiments. | C53: =IF(LEN('Détail des projets'!C53)=0,"",'Détail des projets'!C53) -> Commission scolaire des Laurentides | D53: =IF(LEN('Détail des projets'!G53)=0,"",'Détail des projets'!G53) -> 15-Laurentides | E53: =IF(LEN('Détail des projets'!K53)=0,"",'Détail des projets'!K53) -> 245000 | F53: 100 | G53: À la fin du projet (suite au dernier versement) | H53: 99.19885714 | K53: 35
B54: =IF(LEN('Détail des projets'!B54)=0,"",'Détail des projets'!B54) -> 50643-041 - Agrandissement de l'école Jean-Nicolet : Mise en œuvre de mesures pour augmenter l'évitement d'émissions de GES | C54: =IF(LEN('Détail des projets'!C54)=0,"",'Détail des projets'!C54) -> Commission scolaire de la Pointe-de-l'Île | D54: =IF(LEN('Détail des projets'!G54)=0,"",'Détail des projets'!G54) -> 06-Montréal | E54: =IF(LEN('Détail des projets'!K54)=0,"",'Détail des projets'!K54) -> 41599 | F54: 18.9 | G54: À la fin du projet (suite au dernier versement)
B55: =IF(LEN('Détail des projets'!B55)=0,"",'Détail des projets'!B55) -> 50643-018 - Projet de réduction et d'évitement (Agrandissement) de GES : Ajout d'une chaudière électrique ainsi que d'une thermopompe | C55: =IF(LEN('Détail des projets'!C55)=0,"",'Détail des projets'!C55) -> Centre de services scolaires de la Capitale | D55: =IF(LEN('Détail des projets'!G55)=0,"",'Détail des projets'!G55) -> 03-Capitale-Nationale | E55: =IF(LEN('Détail des projets'!K55)=0,"",'Détail des projets'!K55) -> 57979 | F55: 21 | G55: À la fin du projet (suite au dernier versement)
B56: =IF(LEN('Détail des projets'!B56)=0,"",'Détail des projets'!B56) -> 50643-021 - Projet de modernisation de la chaufferie des 3 écoles : Remplacer les chaudières au mazout par une chaudière électrique | C56: =IF(LEN('Détail des projets'!C56)=0,"",'Détail des projets'!C56) -> Commission scolaire Lester-B-Pearson | D56: =IF(LEN('Détail des projets'!G56)=0,"",'Détail des projets'!G56) -> 06-Montréal | E56: =IF(LEN('Détail des projets'!K56)=0,"",'Détail des projets'!K56) -> 761548 | F56: 339 | G56: À la fin du projet (suite au dernier versement) | H56: 98.5359882 | K56: 30
B57: =IF(LEN('Détail des projets'!B57)=0,"",'Détail des projets'!B57) -> 50643-054 - Agrandissement de l'école: Mise en œuvre de mesures pour augmenter l'évitement d'émissions de GES | C57: =IF(LEN('Détail des projets'!C57)=0,"",'Détail des projets'!C57) -> Centre de services scolaires des Grandes Seigneuries
B58: =IF(LEN('Détail des projets'!B58)=0,"",'Détail des projets'!B58) -> 50643-045 - Remplacer la chaudière au mazout par une chaudière électrique | C58: =IF(LEN('Détail des projets'!C58)=0,"",'Détail des projets'!C58) -> Centre de services scolaires de la Seigneurie-des-Mille-Îles | D58: =IF(LEN('Détail des projets'!G58)=0,"",'Détail des projets'!G58) -> 15-Laurentides | E58: =IF(LEN('Détail des projets'!K58)=0,"",'Détail des projets'!K58) -> 133420 | F58: 56 | G58: À la fin du projet (suite au dernier versement) | H58: 421.3892857 | K58: 30
B59: =IF(LEN('Détail des projets'!B59)=0,"",'Détail des projets'!B59) -> 50643-048 - Nouvelle école : Mise en œuvre de mesures pour augmenter l'évitement d'émissions de GES - Géothermie | C59: =IF(LEN('Détail des projets'!C59)=0,"",'Détail des projets'!C59) -> Centre de services scolaires Marie-Victorin | D59: =IF(LEN('Détail des projets'!G59)=0,"",'Détail des projets'!G59) -> 16-Montérégie | E59: =IF(LEN('Détail des projets'!K59)=0,"",'Détail des projets'!K59) -> 147343 | F59: 67 | G59: À la fin du projet (suite au dernier versement)
B60: =IF(LEN('Détail des projets'!B60)=0,"",'Détail des projets'!B60) -> 50643-050 - Remplacement des systèmes CVAC et d'une chaudière au gaz naturel par une chaudière électrique | C60: =IF(LEN('Détail des projets'!C60)=0,"",'Détail des projets'!C60) -> Pointe-de-l'Île | D60: =IF(LEN('Détail des projets'!G60)=0,"",'Détail des projets'!G60) -> 06-Montréal | E60: =IF(LEN('Détail des projets'!K60)=0,"",'Détail des projets'!K60) -> 119400 | F60: 52 | G60: À la fin du projet (suite au dernier versement) | H60: 128.1141026 | K60: 30
B61: =IF(LEN('Détail des projets'!B61)=0,"",'Détail des projets'!B61) -> 50643-055 - Nouvelle école : Mise en œuvre de mesures pour augmenter l'évitement d'émissions de GES | C61: =IF(LEN('Détail des projets'!C61)=0,"",'Détail des projets'!C61) -> des-Trois-Lacs | D61: =IF(LEN('Détail des projets'!G61)=0,"",'Détail des projets'!G61) -> 16-Montérégie | E61: =IF(LEN('Détail des projets'!K61)=0,"",'Détail des projets'!K61) -> 140822 | F61: 64 | G61: À la fin du projet (suite au dernier versement)
B62: =IF(LEN('Détail des projets'!B62)=0,"",'Détail des projets'!B62) -> 50643-056 - Nouveau centre de formation : Mise en œuvre de mesures pour augmenter l'évitement d'émissions de GES | C62: =IF(LEN('Détail des projets'!C62)=0,"",'Détail des projets'!C62) -> des-Trois-Lacs | D62: =IF(LEN('Détail des projets'!G62)=0,"",'Détail des projets'!G62) -> 16-Montérégie | E62: =IF(LEN('Détail des projets'!K62)=0,"",'Détail des projets'!K62) -> 52998 | F62: 24 | G62: À la fin du projet (suite au dernier versement)
B63: =IF(LEN('Détail des projets'!B63)=0,"",'Détail des projets'!B63) -> 50643-057 - Remplacement des chaudières au Mazout par de la géothermie et une chaudière électrique | C63: =IF(LEN('Détail des projets'!C63)=0,"",'Détail des projets'!C63) -> de Montréal | D63: =IF(LEN('Détail des projets'!G63)=0,"",'Détail des projets'!G63) -> 06-Montréal | E63: =IF(LEN('Détail des projets'!K63)=0,"",'Détail des projets'!K63) -> 236000 | F63: 105 | G63: À la fin du projet (suite au dernier versement) | H63: 544.8631746 | K63: 30
B64: =IF(LEN('Détail des projets'!B64)=0,"",'Détail des projets'!B64) -> 50643-061 - Projets de réduction des GES : Élimination des chaudières au mazout et installation d'un système de géothermie | C64: =IF(LEN('Détail des projets'!C64)=0,"",'Détail des projets'!C64) -> de Saint-Hyacinthe | D64: =IF(LEN('Détail des projets'!G64)=0,"",'Détail des projets'!G64) -> 16-Montérégie | E64: =IF(LEN('Détail des projets'!K64)=0,"",'Détail des projets'!K64) -> 84200 | F64: 36 | G64: À la fin du projet (suite au dernier versement) | H64: 131.3888889 | K64: 40
B65: =IF(LEN('Détail des projets'!B65)=0,"",'Détail des projets'!B65) -> 50643-047 - Remplacer les chaudières au mazout par des chaudières électriques et des accumulateurs thermiques | C65: =IF(LEN('Détail des projets'!C65)=0,"",'Détail des projets'!C65) -> des Affluents | D65: =IF(LEN('Détail des projets'!G65)=0,"",'Détail des projets'!G65) -> 14-Lanaudière | E65: =IF(LEN('Détail des projets'!K65)=0,"",'Détail des projets'!K65) -> 633200 | F65: 281 | G65: À la fin du projet (suite au dernier versement) | H65: 137.9213523 | K65: 30
B66: =IF(LEN('Détail des projets'!B66)=0,"",'Détail des projets'!B66) -> 50643-042 - Projets de réduction des GES : Choix de géothermie et panneaux solaires - 3 bâtiments | C66: =IF(LEN('Détail des projets'!C66)=0,"",'Détail des projets'!C66) -> des Découvreurs | D66: =IF(LEN('Détail des projets'!G66)=0,"",'Détail des projets'!G66) -> 03-Capitale-Nationale | E66: =IF(LEN('Détail des projets'!K66)=0,"",'Détail des projets'!K66) -> 827852 | F66: 337 | G66: À la fin du projet (suite au dernier versement) | H66: 93.63983679 | K66: 40
B67: =IF(LEN('Détail des projets'!B67)=0,"",'Détail des projets'!B67) -> 50643-043 - Agrandissement de l'école: Mise en œuvre de mesures pour augmenter l'évitement d'émissions de GES | C67: =IF(LEN('Détail des projets'!C67)=0,"",'Détail des projets'!C67) -> Kativik | D67: =IF(LEN('Détail des projets'!G67)=0,"",'Détail des projets'!G67) -> 06-Montréal | E67: =IF(LEN('Détail des projets'!K67)=0,"",'Détail des projets'!K67) -> 327091 | F67: 112 | G67: À la fin du projet (suite au dernier versement)
B68: =IF(LEN('Détail des projets'!B68)=0,"",'Détail des projets'!B68) -> 50643-044 - Nouvelle école : Mise en œuvre de mesures pour augmenter l'évitement d'émissions de GES - - Géothermie | C68: =IF(LEN('Détail des projets'!C68)=0,"",'Détail des projets'!C68) -> de la Seigneurie-des-Mille-Îles | D68: =IF(LEN('Détail des projets'!G68)=0,"",'Détail des projets'!G68) -> 15-Laurentides | E68: =IF(LEN('Détail des projets'!K68)=0,"",'Détail des projets'!K68) -> 138600 | F68: 63 | G68: À la fin du projet (suite au dernier versement)
B69: =IF(LEN('Détail des projets'!B69)=0,"",'Détail des projets'!B69) -> 50643-052 - Nouvelle école : Mise en œuvre de mesures pour augmenter l'évitement d'émissions de GES | C69: =IF(LEN('Détail des projets'!C69)=0,"",'Détail des projets'!C69) -> des Grandes-Seigneuries | D69: =IF(LEN('Détail des projets'!G69)=0,"",'Détail des projets'!G69) -> 16-Montérégie | E69: =IF(LEN('Détail des projets'!K69)=0,"",'Détail des projets'!K69) -> 151571 | F69: 69 | G69: À la fin du projet (suite au dernier versement)
B70: =IF(LEN('Détail des projets'!B70)=0,"",'Détail des projets'!B70) -> 50643-064 - Projets de réduction des GES : Plusieurs options - 11 bâtiments | C70: =IF(LEN('Détail des projets'!C70)=0,"",'Détail des projets'!C70) -> de Rouyn-Noranda | D70: =IF(LEN('Détail des projets'!G70)=0,"",'Détail des projets'!G70) -> 08-Abitibi-Témiscamingue | E70: =IF(LEN('Détail des projets'!K70)=0,"",'Détail des projets'!K70) -> 2653112 | F70: 1181 | G70: À la fin du projet (suite au dernier versement) | H70: 140.8933954 | K70: 30
B71: =IF(LEN('Détail des projets'!B71)=0,"",'Détail des projets'!B71) -> 50643-046 - Projets de réduction des GES : Remplacer les chaudières au mazout par des chaudières électriques et réduction de l'utilisation des chaudières au gaz | C71: =IF(LEN('Détail des projets'!C71)=0,"",'Détail des projets'!C71) -> de Montréal | D71: =IF(LEN('Détail des projets'!G71)=0,"",'Détail des projets'!G71) -> 06-Montréal | E71: =IF(LEN('Détail des projets'!K71)=0,"",'Détail des projets'!K71) -> 2032653 | F71: 989 | G71: À la fin du projet (suite au dernier versement) | H71: 147.3743849 | K71: 30
B72: =IF(LEN('Détail des projets'!B72)=0,"",'Détail des projets'!B72) -> 50643-065 - Remplacer les chaudières au gaz par un système à haut rendement (géothermie) | C72: =IF(LEN('Détail des projets'!C72)=0,"",'Détail des projets'!C72) -> New-Frontiers | D72: =IF(LEN('Détail des projets'!G72)=0,"",'Détail des projets'!G72) -> 16-Montérégie | E72: =IF(LEN('Détail des projets'!K72)=0,"",'Détail des projets'!K72) -> 170301 | F72: 75 | G72: À la fin du projet (suite au dernier versement) | H72: 215.514 | K72: 40
B73: =IF(LEN('Détail des projets'!B73)=0,"",'Détail des projets'!B73) -> 50643-066 - Projets de réduction des GES : Remplacer les chaudières de mazout par de la géothermie et des chaudières électriques | C73: =IF(LEN('Détail des projets'!C73)=0,"",'Détail des projets'!C73) -> Eastern Towships | D73: =IF(LEN('Détail des projets'!G73)=0,"",'Détail des projets'!G73) -> 11-Gaspésie-Iles-de-la-Madeleine | E73: =IF(LEN('Détail des projets'!K73)=0,"",'Détail des projets'!K73) -> 979659 | F73: 443 | G73: À la fin du projet (suite au dernier versement) | H73: 157.6486832 | K73: 30
B74: =IF(LEN('Détail des projets'!B74)=0,"",'Détail des projets'!B74) -> 50643-051 - Agrandissement de l'école: Mise en œuvre de mesures pour augmenter l'évitement d'émissions de GES | C74: =IF(LEN('Détail des projets'!C74)=0,"",'Détail des projets'!C74) -> des Grandes-Seigneuries | D74: =IF(LEN('Détail des projets'!G74)=0,"",'Détail des projets'!G74) -> 16-Montérégie | E74: =IF(LEN('Détail des projets'!K74)=0,"",'Détail des projets'!K74) -> 171971 | F74: 60 | G74: À la fin du projet (suite au dernier versement)
B75: =IF(LEN('Détail des projets'!B75)=0,"",'Détail des projets'!B75) -> 50643-063 - Nouvelle école : Mise en œuvre de mesures pour augmenter l'évitement d'émissions de GES - - Géothermie | C75: =IF(LEN('Détail des projets'!C75)=0,"",'Détail des projets'!C75) -> Marie-Victorin | D75: =IF(LEN('Détail des projets'!G75)=0,"",'Détail des projets'!G75) -> 16-Montérégie | E75: =IF(LEN('Détail des projets'!K75)=0,"",'Détail des projets'!K75) -> 158288 | F75: 72 | G75: À la fin du projet (suite au dernier versement)
B76: =IF(LEN('Détail des projets'!B76)=0,"",'Détail des projets'!B76) -> 50643-067 - Conversion de chaufferies de combustible fossile vers l'électricité | C76: =IF(LEN('Détail des projets'!C76)=0,"",'Détail des projets'!C76) -> des Chênes | D76: =IF(LEN('Détail des projets'!G76)=0,"",'Détail des projets'!G76) -> 17-Centre-du-Québec | E76: =IF(LEN('Détail des projets'!K76)=0,"",'Détail des projets'!K76) -> 292695 | F76: 126 | G76: À la fin du projet (suite au dernier versement) | H76: 297.3994709 | K76: 30
B77: =IF(LEN('Détail des projets'!B77)=0,"",'Détail des projets'!B77) -> 50643-068 - Projets de réduction des GES : Modernisation de chaufferie - 4 bâtiments (remplacer les chaudières à combustibles par des chaudières électriques et des thermopompes) | C77: =IF(LEN('Détail des projets'!C77)=0,"",'Détail des projets'!C77) -> des Hauts-Cantons | D77: =IF(LEN('Détail des projets'!G77)=0,"",'Détail des projets'!G77) -> 05-Estrie | E77: =IF(LEN('Détail des projets'!K77)=0,"",'Détail des projets'!K77) -> 760586 | F77: 337 | G77: À la fin du projet (suite au dernier versement) | H77: 128.6643323 | K77: 25
B78: =IF(LEN('Détail des projets'!B78)=0,"",'Détail des projets'!B78) -> 50643-049 - Agrandissement de l'école: Mise en œuvre de mesures pour augmenter l'évitement d'émissions de GES | C78: =IF(LEN('Détail des projets'!C78)=0,"",'Détail des projets'!C78) -> des Patriotes | D78: =IF(LEN('Détail des projets'!G78)=0,"",'Détail des projets'!G78) -> 16-Montérégie | E78: =IF(LEN('Détail des projets'!K78)=0,"",'Détail des projets'!K78) -> 36795 | F78: 16.7 | G78: À la fin du projet (suite au dernier versement)
B79: =IF(LEN('Détail des projets'!B79)=0,"",'Détail des projets'!B79) -> 50643-069 - Remplacer les chaudières au gaz naturel par des chaudières électriques et chaudières au GN de plus petites puissances : 7 bâtiments | C79: =IF(LEN('Détail des projets'!C79)=0,"",'Détail des projets'!C79) -> Marguérite-Bourgeoys | D79: =IF(LEN('Détail des projets'!G79)=0,"",'Détail des projets'!G79) -> 06-Montréal | E79: =IF(LEN('Détail des projets'!K79)=0,"",'Détail des projets'!K79) -> 1293544 | F79: 572 | G79: À la fin du projet (suite au dernier versement) | H79: 175.4805944 | K79: 30
B80: =IF(LEN('Détail des projets'!B80)=0,"",'Détail des projets'!B80) -> 50643-070 - Projets de réduction des GES : modernisation de chaufferie - conversion del - ajout de climatisation - aérothermie | C80: =IF(LEN('Détail des projets'!C80)=0,"",'Détail des projets'!C80) -> Sir-Wilfrid-Laurier | D80: =IF(LEN('Détail des projets'!G80)=0,"",'Détail des projets'!G80) -> 15-Laurentides | E80: =IF(LEN('Détail des projets'!K80)=0,"",'Détail des projets'!K80) -> 2545530 | F80: 1109 | G80: À la fin du projet (suite au dernier versement) | H80: 235.1317223 | K80: 25
B81: =IF(LEN('Détail des projets'!B81)=0,"",'Détail des projets'!B81) -> 50643-053 - Agrandissement de l'école: Mise en œuvre de mesures pour augmenter l'évitement d'émissions de GES | C81: =IF(LEN('Détail des projets'!C81)=0,"",'Détail des projets'!C81) -> des Grandes-Seigneuries | D81: =IF(LEN('Détail des projets'!G81)=0,"",'Détail des projets'!G81) -> 16-Montérégie | E81: =IF(LEN('Détail des projets'!K81)=0,"",'Détail des projets'!K81) -> 121574 | F81: 53 | G81: À la fin du projet (suite au dernier versement)
B82: =IF(LEN('Détail des projets'!B82)=0,"",'Détail des projets'!B82) -> 50643-059 - Agrandissement de l'école: Mise en œuvre de mesures pour augmenter l'évitement d'émissions de GES | C82: =IF(LEN('Détail des projets'!C82)=0,"",'Détail des projets'!C82) -> des Grandes-Seigneuries | D82: =IF(LEN('Détail des projets'!G82)=0,"",'Détail des projets'!G82) -> 16-Montérégie | E82: =IF(LEN('Détail des projets'!K82)=0,"",'Détail des projets'!K82) -> 35464 | F82: 16.5 | G82: À la fin du projet (suite au dernier versement)
B83: =IF(LEN('Détail des projets'!B83)=0,"",'Détail des projets'!B83) -> 50643-074 - Nouvelle école : Mise en œuvre de mesures pour augmenter l'évitement d'émissions de GES | C83: =IF(LEN('Détail des projets'!C83)=0,"",'Détail des projets'!C83) -> Beauce-Etchemin | D83: =IF(LEN('Détail des projets'!G83)=0,"",'Détail des projets'!G83) -> 12-Chaudières-Appalaches | E83: =IF(LEN('Détail des projets'!K83)=0,"",'Détail des projets'!K83) -> 158402 | F83: 72 | G83: À la fin du projet (suite au dernier versement)
B84: =IF(LEN('Détail des projets'!B84)=0,"",'Détail des projets'!B84) -> 50643-073Remplacer des chaudières fonctionnant au combustible par de la géothermie | C84: =IF(LEN('Détail des projets'!C84)=0,"",'Détail des projets'!C84) -> des Premières-Seigneuries | D84: =IF(LEN('Détail des projets'!G84)=0,"",'Détail des projets'!G84) -> 03-Capitale-Nationale | E84: =IF(LEN('Détail des projets'!K84)=0,"",'Détail des projets'!K84) -> 398223 | F84: 176 | G84: À la fin du projet (suite au dernier versement) | H84: 163.2448864 | K84: 40
B85: =IF(LEN('Détail des projets'!B85)=0,"",'Détail des projets'!B85) -> 50643-071 - Projets de réduction des GES : Remplacer des chaudières à combustibles par de l'énergie renouvelable(électricité) dans 18 bâtiments | C85: =IF(LEN('Détail des projets'!C85)=0,"",'Détail des projets'!C85) -> des Bois-Francs Nord | D85: =IF(LEN('Détail des projets'!G85)=0,"",'Détail des projets'!G85) -> 17-Centre-du-Québec | E85: =IF(LEN('Détail des projets'!K85)=0,"",'Détail des projets'!K85) -> 1678794 | F85: 722 | G85: À la fin du projet (suite au dernier versement) | H85: 192.905217 | K85: 30
B86: =IF(LEN('Détail des projets'!B86)=0,"",'Détail des projets'!B86) -> 50643-058 - Remplacer des chaudières au gaz naturel par des chaudières électriques | C86: =IF(LEN('Détail des projets'!C86)=0,"",'Détail des projets'!C86) -> Montréal | D86: =IF(LEN('Détail des projets'!G86)=0,"",'Détail des projets'!G86) -> 06-Montréal | E86: =IF(LEN('Détail des projets'!K86)=0,"",'Détail des projets'!K86) -> 471495 | F86: 211 | G86: À la fin du projet (suite au dernier versement) | H86: 95.97804107 | K86: 30
B87: =IF(LEN('Détail des projets'!B87)=0,"",'Détail des projets'!B87) -> 50643-072 - Nouvelle école secondaire : Mise en œuvre de mesures pour augmenter l'évitement d'émissions de GES | C87: =IF(LEN('Détail des projets'!C87)=0,"",'Détail des projets'!C87) -> des Portages-de-l'Outaouais | D87: =IF(LEN('Détail des projets'!G87)=0,"",'Détail des projets'!G87) -> 07-Outaouais | E87: =IF(LEN('Détail des projets'!K87)=0,"",'Détail des projets'!K87) -> 233739 | F87: 106 | G87: À la fin du projet (suite au dernier versement)
B88: =IF(LEN('Détail des projets'!B88)=0,"",'Détail des projets'!B88) -> 50643-060 - Remplacer le système de chauffage à base de mazout par un système de chauffage géothermique | C88: =IF(LEN('Détail des projets'!C88)=0,"",'Détail des projets'!C88) -> Saint-Hyacinthe | D88: =IF(LEN('Détail des projets'!G88)=0,"",'Détail des projets'!G88) -> 16-Montérégie | E88: =IF(LEN('Détail des projets'!K88)=0,"",'Détail des projets'!K88) -> 76766 | F88: 33 | G88: À la fin du projet (suite au dernier versement) | H88: 403.1742424 | K88: 40
B89: =IF(LEN('Détail des projets'!B89)=0,"",'Détail des projets'!B89) -> 50643-062 - Projet de réduction GES: Modernisation de la chaufferie de deux écoles - Remplacement des chaudières existantes et utilisation de l'électricité comme source d'énergie primaire | C89: =IF(LEN('Détail des projets'!C89)=0,"",'Détail des projets'!C89) -> Hautes-Rivières | D89: =IF(LEN('Détail des projets'!G89)=0,"",'Détail des projets'!G89) -> 16-Montérégie | E89: =IF(LEN('Détail des projets'!K89)=0,"",'Détail des projets'!K89) -> 166200 | F89: 71 | G89: À la fin du projet (suite au dernier versement) | H89: 125.81 | K89: 35
B90: =IF(LEN('Détail des projets'!B90)=0,"",'Détail des projets'!B90) -> 50643-075 - Projet de réduction des GES: Modernisation de la chaufferie de l'immeuble Boisé-des-Pins | C90: =IF(LEN('Détail des projets'!C90)=0,"",'Détail des projets'!C90) -> Chemin du Roy | D90: =IF(LEN('Détail des projets'!G90)=0,"",'Détail des projets'!G90) -> 04-Mauricie | E90: =IF(LEN('Détail des projets'!K90)=0,"",'Détail des projets'!K90) -> 93792 | F90: 48.27 | G90: À la fin du projet (suite au dernier versement) | H90: 337.97 | K90: 30
B91: =IF(LEN('Détail des projets'!B91)=0,"",'Détail des projets'!B91) -> 50643-076 - Installation de systèmes aérothermiques, remplacement de chaudières au mazout par des chaudières électriques, conversion d'éclairage, optimisation de contrôles centralisés et de systèmes géothermiques. | C91: =IF(LEN('Détail des projets'!C91)=0,"",'Détail des projets'!C91) -> Trois-Lacs | D91: =IF(LEN('Détail des projets'!G91)=0,"",'Détail des projets'!G91) -> 16-Montérégie | E91: =IF(LEN('Détail des projets'!K91)=0,"",'Détail des projets'!K91) -> 1930880 | F91: 850.4 | G91: À la fin du projet (suite au dernier versement) | H91: 161.05 | K91: 25
B92: =IF(LEN('Détail des projets'!B92)=0,"",'Détail des projets'!B92) -> 50643-077 - Projets de réduction des GES: Modernisation de la chaufferie de l'école la Frontalière - installation d'un système d'aérothermie | C92: =IF(LEN('Détail des projets'!C92)=0,"",'Détail des projets'!C92) -> Hauts-Cantons | D92: =IF(LEN('Détail des projets'!G92)=0,"",'Détail des projets'!G92) -> 05-Estrie | E92: =IF(LEN('Détail des projets'!K92)=0,"",'Détail des projets'!K92) -> 1211984.14 | F92: 548.63 | G92: À la fin du projet (suite au dernier versement) | H92: 129.47 | K92: 25
B93: =IF(LEN('Détail des projets'!B93)=0,"",'Détail des projets'!B93) -> 50643-078 - Nouveau centre de formation: Mise en œuvre de mesures pour augmenter l'évitement d'émissions de GES - utilisation de la géothermie | C93: =IF(LEN('Détail des projets'!C93)=0,"",'Détail des projets'!C93) -> Affluents | D93: =IF(LEN('Détail des projets'!G93)=0,"",'Détail des projets'!G93) -> 14-Lanaudière | E93: =IF(LEN('Détail des projets'!K93)=0,"",'Détail des projets'!K93) -> 113406 | F93: 51.548 | G93: À la fin du projet (suite au dernier versement) | K93: -
B94: =IF(LEN('Détail des projets'!B94)=0,"",'Détail des projets'!B94) -> 50643-079 - Agrandissement de l'école Albert-Naud: Installation d'un système de chauffage électrique - installation d'une thermopompe | C94: =IF(LEN('Détail des projets'!C94)=0,"",'Détail des projets'!C94) -> Lac-Saint-Jean | D94: =IF(LEN('Détail des projets'!G94)=0,"",'Détail des projets'!G94) -> 02-Saguenay- Lac-Saint-Jean | E94: =IF(LEN('Détail des projets'!K94)=0,"",'Détail des projets'!K94) -> 188524 | F94: 81.1 | G94: À la fin du projet (suite au dernier versement) | K94: -
B95: =IF(LEN('Détail des projets'!B95)=0,"",'Détail des projets'!B95) -> 50643-080 - Agrandissement de l'école Bon-Conseil: Installation d'un système de géothermie | C95: =IF(LEN('Détail des projets'!C95)=0,"",'Détail des projets'!C95) -> Lac-Saint-Jean | D95: =IF(LEN('Détail des projets'!G95)=0,"",'Détail des projets'!G95) -> 02-Saguenay- Lac-Saint-Jean | E95: =IF(LEN('Détail des projets'!K95)=0,"",'Détail des projets'!K95) -> 197723 | F95: 87.6 | G95: À la fin du projet (suite au dernier versement) | K95: -
B96: =IF(LEN('Détail des projets'!B96)=0,"",'Détail des projets'!B96) -> 50643-081 - Nouveau centre de formation à Mirabel: Mise en œuvre de mesures pour augmenter l'évitement d'émissions de GES - système de géothermie | C96: =IF(LEN('Détail des projets'!C96)=0,"",'Détail des projets'!C96) -> Seigneurie-des-Mille-Îles | D96: =IF(LEN('Détail des projets'!G96)=0,"",'Détail des projets'!G96) -> 15-Laurentides | E96: =IF(LEN('Détail des projets'!K96)=0,"",'Détail des projets'!K96) -> 105710 | F96: 48.05 | G96: À la fin du projet (suite au dernier versement) | K96: -
B97: =IF(LEN('Détail des projets'!B97)=0,"",'Détail des projets'!B97) -> 50643-082 - Projet de réduction des GES: Remplacement des chaudières existantes - 2 bâtiments | C97: =IF(LEN('Détail des projets'!C97)=0,"",'Détail des projets'!C97) -> Hautes-Rivières | D97: =IF(LEN('Détail des projets'!G97)=0,"",'Détail des projets'!G97) -> 16-Montérégie | E97: =IF(LEN('Détail des projets'!K97)=0,"",'Détail des projets'!K97) -> 446417.5 | F97: 198.37 | G97: À la fin du projet (suite au dernier versement) | H97: 105.5 | K97: 30
B98: =IF(LEN('Détail des projets'!B98)=0,"",'Détail des projets'!B98) -> 50643-083 - Projet de réduction GES: Installation de systèmes aérothermiques, conversion d'éclairage et optimisation de contrôles centralisés | C98: =IF(LEN('Détail des projets'!C98)=0,"",'Détail des projets'!C98) -> Des Sommets | D98: =IF(LEN('Détail des projets'!G98)=0,"",'Détail des projets'!G98) -> 05-Estrie | E98: =IF(LEN('Détail des projets'!K98)=0,"",'Détail des projets'!K98) -> 1441140 | F98: 643.7 | G98: À la fin du projet (suite au dernier versement) | H98: 199.16 | K98: 25
B99: =IF(LEN('Détail des projets'!B99)=0,"",'Détail des projets'!B99) -> 50643-084 - Nouvelle école: Mise en œuvre de mesures pour favoriser l'évitement d'émissions de GES - système de géothermie | C99: =IF(LEN('Détail des projets'!C99)=0,"",'Détail des projets'!C99) -> Eastern Townships | D99: =IF(LEN('Détail des projets'!G99)=0,"",'Détail des projets'!G99) -> 17-Centre-du-Québec | E99: =IF(LEN('Détail des projets'!K99)=0,"",'Détail des projets'!K99) -> 83978 | F99: 38.17 | G99: À la fin du projet (suite au dernier versement) | K99: -
B100: =IF(LEN('Détail des projets'!B100)=0,"",'Détail des projets'!B100) -> 50643-085 - Projet de réduction des GES: Modernisation des chaufferies - Installation de systèmes d'aérothermie (12 bâtiments) | C100: =IF(LEN('Détail des projets'!C100)=0,"",'Détail des projets'!C100) -> Eastern Townships | D100: =IF(LEN('Détail des projets'!G100)=0,"",'Détail des projets'!G100) -> 05-Estrie | E100: =IF(LEN('Détail des projets'!K100)=0,"",'Détail des projets'!K100) -> 3159354 | F100: 1408.8 | G100: À la fin du projet (suite au dernier versement) | H100: 139.79 | K100: 25
B101: =IF(LEN('Détail des projets'!B101)=0,"",'Détail des projets'!B101) -> 50643-087 - Projet de réduction des GES: Modernisation de la chaufferie de l'école Saint-Bonaventure - Remplacer les chaudières à l'huile par des chaudières électriques et une thermopompe | C101: =IF(LEN('Détail des projets'!C101)=0,"",'Détail des projets'!C101) -> Chênes | D101: =IF(LEN('Détail des projets'!G101)=0,"",'Détail des projets'!G101) -> 17-Centre-du-Québec | E101: =IF(LEN('Détail des projets'!K101)=0,"",'Détail des projets'!K101) -> 95200 | F101: 41 | G101: À la fin du projet (suite au dernier versement) | H101: 283.94 | K101: 30
B102: =IF(LEN('Détail des projets'!B102)=0,"",'Détail des projets'!B102) -> 50643-088 - Agrandissement de l'école Desjardins: Modernisation de la chaufferie - Remplacement des chaudière au GN par un système hybride (géothermie et chaudière GN) | C102: =IF(LEN('Détail des projets'!C102)=0,"",'Détail des projets'!C102) -> Région-de-Sherbrooke | D102: =IF(LEN('Détail des projets'!G102)=0,"",'Détail des projets'!G102) -> 05-Estrie | E102: =IF(LEN('Détail des projets'!K102)=0,"",'Détail des projets'!K102) -> 139664 | F102: 47.03 | G102: À la fin du projet (suite au dernier versement) | H102: 221.08 | K102: 40
B103: =IF(LEN('Détail des projets'!B103)=0,"",'Détail des projets'!B103) -> 50643-089 - Agrandissement de l'école Cardinal-Roy: Installation d'un système de aérothermie et d'une chaudière électrique | C103: =IF(LEN('Détail des projets'!C103)=0,"",'Détail des projets'!C103) -> de la Capitale | D103: =IF(LEN('Détail des projets'!G103)=0,"",'Détail des projets'!G103) -> 03-Capitale-Nationale | E103: =IF(LEN('Détail des projets'!K103)=0,"",'Détail des projets'!K103) -> 73522 | F103: 33.42 | G103: À la fin du projet (suite au dernier versement) | K103: -
B104: =IF(LEN('Détail des projets'!B104)=0,"",'Détail des projets'!B104) -> 50643-090 - Agrandissement de l'école Joseph-François-Perrault: Installation d'un système de aérothermie | C104: =IF(LEN('Détail des projets'!C104)=0,"",'Détail des projets'!C104) -> de la Capitale | D104: =IF(LEN('Détail des projets'!G104)=0,"",'Détail des projets'!G104) -> 03-Capitale-Nationale | E104: =IF(LEN('Détail des projets'!K104)=0,"",'Détail des projets'!K104) -> 85873 | F104: 39.03 | G104: À la fin du projet (suite au dernier versement) | K104: -
B105: =IF(LEN('Détail des projets'!B105)=0,"",'Détail des projets'!B105) -> 50643-091 - Nouvelle Lab-École Limoilou: Mise en œuvre de mesures pour favoriser l'évitement d'émissions de GES - système d'aérothermie | C105: =IF(LEN('Détail des projets'!C105)=0,"",'Détail des projets'!C105) -> de la Capitale | D105: =IF(LEN('Détail des projets'!G105)=0,"",'Détail des projets'!G105) -> 03-Capitale-Nationale | E105: =IF(LEN('Détail des projets'!K105)=0,"",'Détail des projets'!K105) -> 112266 | F105: 51.03 | G105: À la fin du projet (suite au dernier versement) | K105: -
B106: =IF(LEN('Détail des projets'!B106)=0,"",'Détail des projets'!B106) -> 50643-092 - Projet de réduction des GES: Modernisation de la chaufferie du centre Louis-Joliet - Système de géothermie | C106: =IF(LEN('Détail des projets'!C106)=0,"",'Détail des projets'!C106) -> de la Capitale | D106: =IF(LEN('Détail des projets'!G106)=0,"",'Détail des projets'!G106) -> 03-Capitale-Nationale | E106: =IF(LEN('Détail des projets'!K106)=0,"",'Détail des projets'!K106) -> 633057 | F106: 285.48 | G106: À la fin du projet (suite au dernier versement) | H106: 515.05 | K106: 40
B107: =IF(LEN('Détail des projets'!B107)=0,"",'Détail des projets'!B107) -> 50643-093 - Projet de réduction des GES: Installation d'un système de géothermie - modernisation des chaufferies - 3 écoles | C107: =IF(LEN('Détail des projets'!C107)=0,"",'Détail des projets'!C107) -> des Premières-Seigneuries | D107: =IF(LEN('Détail des projets'!G107)=0,"",'Détail des projets'!G107) -> 03-Capitale-Nationale | E107: =IF(LEN('Détail des projets'!K107)=0,"",'Détail des projets'!K107) -> 1271200 | F107: 570.91 | G107: À la fin du projet (suite au dernier versement) | H107: 281.88 | K107: 40
B108: =IF(LEN('Détail des projets'!B108)=0,"",'Détail des projets'!B108) -> 50643-094 - Projet de réduction de GES: Modernisation des chaufferies - Installation de système de géothermie (Saint-Marc, secondaire de) et d'aréothermie (Saumonière) | C108: =IF(LEN('Détail des projets'!C108)=0,"",'Détail des projets'!C108) -> Portneuf | D108: =IF(LEN('Détail des projets'!G108)=0,"",'Détail des projets'!G108) -> 03-Capitale-Nationale | E108: =IF(LEN('Détail des projets'!K108)=0,"",'Détail des projets'!K108) -> 686411 | F108: 307.46 | G108: À la fin du projet (suite au dernier versement) | H108: 210.8 | K108: 30
B109: =IF(LEN('Détail des projets'!B109)=0,"",'Détail des projets'!B109) -> 50643-095 - Projet de réduction GES: Remplacement des chaudière au GN de l'école Saint-Thérèse par des thermopompes air-eau | C109: =IF(LEN('Détail des projets'!C109)=0,"",'Détail des projets'!C109) -> Chemin du Roy | D109: =IF(LEN('Détail des projets'!G109)=0,"",'Détail des projets'!G109) -> 04-Mauricie | E109: =IF(LEN('Détail des projets'!K109)=0,"",'Détail des projets'!K109) -> 94615 | F109: 40.73 | G109: À la fin du projet (suite au dernier versement) | H109: 419.83 | K109: 30
B110: =IF(LEN('Détail des projets'!B110)=0,"",'Détail des projets'!B110) -> 50643-096 - Agrandissement de l'école Saint-Joseph: Mise en œuvre de mesures pour favoriser l'évitement d'émissions de GES | C110: =IF(LEN('Détail des projets'!C110)=0,"",'Détail des projets'!C110) -> Chemin du Roy | D110: =IF(LEN('Détail des projets'!G110)=0,"",'Détail des projets'!G110) -> 04-Mauricie | E110: =IF(LEN('Détail des projets'!K110)=0,"",'Détail des projets'!K110) -> 53728 | F110: 24.42 | G110: À la fin du projet (suite au dernier versement) | K110: -
B111: =IF(LEN('Détail des projets'!B111)=0,"",'Détail des projets'!B111) -> 50643-097 - Nouvelle école Sainte-Lucie: Mise en œuvre de mesures pour favoriser l'évitement d'émissions de GES | C111: =IF(LEN('Détail des projets'!C111)=0,"",'Détail des projets'!C111) -> CSDM | D111: =IF(LEN('Détail des projets'!G111)=0,"",'Détail des projets'!G111) -> 06-Montréal | E111: =IF(LEN('Détail des projets'!K111)=0,"",'Détail des projets'!K111) -> 128773 | F111: 58.53 | G111: À la fin du projet (suite au dernier versement) | K111: -
B112: =IF(LEN('Détail des projets'!B112)=0,"",'Détail des projets'!B112) -> 50643-098 - Projet de réduction des GES: Modernisation des chaufferies de l'école Saint-Donas et du Centre de loisirs communautaires Lajeunesse | C112: =IF(LEN('Détail des projets'!C112)=0,"",'Détail des projets'!C112) -> CSDM | D112: =IF(LEN('Détail des projets'!G112)=0,"",'Détail des projets'!G112) -> 06-Montréal | E112: =IF(LEN('Détail des projets'!K112)=0,"",'Détail des projets'!K112) -> 528650 | F112: 239.49 | G112: À la fin du projet (suite au dernier versement) | H112: 100.31 | K112: 30
B113: =IF(LEN('Détail des projets'!B113)=0,"",'Détail des projets'!B113) -> 50643-099 - Projet de réduction des GES: Modernisation de chaufferies - 23 bâtiments | C113: =IF(LEN('Détail des projets'!C113)=0,"",'Détail des projets'!C113) -> CSDM | D113: =IF(LEN('Détail des projets'!G113)=0,"",'Détail des projets'!G113) -> 06-Montréal | E113: =IF(LEN('Détail des projets'!K113)=0,"",'Détail des projets'!K113) -> 5976363 | F113: 2664.26 | G113: À la fin du projet (suite au dernier versement) | H113: 81.92 | K113: 30
B114: =IF(LEN('Détail des projets'!B114)=0,"",'Détail des projets'!B114) -> 50643-100 - Projet de réduction des GES: Remplacement de certaines chaudières au gaz par des chaudières électriques -- 2 bâtiments | C114: =IF(LEN('Détail des projets'!C114)=0,"",'Détail des projets'!C114) -> Marguérite-Bourgeoys | D114: =IF(LEN('Détail des projets'!G114)=0,"",'Détail des projets'!G114) -> 06-Montréal | E114: =IF(LEN('Détail des projets'!K114)=0,"",'Détail des projets'!K114) -> 396016 | F114: 175.46 | G114: À la fin du projet (suite au dernier versement) | H114: 117.45 | K114: 30
B115: =IF(LEN('Détail des projets'!B115)=0,"",'Détail des projets'!B115) -> 50643-101 - Projet de réduction des GES: Modernisation de la chaufferie de l'école Dollard-des-Ormeaux - Remplacement des chaudière au GN par un système hybride (électrique et GN) | C115: =IF(LEN('Détail des projets'!C115)=0,"",'Détail des projets'!C115) -> Marguérite-Bourgeoys | D115: =IF(LEN('Détail des projets'!G115)=0,"",'Détail des projets'!G115) -> 06-Montréal | E115: =IF(LEN('Détail des projets'!K115)=0,"",'Détail des projets'!K115) -> 136640 | F115: 76.26 | G115: À la fin du projet (suite au dernier versement) | H115: 59.73 | K115: 30
B116: =IF(LEN('Détail des projets'!B116)=0,"",'Détail des projets'!B116) -> 50643-102 - Projet de réduction des GES: Remplacement des chaudière au GN de l'école Saint-Clément Ouest par un système hybride (électrique et GN) | C116: =IF(LEN('Détail des projets'!C116)=0,"",'Détail des projets'!C116) -> Marguérite-Bourgeoys | D116: =IF(LEN('Détail des projets'!G116)=0,"",'Détail des projets'!G116) -> 06-Montréal | E116: =IF(LEN('Détail des projets'!K116)=0,"",'Détail des projets'!K116) -> 191727 | F116: 153.19 | G116: À la fin du projet (suite au dernier versement) | H116: 41.72 | K116: 30
B117: =IF(LEN('Détail des projets'!B117)=0,"",'Détail des projets'!B117) -> 50643-103 - Projet de réduction des GES: Remplacement des chaudière au GN de l'édifice Bois-Franc de l'école Bois-Franc-Aquarelle par un système hybride (électrique et GN) | C117: =IF(LEN('Détail des projets'!C117)=0,"",'Détail des projets'!C117) -> Marguérite-Bourgeoys | D117: =IF(LEN('Détail des projets'!G117)=0,"",'Détail des projets'!G117) -> 06-Montréal | E117: =IF(LEN('Détail des projets'!K117)=0,"",'Détail des projets'!K117) -> 148897 | F117: 102.74 | G117: À la fin du projet (suite au dernier versement) | H117: 48.31 | K117: 30
B118: =IF(LEN('Détail des projets'!B118)=0,"",'Détail des projets'!B118) -> 50643-104 - Agrandissement de l'école Beau-Séjour Sud: ajout d'une chaudière électrique | C118: =IF(LEN('Détail des projets'!C118)=0,"",'Détail des projets'!C118) -> Marguérite-Bourgeoys | D118: =IF(LEN('Détail des projets'!G118)=0,"",'Détail des projets'!G118) -> 06-Montréal | E118: =IF(LEN('Détail des projets'!K118)=0,"",'Détail des projets'!K118) -> 95743 | F118: 45.39 | G118: À la fin du projet (suite au dernier versement) | H118: 70.31 | K118: 30
B119: =IF(LEN('Détail des projets'!B119)=0,"",'Détail des projets'!B119) -> 50643-105 - Projet de réduction des GES: remplacement d'une chaudière GN de l'école Sainte-Geneviève Ouest par une chaudière électrique, installation d'un système de ventilation avec récupération de chaleur | C119: =IF(LEN('Détail des projets'!C119)=0,"",'Détail des projets'!C119) -> Marguérite-Bourgeoys | D119: =IF(LEN('Détail des projets'!G119)=0,"",'Détail des projets'!G119) -> 06-Montréal | E119: =IF(LEN('Détail des projets'!K119)=0,"",'Détail des projets'!K119) -> 153017 | F119: 107.94 | G119: À la fin du projet (suite au dernier versement) | H119: 47.25 | K119: 30
B120: =IF(LEN('Détail des projets'!B120)=0,"",'Détail des projets'!B120) -> 50643-106 - Projet de réduction des GES: Modernisation de la chaufferie de l'école Pointe-Claire - Remplacement des chaudière au GN par un système hybride (chaudière électrique et chaudière GN) | C120: =IF(LEN('Détail des projets'!C120)=0,"",'Détail des projets'!C120) -> Marguérite-Bourgeoys | D120: =IF(LEN('Détail des projets'!G120)=0,"",'Détail des projets'!G120) -> 06-Montréal | E120: =IF(LEN('Détail des projets'!K120)=0,"",'Détail des projets'!K120) -> 164147 | F120: 109.87 | G120: À la fin du projet (suite au dernier versement) | H120: 49.8 | K120: 30
B121: =IF(LEN('Détail des projets'!B121)=0,"",'Détail des projets'!B121) -> 50643-107 - Projet de réduction des GES: ajout de thermopompes en parallèles au système éxistant de l'école Nouvelle-Querbes | C121: =IF(LEN('Détail des projets'!C121)=0,"",'Détail des projets'!C121) -> Marguérite-Bourgeoys | D121: =IF(LEN('Détail des projets'!G121)=0,"",'Détail des projets'!G121) -> 06-Montréal | E121: =IF(LEN('Détail des projets'!K121)=0,"",'Détail des projets'!K121) -> 99543 | F121: 42.97 | G121: À la fin du projet (suite au dernier versement) | H121: 566.14 | K121: 30
B122: =IF(LEN('Détail des projets'!B122)=0,"",'Détail des projets'!B122) -> 50643-108 - Projet de réduction des GES: Modernisation de la chaufferie de l'édifice 290 Deslauriers - Remplacement des chaudière au GN par un système hybride (chaudière électrique et chaudière GN) | C122: =IF(LEN('Détail des projets'!C122)=0,"",'Détail des projets'!C122) -> Marguérite-Bourgeoys | D122: =IF(LEN('Détail des projets'!G122)=0,"",'Détail des projets'!G122) -> 06-Montréal | E122: =IF(LEN('Détail des projets'!K122)=0,"",'Détail des projets'!K122) -> 175755 | F122: 77.84 | G122: À la fin du projet (suite au dernier versement) | H122: 84.53 | K122: 30
B123: =IF(LEN('Détail des projets'!B123)=0,"",'Détail des projets'!B123) -> 50643-109 - Projet de réduction des GES: Remplacer la chaudière au GN de l'édifice Filion du CEA Outremont par des chaudières électriques | C123: =IF(LEN('Détail des projets'!C123)=0,"",'Détail des projets'!C123) -> Marguérite-Bourgeoys | D123: =IF(LEN('Détail des projets'!G123)=0,"",'Détail des projets'!G123) -> 06-Montréal | E123: =IF(LEN('Détail des projets'!K123)=0,"",'Détail des projets'!K123) -> 45147 | F123: 18.48 | G123: À la fin du projet (suite au dernier versement) | H123: 348.62 | K123: 30
B124: =IF(LEN('Détail des projets'!B124)=0,"",'Détail des projets'!B124) -> 50643-110 - Projet de réduction des GES: Remplacer les chaudières au GN du centre d'éducation d'Outremont par des chaudières électriques | C124: =IF(LEN('Détail des projets'!C124)=0,"",'Détail des projets'!C124) -> Marguérite-Bourgeoys | D124: =IF(LEN('Détail des projets'!G124)=0,"",'Détail des projets'!G124) -> 06-Montréal | E124: =IF(LEN('Détail des projets'!K124)=0,"",'Détail des projets'!K124) -> 263196 | F124: 117.59 | G124: À la fin du projet (suite au dernier versement) | H124: 82.24 | K124: 30
B125: =IF(LEN('Détail des projets'!B125)=0,"",'Détail des projets'!B125) -> 50643-111 - Agrandissement de l'école Saint-Rémi: Mise en œuvre de mesures pour favoriser l'évitement d'émissions de GES - Chaufferies séparées | C125: =IF(LEN('Détail des projets'!C125)=0,"",'Détail des projets'!C125) -> Marguérite-Bourgeoys | D125: =IF(LEN('Détail des projets'!G125)=0,"",'Détail des projets'!G125) -> 06-Montréal | E125: =IF(LEN('Détail des projets'!K125)=0,"",'Détail des projets'!K125) -> 82410 | F125: 37.46 | G125: À la fin du projet (suite au dernier versement) | K125: -
B126: =IF(LEN('Détail des projets'!B126)=0,"",'Détail des projets'!B126) -> 50643-112 - Agrandissement de l'école La Source: Mise en œuvre de mesures pour favoriser l'évitement d'émissions de GES | C126: =IF(LEN('Détail des projets'!C126)=0,"",'Détail des projets'!C126) -> Affluents | D126: =IF(LEN('Détail des projets'!G126)=0,"",'Détail des projets'!G126) -> 14-Lanaudière | E126: =IF(LEN('Détail des projets'!K126)=0,"",'Détail des projets'!K126) -> 19822 | F126: 9.01 | G126: À la fin du projet (suite au dernier versement) | K126: -
B127: =IF(LEN('Détail des projets'!B127)=0,"",'Détail des projets'!B127) -> 50643-113 - Agrandissement de l'école Félix-Leclerc: Mise en œuvre de mesures pour favoriser l'évitement d'émissions de GES - ajout d'un système de géothermie | C127: =IF(LEN('Détail des projets'!C127)=0,"",'Détail des projets'!C127) -> Affluents | D127: =IF(LEN('Détail des projets'!G127)=0,"",'Détail des projets'!G127) -> 14-Lanaudière | E127: =IF(LEN('Détail des projets'!K127)=0,"",'Détail des projets'!K127) -> 39371 | F127: 18.44 | G127: À la fin du projet (suite au dernier versement) | K127: -
B128: =IF(LEN('Détail des projets'!B128)=0,"",'Détail des projets'!B128) -> 50643-114 - Agrandissement de l'école Gareau: Mise en œuvre de mesures pour favoriser l'évitement d'émissions de GES - ajout d'un système de géothermie | C128: =IF(LEN('Détail des projets'!C128)=0,"",'Détail des projets'!C128) -> Affluents | D128: =IF(LEN('Détail des projets'!G128)=0,"",'Détail des projets'!G128) -> 14-Lanaudière | E128: =IF(LEN('Détail des projets'!K128)=0,"",'Détail des projets'!K128) -> 82093 | F128: 37.32 | G128: À la fin du projet (suite au dernier versement) | K128: -
B129: =IF(LEN('Détail des projets'!B129)=0,"",'Détail des projets'!B129) -> 50643-115 - Projet de réduction des GES: Remplacement des systèmes fonctionnant au GN par des systèmes électriques - 2 bâtiments | C129: =IF(LEN('Détail des projets'!C129)=0,"",'Détail des projets'!C129) -> Affluents | D129: =IF(LEN('Détail des projets'!G129)=0,"",'Détail des projets'!G129) -> 14-Lanaudière | E129: =IF(LEN('Détail des projets'!K129)=0,"",'Détail des projets'!K129) -> 235306 | F129: 102.41 | G129: À la fin du projet (suite au dernier versement) | H129: 123.2 | K129: 30
B130: =IF(LEN('Détail des projets'!B130)=0,"",'Détail des projets'!B130) -> 50643-116 - Agrandissement des écoles: Installation de systèmes d'aérothermie - 3 bâtiments | C130: =IF(LEN('Détail des projets'!C130)=0,"",'Détail des projets'!C130) -> Samares | D130: =IF(LEN('Détail des projets'!G130)=0,"",'Détail des projets'!G130) -> 14-Lanaudière | E130: =IF(LEN('Détail des projets'!K130)=0,"",'Détail des projets'!K130) -> 112200 | F130: 51 | G130: À la fin du projet (suite au dernier versement) | K130: -
B131: =IF(LEN('Détail des projets'!B131)=0,"",'Détail des projets'!B131) -> 50643-117 - Nouvelle école secondaire Mirabel: Mise en œuvre de mesures pour favoriser l'évitement d'émissions de GES | C131: =IF(LEN('Détail des projets'!C131)=0,"",'Détail des projets'!C131) -> Seigneurie-des-Mille-Îles | D131: =IF(LEN('Détail des projets'!G131)=0,"",'Détail des projets'!G131) -> 14-Lanaudière | E131: =IF(LEN('Détail des projets'!K131)=0,"",'Détail des projets'!K131) -> 545600 | F131: 248 | G131: À la fin du projet (suite au dernier versement) | K131: -
B132: =IF(LEN('Détail des projets'!B132)=0,"",'Détail des projets'!B132) -> 50643-118 - Modernisation de la chaufferie: Transformation de l'aile Girouard en école - installation d'un système de géothermie | C132: =IF(LEN('Détail des projets'!C132)=0,"",'Détail des projets'!C132) -> Saint-Hyacinthe | D132: =IF(LEN('Détail des projets'!G132)=0,"",'Détail des projets'!G132) -> 16-Montérégie | E132: =IF(LEN('Détail des projets'!K132)=0,"",'Détail des projets'!K132) -> 153780 | F132: 69.9 | G132: À la fin du projet (suite au dernier versement) | K132: -
B133: =IF(LEN('Détail des projets'!B133)=0,"",'Détail des projets'!B133) -> 50643-119 - Projet de réduction des GES: ajout d'un système de géothermie en parallèles au système éxistant de l'école Christ-Roi | C133: =IF(LEN('Détail des projets'!C133)=0,"",'Détail des projets'!C133) -> Marie-Victorin | D133: =IF(LEN('Détail des projets'!G133)=0,"",'Détail des projets'!G133) -> 16-Montérégie | E133: =IF(LEN('Détail des projets'!K133)=0,"",'Détail des projets'!K133) -> 110380 | F133: 47.89 | G133: À la fin du projet (suite au dernier versement) | H133: 99.13 | K133: 40
B134: =IF(LEN('Détail des projets'!B134)=0,"",'Détail des projets'!B134) -> 50643-120 - Agrandissement de l'école Christ-Roi: Installation d'un système de géothermie | C134: =IF(LEN('Détail des projets'!C134)=0,"",'Détail des projets'!C134) -> Marie-Victorin | D134: =IF(LEN('Détail des projets'!G134)=0,"",'Détail des projets'!G134) -> 16-Montérégie | E134: =IF(LEN('Détail des projets'!K134)=0,"",'Détail des projets'!K134) -> 114400 | F134: 52 | G134: À la fin du projet (suite au dernier versement) | K134: -
B135: =IF(LEN('Détail des projets'!B135)=0,"",'Détail des projets'!B135) -> 50643-121 - Nouvelle construction: Mise en œuvre de mesures pour favoriser l'évitement d'émissions de GES - immeuble des Glaieuls - utilisation de la géothermie | C135: =IF(LEN('Détail des projets'!C135)=0,"",'Détail des projets'!C135) -> Marie-Victorin | D135: =IF(LEN('Détail des projets'!G135)=0,"",'Détail des projets'!G135) -> 16-Montérégie | E135: =IF(LEN('Détail des projets'!K135)=0,"",'Détail des projets'!K135) -> 165508 | F135: 75.12 | G135: À la fin du projet (suite au dernier versement) | K135: -
B136: =IF(LEN('Détail des projets'!B136)=0,"",'Détail des projets'!B136) -> 50643-122 - Agrandissement de l'école Saint-Michelle-Archange: Remplacer la chaudière au mazout par un système de géothermie | C136: =IF(LEN('Détail des projets'!C136)=0,"",'Détail des projets'!C136) -> Grandes-Seigneuries | D136: =IF(LEN('Détail des projets'!G136)=0,"",'Détail des projets'!G136) -> 16-Montérégie | E136: =IF(LEN('Détail des projets'!K136)=0,"",'Détail des projets'!K136) -> 278343 | F136: 124.25 | G136: À la fin du projet (suite au dernier versement) | H136: 500.64 | K136: 40
B137: =IF(LEN('Détail des projets'!B137)=0,"",'Détail des projets'!B137) -> 50643-123 - Nouvelle école Saint-Sylvère: Mise en œuvre de mesures pour augmenter l'évitement d'émissions de GES - système d'aérothermie | C137: =IF(LEN('Détail des projets'!C137)=0,"",'Détail des projets'!C137) -> Riveraine | D137: =IF(LEN('Détail des projets'!G137)=0,"",'Détail des projets'!G137) -> 17-Centre-du-Québec | E137: =IF(LEN('Détail des projets'!K137)=0,"",'Détail des projets'!K137) -> 48407 | F137: 22 | G137: À la fin du projet (suite au dernier versement) | K137: -
B138: =IF(LEN('Détail des projets'!B138)=0,"",'Détail des projets'!B138) -> 50643-124 - Nouvelle école Saint-Célestin: Mise en œuvre de mesures pour favoriser l'évitement d'émissions de GES - système d'aérothermie | C138: =IF(LEN('Détail des projets'!C138)=0,"",'Détail des projets'!C138) -> Riveraine | D138: =IF(LEN('Détail des projets'!G138)=0,"",'Détail des projets'!G138) -> 17-Centre-du-Québec | E138: =IF(LEN('Détail des projets'!K138)=0,"",'Détail des projets'!K138) -> 70957 | F138: 32.25 | G138: À la fin du projet (suite au dernier versement) | K138: -
B139: =IF(LEN('Détail des projets'!B139)=0,"",'Détail des projets'!B139) -> 50643-125 - Nouvelle Lab-école Shefford: Mise en œuvre de mesures pour favoriser l'évitement d'émissions de GES | C139: =IF(LEN('Détail des projets'!C139)=0,"",'Détail des projets'!C139) -> Val-des-Cerfs | D139: =IF(LEN('Détail des projets'!G139)=0,"",'Détail des projets'!G139) -> 16-Montérégie | E139: =IF(LEN('Détail des projets'!K139)=0,"",'Détail des projets'!K139) -> 108099 | F139: 49.14 | G139: À la fin du projet (suite au dernier versement) | K139: -
B140: =IF(LEN('Détail des projets'!B140)=0,"",'Détail des projets'!B140) -> 50643-126 - Projet de réduction de GES: Modernisation des chaufferies - Installation de système de géothermie (Nouvelles-Technologies) et remplacement des chaudières au mazout par des électriques (Rose-des-Vents et Lucioles) | C140: =IF(LEN('Détail des projets'!C140)=0,"",'Détail des projets'!C140) -> Seigneurie-des-Mille-Îles | D140: =IF(LEN('Détail des projets'!G140)=0,"",'Détail des projets'!G140) -> 15-Laurentides | E140: =IF(LEN('Détail des projets'!K140)=0,"",'Détail des projets'!K140) -> 442945.25 | F140: 194.52 | G140: À la fin du projet (suite au dernier versement) | H140: 530.32 | K140: 30
B141: =IF(LEN('Détail des projets'!B141)=0,"",'Détail des projets'!B141) -> 50643-127 - Projet de réduction des GES: Modernisation des chaufferies - Installation de systèmes de géothermies - 3 bâtiments | C141: =IF(LEN('Détail des projets'!C141)=0,"",'Détail des projets'!C141) -> CSDM | D141: =IF(LEN('Détail des projets'!G141)=0,"",'Détail des projets'!G141) -> 06-Montréal | E141: =IF(LEN('Détail des projets'!K141)=0,"",'Détail des projets'!K141) -> 976378 | F141: 436.99 | G141: À la fin du projet (suite au dernier versement) | H141: 71.11 | K141: 40
B142: =IF(LEN('Détail des projets'!B142)=0,"",'Détail des projets'!B142) -> 50643-128 - Nouvelle écoles Longue-Pointe: Mise en œuvre de mesures pour augmenter l'évitement d'émissions de GES - Géothermie | C142: =IF(LEN('Détail des projets'!C142)=0,"",'Détail des projets'!C142) -> CSDM | D142: =IF(LEN('Détail des projets'!G142)=0,"",'Détail des projets'!G142) -> 06-Montréal | E142: =IF(LEN('Détail des projets'!K142)=0,"",'Détail des projets'!K142) -> 175569 | F142: 80.09 | G142: À la fin du projet (suite au dernier versement) | K142: -
B143: =IF(LEN('Détail des projets'!B143)=0,"",'Détail des projets'!B143) -> 50643-129 - Nouvelle Lab-école Marguerite-d-Youville: Mise en œuvre de mesures pour favoriser l'évitement d'émissions de GES | C143: =IF(LEN('Détail des projets'!C143)=0,"",'Détail des projets'!C143) -> Rives-Du-Saguenay | D143: =IF(LEN('Détail des projets'!G143)=0,"",'Détail des projets'!G143) -> 02-Saguenay- Lac-Saint-Jean | E143: =IF(LEN('Détail des projets'!K143)=0,"",'Détail des projets'!K143) -> 106389.8 | F143: 48.36 | G143: À la fin du projet (suite au dernier versement) | K143: -
B144: =IF(LEN('Détail des projets'!B144)=0,"",'Détail des projets'!B144) -> 50643-130 - Nouvelle école à Blainville, secteur Chambéry : Mise en œuvre de mesures pour augmenter l'évitement d'émissions de GES - Systèmes de géothermie | C144: =IF(LEN('Détail des projets'!C144)=0,"",'Détail des projets'!C144) -> Seigneurie-des-Mille-Îles | D144: =IF(LEN('Détail des projets'!G144)=0,"",'Détail des projets'!G144) -> 15-Laurentides | E144: =IF(LEN('Détail des projets'!K144)=0,"",'Détail des projets'!K144) -> 146887 | F144: 363.36 | G144: À la fin du projet (suite au dernier versement) | K144: -
B145: =IF(LEN('Détail des projets'!B145)=0,"",'Détail des projets'!B145) -> 50643-131 - Nouvelle école Léry : Mise en œuvre de mesures pour augmenter l'évitement d'émissions de GES - système de géothermie | C145: =IF(LEN('Détail des projets'!C145)=0,"",'Détail des projets'!C145) -> Grandes-Seigneuries | D145: =IF(LEN('Détail des projets'!G145)=0,"",'Détail des projets'!G145) -> 16-Montérégie | E145: =IF(LEN('Détail des projets'!K145)=0,"",'Détail des projets'!K145) -> 148095.2 | F145: 67.32 | G145: À la fin du projet (suite au dernier versement) | K145: -
B146: =IF(LEN('Détail des projets'!B146)=0,"",'Détail des projets'!B146) -> 50643-132 - Agrandissment de l'école Deux-Soleils: Remplacement de 2 chaudières au mazout - Installation de thermopompe | C146: =IF(LEN('Détail des projets'!C146)=0,"",'Détail des projets'!C146) -> Des Sommets | D146: =IF(LEN('Détail des projets'!G146)=0,"",'Détail des projets'!G146) -> 05-Estrie | E146: =IF(LEN('Détail des projets'!K146)=0,"",'Détail des projets'!K146) -> 95706 | F146: 41.23 | G146: À la fin du projet (suite au dernier versement) | K146: -
B147: =IF(LEN('Détail des projets'!B147)=0,"",'Détail des projets'!B147) -> 50643-133 - Projet de réduction de GES: Piscine Sylvie-Bernier - Conversion vers géothermie | C147: =IF(LEN('Détail des projets'!C147)=0,"",'Détail des projets'!C147) -> des Découvreurs | D147: =IF(LEN('Détail des projets'!G147)=0,"",'Détail des projets'!G147) -> 03-Capitale-Nationale | E147: =IF(LEN('Détail des projets'!K147)=0,"",'Détail des projets'!K147) -> 747487 | F147: 337.49 | G147: À la fin du projet (suite au dernier versement) | H147: 103.35 | K147: 40
B148: =IF(LEN('Détail des projets'!B148)=0,"",'Détail des projets'!B148) -> 50643-134 - Nouvelle école à Mirabel, secteur Domaine-Vert-Nord 2: Mise en œuvre de mesures pour favoriser l'évitement d'émissions de GES - Système de géothermie - | C148: =IF(LEN('Détail des projets'!C148)=0,"",'Détail des projets'!C148) -> Seigneurie-des-Mille-Îles | D148: =IF(LEN('Détail des projets'!G148)=0,"",'Détail des projets'!G148) -> 15-Laurentides | E148: =IF(LEN('Détail des projets'!K148)=0,"",'Détail des projets'!K148) -> 106579 | F148: 48.45 | G148: À la fin du projet (suite au dernier versement) | K148: -
B149: =IF(LEN('Détail des projets'!B149)=0,"",'Détail des projets'!B149) -> 50643-135 - Nouvelle école Saint-Augustin : Mise en œuvre de mesures pour augmenter l'évitement d'émissions de GES - Systèmes de géothermie - | C149: =IF(LEN('Détail des projets'!C149)=0,"",'Détail des projets'!C149) -> Seigneurie-des-Mille-Îles | D149: =IF(LEN('Détail des projets'!G149)=0,"",'Détail des projets'!G149) -> 15-Laurentides | E149: =IF(LEN('Détail des projets'!K149)=0,"",'Détail des projets'!K149) -> 100989 | F149: 45.9 | G149: À la fin du projet (suite au dernier versement) | K149: -
B150: =IF(LEN('Détail des projets'!B150)=0,"",'Détail des projets'!B150) -> 50643-136 - Nouvelle école à Ste-Marthe-sur-le-Lac : Mise en œuvre de mesures pour augmenter l'évitement d'émissions de GES - Systèmes de géothermie - | C150: =IF(LEN('Détail des projets'!C150)=0,"",'Détail des projets'!C150) -> Seigneurie-des-Mille-Îles | D150: =IF(LEN('Détail des projets'!G150)=0,"",'Détail des projets'!G150) -> 15-Laurentides | E150: =IF(LEN('Détail des projets'!K150)=0,"",'Détail des projets'!K150) -> 146887 | F150: 66.77 | G150: À la fin du projet (suite au dernier versement) | K150: -
B151: =IF(LEN('Détail des projets'!B151)=0,"",'Détail des projets'!B151) -> 50643-137 - Nouvelle école à Terrebonne 640N: Mise en œuvre de mesures pour augmenter l'évitement d'émissions de GES - Systèmes de géothermie - | C151: =IF(LEN('Détail des projets'!C151)=0,"",'Détail des projets'!C151) -> Seigneurie-des-Mille-Îles | D151: =IF(LEN('Détail des projets'!G151)=0,"",'Détail des projets'!G151) -> 14-Lanaudière | E151: =IF(LEN('Détail des projets'!K151)=0,"",'Détail des projets'!K151) -> 127846 | F151: 58.11 | G151: À la fin du projet (suite au dernier versement) | K151: -
B152: =IF(LEN('Détail des projets'!B152)=0,"",'Détail des projets'!B152) -> 50643-138 - Nouvelle école à Terrebonne (Urbanova): Mise en œuvre de mesures pour augmenter l'évitement d'émissions de GES - Systèmes de géothermie - | C152: =IF(LEN('Détail des projets'!C152)=0,"",'Détail des projets'!C152) -> Seigneurie-des-Mille-Îles | D152: =IF(LEN('Détail des projets'!G152)=0,"",'Détail des projets'!G152) -> 14-Lanaudière | E152: =IF(LEN('Détail des projets'!K152)=0,"",'Détail des projets'!K152) -> 170212 | F152: 77.37 | G152: À la fin du projet (suite au dernier versement) | K152: -
B153: =IF(LEN('Détail des projets'!B153)=0,"",'Détail des projets'!B153) -> 50643-139 - Nouveau Complexe Multi-sports Polyvalente de St-Georges: Mise en œuvre de mesures pour augmenter l'évitement d'émissions de GES - système d'aérothermie | C153: =IF(LEN('Détail des projets'!C153)=0,"",'Détail des projets'!C153) -> Beauce-Etchemin | D153: =IF(LEN('Détail des projets'!G153)=0,"",'Détail des projets'!G153) -> 12-Chaudières-Appalaches | E153: =IF(LEN('Détail des projets'!K153)=0,"",'Détail des projets'!K153) -> 87307 | F153: 39.69 | G153: À la fin du projet (suite au dernier versement) | K153: -
B154: =IF(LEN('Détail des projets'!B154)=0,"",'Détail des projets'!B154) -> 50643-140 - Agrandissement de l'école Marie-Victorin: Mise en œuvre de mesures pour favoriser l'évitement d'émissions de GES - utilisation de la géothermie | C154: =IF(LEN('Détail des projets'!C154)=0,"",'Détail des projets'!C154) -> Marie-Victorin | D154: =IF(LEN('Détail des projets'!G154)=0,"",'Détail des projets'!G154) -> 16-Montérégie | E154: =IF(LEN('Détail des projets'!K154)=0,"",'Détail des projets'!K154) -> 85382 | F154: 38.81 | G154: À la fin du projet (suite au dernier versement) | K154: -
B155: =IF(LEN('Détail des projets'!B155)=0,"",'Détail des projets'!B155) -> 50643-141 - Projet de réduction GES: Modernisation de chaufferie de l'école Marie-Victorin: Système de chauffage lié à l'agrandissement - géothermie | C155: =IF(LEN('Détail des projets'!C155)=0,"",'Détail des projets'!C155) -> Marie-Victorin | D155: =IF(LEN('Détail des projets'!G155)=0,"",'Détail des projets'!G155) -> 16-Montérégie | E155: =IF(LEN('Détail des projets'!K155)=0,"",'Détail des projets'!K155) -> 101140 | F155: 43.69 | G155: À la fin du projet (suite au dernier versement) | H155: 116.1 | K155: 40
B156: =IF(LEN('Détail des projets'!B156)=0,"",'Détail des projets'!B156) -> 50643-144 - Projet de réduction GES: Modernisation de la chaufferie de l'école Bois-Joli: Remplacement des chaudières GN par système hybride (électrique et GN) | C156: =IF(LEN('Détail des projets'!C156)=0,"",'Détail des projets'!C156) -> Draveurs | D156: =IF(LEN('Détail des projets'!G156)=0,"",'Détail des projets'!G156) -> 07-Outaouais | E156: =IF(LEN('Détail des projets'!K156)=0,"",'Détail des projets'!K156) -> 127985.7 | F156: 55.9 | G156: À la fin du projet (suite au dernier versement) | H156: 82.73 | K156: 30
B157: =IF(LEN('Détail des projets'!B157)=0,"",'Détail des projets'!B157) -> 50643-145 - Agrandissement de l'école primaire Du Phare: Mise en œuvre de mesure pour favoriser l'évitement d'émission de GES | C157: =IF(LEN('Détail des projets'!C157)=0,"",'Détail des projets'!C157) -> Cote-du-sud | D157: =IF(LEN('Détail des projets'!G157)=0,"",'Détail des projets'!G157) -> 12-Chaudières-Appalaches | E157: =IF(LEN('Détail des projets'!K157)=0,"",'Détail des projets'!K157) -> 27900 | F157: 12.68 | G157: À la fin du projet (suite au dernier versement) | K157: -
B158: =IF(LEN('Détail des projets'!B158)=0,"",'Détail des projets'!B158) -> 50643-146 - Projet de réduction GES: Modernisation de chaufferies: Remplacement chaudières au GN par des électriques - 3 bâtiments | C158: =IF(LEN('Détail des projets'!C158)=0,"",'Détail des projets'!C158) -> Marguérite-Bourgeoys | D158: =IF(LEN('Détail des projets'!G158)=0,"",'Détail des projets'!G158) -> 06-Montréal | E158: =IF(LEN('Détail des projets'!K158)=0,"",'Détail des projets'!K158) -> 450733.06 | F158: 198.06 | G158: À la fin du projet (suite au dernier versement) | H158: 156.99 | K158: 30
B159: =IF(LEN('Détail des projets'!B159)=0,"",'Détail des projets'!B159) -> 50643-147 - Agrandissement de l'école Maclean: Mise en oeuvre de mesure pour favoriser l'évitement d'émission de GES | C159: =IF(LEN('Détail des projets'!C159)=0,"",'Détail des projets'!C159) -> Central Québec | D159: =IF(LEN('Détail des projets'!G159)=0,"",'Détail des projets'!G159) -> 10-Nord-du-Québec | E159: =IF(LEN('Détail des projets'!K159)=0,"",'Détail des projets'!K159) -> 69058 | F159: 31.39 | G159: À la fin du projet (suite au dernier versement) | K159: -
B160: =IF(LEN('Détail des projets'!B160)=0,"",'Détail des projets'!B160) -> 50643-149 - Projet de réduction GES: Modernisation de chaufferies dans 3 écoles | C160: =IF(LEN('Détail des projets'!C160)=0,"",'Détail des projets'!C160) -> CSDM | D160: =IF(LEN('Détail des projets'!G160)=0,"",'Détail des projets'!G160) -> 06-Montréal | E160: =IF(LEN('Détail des projets'!K160)=0,"",'Détail des projets'!K160) -> 1831453.54 | F160: 825.66 | G160: À la fin du projet (suite au dernier versement) | H160: 232.85 | K160: 30
B161: =IF(LEN('Détail des projets'!B161)=0,"",'Détail des projets'!B161) -> 50643-151 - Agrandissement de École secondaire Mont-Royal: Mise en oeuvre de mesure pour favoriser l'évitement d'émission de GES - chaufferies séparées | C161: =IF(LEN('Détail des projets'!C161)=0,"",'Détail des projets'!C161) -> Marguérite-Bourgeoys | D161: =IF(LEN('Détail des projets'!G161)=0,"",'Détail des projets'!G161) -> 06-Montréal | E161: =IF(LEN('Détail des projets'!K161)=0,"",'Détail des projets'!K161) -> 94476.8 | F161: 42.94 | G161: À la fin du projet (suite au dernier versement) | K161: -
B162: =IF(LEN('Détail des projets'!B162)=0,"",'Détail des projets'!B162) -> 50643-152 - Projet de réduction GES: Modernisation de la chaufferie de l'école Marguerite-Bourgeoys | C162: =IF(LEN('Détail des projets'!C162)=0,"",'Détail des projets'!C162) -> Hautes-Rivières | D162: =IF(LEN('Détail des projets'!G162)=0,"",'Détail des projets'!G162) -> 16-Montérégie | E162: =IF(LEN('Détail des projets'!K162)=0,"",'Détail des projets'!K162) -> 268853 | F162: 119.93 | G162: À la fin du projet (suite au dernier versement) | H162: 412.8 | K162: 30
B163: =IF(LEN('Détail des projets'!B163)=0,"",'Détail des projets'!B163) -> 50643-153 - Projet de réduction GES: Rénovation de chaufferie du bâtiment Le 4835, avenue Christophe-Colomb (762059) | C163: =IF(LEN('Détail des projets'!C163)=0,"",'Détail des projets'!C163) -> CSDM | D163: =IF(LEN('Détail des projets'!G163)=0,"",'Détail des projets'!G163) -> 06-Montréal | E163: =IF(LEN('Détail des projets'!K163)=0,"",'Détail des projets'!K163) -> 341262 | F163: 152.85 | G163: À la fin du projet (suite au dernier versement) | H163: 93.68 | K163: 30
B164: =IF(LEN('Détail des projets'!B164)=0,"",'Détail des projets'!B164) -> 50643-154 - Projet de réduction de GES: Modernisation des systèmes de ventilation fonctionnant au gaz de l'école Professionnelle des métiers, édifice Laurier (596) par des électriques. | C164: =IF(LEN('Détail des projets'!C164)=0,"",'Détail des projets'!C164) -> Hautes-Rivières | D164: =IF(LEN('Détail des projets'!G164)=0,"",'Détail des projets'!G164) -> 16-Montérégie | E164: =IF(LEN('Détail des projets'!K164)=0,"",'Détail des projets'!K164) -> 160838 | F164: 119.93 | G164: À la fin du projet (suite au dernier versement) | H164: 412.8 | K164: 30
B165: =IF(LEN('Détail des projets'!B165)=0,"",'Détail des projets'!B165) -> 50643-155 - Modernisation des chaufferies: Remplacement des chaudières GN par chaudière électrique et installation d'un système d'aérothermie (N-D-d-L) | C165: =IF(LEN('Détail des projets'!C165)=0,"",'Détail des projets'!C165) -> Hautes-Rivières | D165: =IF(LEN('Détail des projets'!G165)=0,"",'Détail des projets'!G165) -> 16-Montérégie | E165: =IF(LEN('Détail des projets'!K165)=0,"",'Détail des projets'!K165) -> 298996.77 | F165: 131.36 | G165: À la fin du projet (suite au dernier versement) | H165: 215.99 | K165: 30
B166: =IF(LEN('Détail des projets'!B166)=0,"",'Détail des projets'!B166) -> 50643-156 - Agrandissement école secondaire École Armand‐Corbeil: Mise en œuvre de mesure pour favoriser l'évitement d'émission de GES - Installation | C166: =IF(LEN('Détail des projets'!C166)=0,"",'Détail des projets'!C166) -> Affluents | D166: =IF(LEN('Détail des projets'!G166)=0,"",'Détail des projets'!G166) -> 14-Lanaudière | E166: =IF(LEN('Détail des projets'!K166)=0,"",'Détail des projets'!K166) -> 158050 | F166: 71.84 | G166: À la fin du projet (suite au dernier versement) | K166: -
B167: =IF(LEN('Détail des projets'!B167)=0,"",'Détail des projets'!B167) -> 50643-157 - Projet de réduction de GES: Modernisation de la chaufferie - raccordement du système de chauffage de la piscine à celui de l'agrandissement. | C167: =IF(LEN('Détail des projets'!C167)=0,"",'Détail des projets'!C167) -> Affluents | D167: =IF(LEN('Détail des projets'!G167)=0,"",'Détail des projets'!G167) -> 14-Lanaudière | E167: =IF(LEN('Détail des projets'!K167)=0,"",'Détail des projets'!K167) -> 100734 | F167: 43.97 | G167: À la fin du projet (suite au dernier versement) | H167: 193.1 | K167: 30
B168: =IF(LEN('Détail des projets'!B168)=0,"",'Détail des projets'!B168) -> 50643-158 - Projet de réduction de GES: Modernisation de la chaufferie de l'école de la Voltige - Remplacement chaudières au gaz par une chaudière électrique | C168: =IF(LEN('Détail des projets'!C168)=0,"",'Détail des projets'!C168) -> Chemin du Roy | D168: =IF(LEN('Détail des projets'!G168)=0,"",'Détail des projets'!G168) -> 04-Mauricie | E168: =IF(LEN('Détail des projets'!K168)=0,"",'Détail des projets'!K168) -> 105155 | F168: 59.02 | G168: À la fin du projet (suite au dernier versement) | H168: 106.04 | K168: 30
B169: =IF(LEN('Détail des projets'!B169)=0,"",'Détail des projets'!B169) -> 50643-159 - Projet de réduction GES: Modernisation de la chaufferie du centre Durocher: réfection de la chaufferie - Aérothermie | C169: =IF(LEN('Détail des projets'!C169)=0,"",'Détail des projets'!C169) -> Rives-Du-Saguenay | D169: =IF(LEN('Détail des projets'!G169)=0,"",'Détail des projets'!G169) -> 02-Saguenay- Lac-Saint-Jean | E169: =IF(LEN('Détail des projets'!K169)=0,"",'Détail des projets'!K169) -> 87835 | F169: 37.65 | G169: À la fin du projet (suite au dernier versement) | H169: 197.55 | K169: 25
B170: =IF(LEN('Détail des projets'!B170)=0,"",'Détail des projets'!B170) -> 50643-160 - Agrandissement de l'école primaire Cuillierrier. Mise en œuvre de mesure pour favoriser l'évitement d'émission de GES avec de l'aérothermie | C170: =IF(LEN('Détail des projets'!C170)=0,"",'Détail des projets'!C170) -> Trois-Lacs | D170: =IF(LEN('Détail des projets'!G170)=0,"",'Détail des projets'!G170) -> 16-Montérégie | E170: =IF(LEN('Détail des projets'!K170)=0,"",'Détail des projets'!K170) -> 17732 | F170: 8.06 | G170: À la fin du projet (suite au dernier versement) | K170: -
B171: =IF(LEN('Détail des projets'!B171)=0,"",'Détail des projets'!B171) -> 50643-161 - Projet de réduction GES: Transformation du Centre communautaire Albert-Gariépy en école - Remplacement de chaudière au gaz par de la géothermie | C171: =IF(LEN('Détail des projets'!C171)=0,"",'Détail des projets'!C171) -> Marguérite-Bourgeoys | D171: =IF(LEN('Détail des projets'!G171)=0,"",'Détail des projets'!G171) -> 06-Montréal | E171: =IF(LEN('Détail des projets'!K171)=0,"",'Détail des projets'!K171) -> 231600 | F171: 103 | G171: À la fin du projet (suite au dernier versement) | H171: 266.84 | K171: 40
B172: =IF(LEN('Détail des projets'!B172)=0,"",'Détail des projets'!B172) -> 50643-163 - Agrandissement et réaménagement de l'école secondaire Le Carrefour: Mise en œuvre de mesure pour favoriser l'évitement d'émission de GES | C172: =IF(LEN('Détail des projets'!C172)=0,"",'Détail des projets'!C172) -> Patriotes | D172: =IF(LEN('Détail des projets'!G172)=0,"",'Détail des projets'!G172) -> 16-Montérégie | E172: =IF(LEN('Détail des projets'!K172)=0,"",'Détail des projets'!K172) -> 97020 | F172: 44.1 | G172: À la fin du projet (suite au dernier versement) | K172: -
B173: =IF(LEN('Détail des projets'!B173)=0,"",'Détail des projets'!B173) -> 50643-164 - nouvelle école sur le terrain de l'école Trait-d 'Union: Mise en œuvre de mesure pour favoriser l'évitement d'émission de GES | C173: =IF(LEN('Détail des projets'!C173)=0,"",'Détail des projets'!C173) -> Seigneurie-des-Mille-Îles | D173: =IF(LEN('Détail des projets'!G173)=0,"",'Détail des projets'!G173) -> 15-Laurentides | E173: =IF(LEN('Détail des projets'!K173)=0,"",'Détail des projets'!K173) -> 91843 | F173: 41.75 | G173: À la fin du projet (suite au dernier versement) | K173: -
B174: =IF(LEN('Détail des projets'!B174)=0,"",'Détail des projets'!B174) -> 50643-165 - Nouvelle école Félix-Antoine-Savard: Mise en œuvre de mesure pour favoriser l'évitement d'émission de GES | C174: =IF(LEN('Détail des projets'!C174)=0,"",'Détail des projets'!C174) -> Charlevoix | D174: =IF(LEN('Détail des projets'!G174)=0,"",'Détail des projets'!G174) -> 03-Capitale-Nationale | E174: =IF(LEN('Détail des projets'!K174)=0,"",'Détail des projets'!K174) -> 179234 | F174: 81.47 | G174: À la fin du projet (suite au dernier versement) | K174: -
B175: =IF(LEN('Détail des projets'!B175)=0,"",'Détail des projets'!B175) -> 50643-166 - Agandissement de l'immeuble Bon-Séjour de l'École Au Coeur-des-Monts - Mise en œuvre de mesure pour favoriser l'évitement d'émission de GES | C175: =IF(LEN('Détail des projets'!C175)=0,"",'Détail des projets'!C175) -> Saint-Hyacinthe | D175: =IF(LEN('Détail des projets'!G175)=0,"",'Détail des projets'!G175) -> 16-Montérégie | E175: =IF(LEN('Détail des projets'!K175)=0,"",'Détail des projets'!K175) -> 26257 | F175: 12.05 | G175: À la fin du projet (suite au dernier versement) | K175: -
B176: =IF(LEN('Détail des projets'!B176)=0,"",'Détail des projets'!B176) -> 50643-167 - Projet de réduction GES: Modernisation de la chaufferie du Pavillon Clermont de l'école Boréal - Remplacement d'une chaudière au mazout par une électrique | C176: =IF(LEN('Détail des projets'!C176)=0,"",'Détail des projets'!C176) -> Lac-Abitibi | D176: =IF(LEN('Détail des projets'!G176)=0,"",'Détail des projets'!G176) -> 08-Abitibi-Témiscamingue | E176: =IF(LEN('Détail des projets'!K176)=0,"",'Détail des projets'!K176) -> 133722 | F176: 58.51 | G176: À la fin du projet (suite au dernier versement) | H176: 100.96 | K176: 30
B177: =IF(LEN('Détail des projets'!B177)=0,"",'Détail des projets'!B177) -> 50643-168 - Nouvelle école Terre-Soleil: Mise en œuvre de mesure pour favoriser l'évitement d'émission de GES | C177: =IF(LEN('Détail des projets'!C177)=0,"",'Détail des projets'!C177) -> Seigneurie-des-Mille-Îles | D177: =IF(LEN('Détail des projets'!G177)=0,"",'Détail des projets'!G177) -> 15-Laurentides | E177: =IF(LEN('Détail des projets'!K177)=0,"",'Détail des projets'!K177) -> 128982 | F177: 58.63 | G177: À la fin du projet (suite au dernier versement) | K177: -
B178: =IF(LEN('Détail des projets'!B178)=0,"",'Détail des projets'!B178) -> 50643-169 - Nouveau Centre de formation professionnelle Sainte-Justine-de-Newton - Mise en œuvre de mesure pour favoriser l'évitement d'émission de GES | C178: =IF(LEN('Détail des projets'!C178)=0,"",'Détail des projets'!C178) -> Trois-Lacs | D178: =IF(LEN('Détail des projets'!G178)=0,"",'Détail des projets'!G178) -> 16-Montérégie | E178: =IF(LEN('Détail des projets'!K178)=0,"",'Détail des projets'!K178) -> 31986 | F178: 14.54 | G178: À la fin du projet (suite au dernier versement) | K178: -
B179: =IF(LEN('Détail des projets'!B179)=0,"",'Détail des projets'!B179) -> 50643-171 - Nouvelle Lab École Rimouski: Mise en œuvre de mesure pour favoriser l'évitement d'émission de GES | C179: =IF(LEN('Détail des projets'!C179)=0,"",'Détail des projets'!C179) -> Phares | D179: =IF(LEN('Détail des projets'!G179)=0,"",'Détail des projets'!G179) -> 01-Bas-Saint-Laurent | E179: =IF(LEN('Détail des projets'!K179)=0,"",'Détail des projets'!K179) -> 150029 | F179: 68.2 | G179: À la fin du projet (suite au dernier versement) | K179: -
B180: =IF(LEN('Détail des projets'!B180)=0,"",'Détail des projets'!B180) -> 50643-172 - Projet de réduction GES: Modernisation de la chaufferie de 2 bâtiments - Remplacement de chaudières au mazout | C180: =IF(LEN('Détail des projets'!C180)=0,"",'Détail des projets'!C180) -> Seigneurie-des-Mille-Îles | D180: =IF(LEN('Détail des projets'!G180)=0,"",'Détail des projets'!G180) -> 15-Laurentides | E180: =IF(LEN('Détail des projets'!K180)=0,"",'Détail des projets'!K180) -> 96981 | F180: 39.54 | G180: À la fin du projet (suite au dernier versement) | H180: 278.24 | K180: 30
B181: =IF(LEN('Détail des projets'!B181)=0,"",'Détail des projets'!B181) -> 50643-173 - Agrandissement de l'école de la Baie-Saint-François: Mise en œuvre de mesure pour favoriser l'évitement d'émission de GES | C181: =IF(LEN('Détail des projets'!C181)=0,"",'Détail des projets'!C181) -> Vallée-des-Tisserands | D181: =IF(LEN('Détail des projets'!G181)=0,"",'Détail des projets'!G181) -> 16-Montérégie | E181: =IF(LEN('Détail des projets'!K181)=0,"",'Détail des projets'!K181) -> 188672 | F181: 85.76 | G181: À la fin du projet (suite au dernier versement) | K181: -
B182: =IF(LEN('Détail des projets'!B182)=0,"",'Détail des projets'!B182) -> 50643-174 - Nouvelle école à Saint-Hyacinthe: Mise en œuvre de mesure pour favoriser l'évitement d'émission de GES | C182: =IF(LEN('Détail des projets'!C182)=0,"",'Détail des projets'!C182) -> Saint-Hyacinthe | D182: =IF(LEN('Détail des projets'!G182)=0,"",'Détail des projets'!G182) -> 16-Montérégie | E182: =IF(LEN('Détail des projets'!K182)=0,"",'Détail des projets'!K182) -> 128867.2 | F182: 58.58 | G182: À la fin du projet (suite au dernier versement) | K182: -
B183: =IF(LEN('Détail des projets'!B183)=0,"",'Détail des projets'!B183) -> 50643-176 - Projet de réduction GES: Modernisation de la chaufferie du siège social - Conversion chaudière au mazout vers électrique | C183: =IF(LEN('Détail des projets'!C183)=0,"",'Détail des projets'!C183) -> Hauts-Cantons | D183: =IF(LEN('Détail des projets'!G183)=0,"",'Détail des projets'!G183) -> 05-Estrie | E183: =IF(LEN('Détail des projets'!K183)=0,"",'Détail des projets'!K183) -> 68140 | F183: 28.69 | G183: À la fin du projet (suite au dernier versement) | H183: 270.04 | K183: 30
B184: =IF(LEN('Détail des projets'!B184)=0,"",'Détail des projets'!B184) -> 50643-177 - Projet de réduction GES: Modernisation de la chaufferie de 4 bâtiments | C184: =IF(LEN('Détail des projets'!C184)=0,"",'Détail des projets'!C184) -> Hauts-Cantons | D184: =IF(LEN('Détail des projets'!G184)=0,"",'Détail des projets'!G184) -> 05-Estrie | E184: =IF(LEN('Détail des projets'!K184)=0,"",'Détail des projets'!K184) -> 347492 | F184: 148.91 | G184: À la fin du projet (suite au dernier versement) | H184: 200.83 | K184: 30
B185: =IF(LEN('Détail des projets'!B185)=0,"",'Détail des projets'!B185) -> 50643-178 - Agrandissement de l'école des Sentiers: Mise en œuvre de mesure pour favoriser l'évitement d'émission de GES | C185: =IF(LEN('Détail des projets'!C185)=0,"",'Détail des projets'!C185) -> Navigateurs | D185: =IF(LEN('Détail des projets'!G185)=0,"",'Détail des projets'!G185) -> 12-Chaudières-Appalaches | E185: =IF(LEN('Détail des projets'!K185)=0,"",'Détail des projets'!K185) -> 54340 | F185: 24.7 | G185: À la fin du projet (suite au dernier versement) | K185: -
B186: =IF(LEN('Détail des projets'!B186)=0,"",'Détail des projets'!B186) -> 50643-179 - Projet de réduction GES: Modernisation de la chaufferie de l'école Antoine-Saint-Exupéry: Conversion d'une chaudière au gaz par une électrique | C186: =IF(LEN('Détail des projets'!C186)=0,"",'Détail des projets'!C186) -> Pointe-de-l'Île | D186: =IF(LEN('Détail des projets'!G186)=0,"",'Détail des projets'!G186) -> 06-Montréal | E186: =IF(LEN('Détail des projets'!K186)=0,"",'Détail des projets'!K186) -> 317720 | F186: 142.59 | G186: À la fin du projet (suite au dernier versement) | H186: 26.8 | K186: 30
B187: =IF(LEN('Détail des projets'!B187)=0,"",'Détail des projets'!B187) -> 50643-180 - Projet de réduction GES: Modernisation de la chaufferie de l'école Saint-Michel: Remplacement de la chaudière à l'huile | C187: =IF(LEN('Détail des projets'!C187)=0,"",'Détail des projets'!C187) -> Chemin du Roy | D187: =IF(LEN('Détail des projets'!G187)=0,"",'Détail des projets'!G187) -> 04-Mauricie | E187: =IF(LEN('Détail des projets'!K187)=0,"",'Détail des projets'!K187) -> 68388 | F187: 29.96 | G187: À la fin du projet (suite au dernier versement) | H187: 194.41 | K187: 30
B188: =IF(LEN('Détail des projets'!B188)=0,"",'Détail des projets'!B188) -> 50643-181 - Agrandissement de l'école Jean‐Baptiste‐Meilleur: Mise en œuvre de mesure pour favoriser l'évitement d'émission de GES | C188: =IF(LEN('Détail des projets'!C188)=0,"",'Détail des projets'!C188) -> Affluents | D188: =IF(LEN('Détail des projets'!G188)=0,"",'Détail des projets'!G188) -> 14-Lanaudière | E188: =IF(LEN('Détail des projets'!K188)=0,"",'Détail des projets'!K188) -> 99484 | F188: 45.22 | G188: À la fin du projet (suite au dernier versement) | K188: -
B189: =IF(LEN('Détail des projets'!B189)=0,"",'Détail des projets'!B189) -> 50643-182 - Agrandissement de l'école Notre-Dame: Mise en œuvre de mesure pour favoriser l'évitement d'émission de GES - ajout géothermie | C189: =IF(LEN('Détail des projets'!C189)=0,"",'Détail des projets'!C189) -> Sorel-Tracy | D189: =IF(LEN('Détail des projets'!G189)=0,"",'Détail des projets'!G189) -> 16-Montérégie | E189: =IF(LEN('Détail des projets'!K189)=0,"",'Détail des projets'!K189) -> 67071 | F189: 30.49 | G189: À la fin du projet (suite au dernier versement) | K189: -
B190: =IF(LEN('Détail des projets'!B190)=0,"",'Détail des projets'!B190) -> 50643-186 - Projet de réduction GES: Modernisation de la chaufferies de l'école de l'Épervière: Remplacement de chaudières au GN par de la géothermie + Agrandissement | C190: =IF(LEN('Détail des projets'!C190)=0,"",'Détail des projets'!C190) -> Navigateurs | D190: =IF(LEN('Détail des projets'!G190)=0,"",'Détail des projets'!G190) -> 12-Chaudières-Appalaches | E190: =IF(LEN('Détail des projets'!K190)=0,"",'Détail des projets'!K190) -> 122691 | F190: 34.26 | G190: À la fin du projet (suite au dernier versement) | H190: 840.42 | K190: 40
B191: =IF(LEN('Détail des projets'!B191)=0,"",'Détail des projets'!B191) -> 50643-187 - Agrandissement école des Quatre-Vents: Mise en œuvre de mesure pour favoriser l'évitement d'émission de GES | C191: =IF(LEN('Détail des projets'!C191)=0,"",'Détail des projets'!C191) -> Navigateurs | D191: =IF(LEN('Détail des projets'!G191)=0,"",'Détail des projets'!G191) -> 12-Chaudières-Appalaches | E191: =IF(LEN('Détail des projets'!K191)=0,"",'Détail des projets'!K191) -> 14568 | F191: 6.62 | G191: À la fin du projet (suite au dernier versement) | K191: -
B192: =IF(LEN('Détail des projets'!B192)=0,"",'Détail des projets'!B192) -> 50643-188 - Agrandissement Sainte-Hélène: Mise en œuvre de mesure pour favoriser l'évitement d'émission de GES | C192: =IF(LEN('Détail des projets'!C192)=0,"",'Détail des projets'!C192) -> Navigateurs | D192: =IF(LEN('Détail des projets'!G192)=0,"",'Détail des projets'!G192) -> 12-Chaudières-Appalaches | E192: =IF(LEN('Détail des projets'!K192)=0,"",'Détail des projets'!K192) -> 14568 | F192: 6.62 | G192: À la fin du projet (suite au dernier versement) | K192: -
B193: =IF(LEN('Détail des projets'!B193)=0,"",'Détail des projets'!B193) -> 50643-190 - Agrandissement école Bon-Pasteur (Gymnase): Mise en œuvre de mesure pour favoriser l'évitement d'émission de GES | C193: =IF(LEN('Détail des projets'!C193)=0,"",'Détail des projets'!C193) -> Baie-James | D193: =IF(LEN('Détail des projets'!G193)=0,"",'Détail des projets'!G193) -> 10-Nord-du-Québec | E193: =IF(LEN('Détail des projets'!K193)=0,"",'Détail des projets'!K193) -> 18736 | F193: 8.52 | G193: À la fin du projet (suite au dernier versement) | K193: -
B194: =IF(LEN('Détail des projets'!B194)=0,"",'Détail des projets'!B194) -> 50643-191 - Agrandissement de l'école Mosaïque: Mise en œuvre de mesure pour favoriser l'évitement d'émission de GES | C194: =IF(LEN('Détail des projets'!C194)=0,"",'Détail des projets'!C194) -> Marguérite-Bourgeoys | D194: =IF(LEN('Détail des projets'!G194)=0,"",'Détail des projets'!G194) -> 06-Montréal | E194: =IF(LEN('Détail des projets'!K194)=0,"",'Détail des projets'!K194) -> 74644 | F194: 33.93 | G194: À la fin du projet (suite au dernier versement) | K194: -
B195: =IF(LEN('Détail des projets'!B195)=0,"",'Détail des projets'!B195) -> 50643-192 - Agrandissement de l'école Lajoie: Mise en œuvre de mesure pour favoriser l'évitement d'émission de GES - Remplacer les chaudières au GN par des chaudières électriques dans le bâtiment existant | C195: =IF(LEN('Détail des projets'!C195)=0,"",'Détail des projets'!C195) -> Marguérite-Bourgeoys | D195: =IF(LEN('Détail des projets'!G195)=0,"",'Détail des projets'!G195) -> 06-Montréal | E195: =IF(LEN('Détail des projets'!K195)=0,"",'Détail des projets'!K195) -> 286745 | F195: 112.5 | G195: À la fin du projet (suite au dernier versement) | H195: 179.84 | K195: 30
B196: =IF(LEN('Détail des projets'!B196)=0,"",'Détail des projets'!B196) -> 50643-193 - Agrandissment de l'école Saint-Louis: Remplacer les chaudières au GN par des chaudières électriques dans le bâtiment existant et géothermie dans l'agrandissement | C196: =IF(LEN('Détail des projets'!C196)=0,"",'Détail des projets'!C196) -> Marguérite-Bourgeoys | D196: =IF(LEN('Détail des projets'!G196)=0,"",'Détail des projets'!G196) -> 06-Montréal | E196: =IF(LEN('Détail des projets'!K196)=0,"",'Détail des projets'!K196) -> 263931 | F196: 82.76 | G196: À la fin du projet (suite au dernier versement) | H196: 67.07 | K196: 40
B197: =IF(LEN('Détail des projets'!B197)=0,"",'Détail des projets'!B197) -> 50643-194 - Projet de réduction GES: Modernisation de la chaufferie du CEA Champlain - Remplacer les chaudières au GN par des chaudières électriques | C197: =IF(LEN('Détail des projets'!C197)=0,"",'Détail des projets'!C197) -> Marguérite-Bourgeoys | D197: =IF(LEN('Détail des projets'!G197)=0,"",'Détail des projets'!G197) -> 06-Montréal | E197: =IF(LEN('Détail des projets'!K197)=0,"",'Détail des projets'!K197) -> 379985 | F197: 176.45 | G197: À la fin du projet (suite au dernier versement) | H197: 35.65 | K197: 30
B198: =IF(LEN('Détail des projets'!B198)=0,"",'Détail des projets'!B198) -> 50643-195 - Agrandissment de l'école Paul-Guérin-Lajoie - Remplacer les chaudières au GN par des chaudières électriques dans le bâtiment existant et géothermie dans l'agrandissement | C198: =IF(LEN('Détail des projets'!C198)=0,"",'Détail des projets'!C198) -> Marguérite-Bourgeoys | D198: =IF(LEN('Détail des projets'!G198)=0,"",'Détail des projets'!G198) -> 06-Montréal | E198: =IF(LEN('Détail des projets'!K198)=0,"",'Détail des projets'!K198) -> 145132 | F198: 33.08 | G198: À la fin du projet (suite au dernier versement) | H198: 161.09 | K198: 40
B199: =IF(LEN('Détail des projets'!B199)=0,"",'Détail des projets'!B199) -> 50643-200 - Mammouth - Construction d'une école secondaire dans l'arrondissement Charlesbourg (1256 places-élèves) | C199: =IF(LEN('Détail des projets'!C199)=0,"",'Détail des projets'!C199) -> des Premières-Seigneuries | D199: =IF(LEN('Détail des projets'!G199)=0,"",'Détail des projets'!G199) -> 03-Capitale-Nationale | E199: =IF(LEN('Détail des projets'!K199)=0,"",'Détail des projets'!K199) -> 466400 | F199: 174 | G199: À la fin du projet (suite au dernier versement)
B200: =IF(LEN('Détail des projets'!B200)=0,"",'Détail des projets'!B200) -> 50643-201 - Mammouth - Construction d'une école secondaire à Anjou - Pointe-de-l'ile, projet A (1 863 places-élèves) | C200: =IF(LEN('Détail des projets'!C200)=0,"",'Détail des projets'!C200) -> Pointe-de-l'Île | D200: =IF(LEN('Détail des projets'!G200)=0,"",'Détail des projets'!G200) -> 06-Montréal | E200: =IF(LEN('Détail des projets'!K200)=0,"",'Détail des projets'!K200) -> 655600 | F200: 245 | G200: À la fin du projet (suite au dernier versement)
B201: =IF(LEN('Détail des projets'!B201)=0,"",'Détail des projets'!B201) -> 50643-202 - Mammouth - Contruction d'une école selondaire à Montréal-Nord / St-Léonard - Pointe-de-l'ile, projet B (1706 places-élèves) | C201: =IF(LEN('Détail des projets'!C201)=0,"",'Détail des projets'!C201) -> Pointe-de-l'Île | D201: =IF(LEN('Détail des projets'!G201)=0,"",'Détail des projets'!G201) -> 06-Montréal | E201: =IF(LEN('Détail des projets'!K201)=0,"",'Détail des projets'!K201) -> 598400 | F201: 224 | G201: À la fin du projet (suite au dernier versement)
B202: =IF(LEN('Détail des projets'!B202)=0,"",'Détail des projets'!B202) -> 50643-203 - Mammouth - Construction d'une école secondaire dans le secteur LaSalle (terrain Cégep André-Laurendeau) (1024 places-élèves) | C202: =IF(LEN('Détail des projets'!C202)=0,"",'Détail des projets'!C202) -> Marguérite-Bourgeoys | D202: =IF(LEN('Détail des projets'!G202)=0,"",'Détail des projets'!G202) -> 06-Montréal | E202: =IF(LEN('Détail des projets'!K202)=0,"",'Détail des projets'!K202) -> 400400 | F202: 150 | G202: À la fin du projet (suite au dernier versement)
B203: =IF(LEN('Détail des projets'!B203)=0,"",'Détail des projets'!B203) -> 50643-204 - Mammouth - Construction d'une école secondaire dans le secteur Nord-Ouest (secteur Ste-Geneviève - terrain Cégep Gérald-Godin) (913 places-élèves) | C203: =IF(LEN('Détail des projets'!C203)=0,"",'Détail des projets'!C203) -> Marguérite-Bourgeoys | D203: =IF(LEN('Détail des projets'!G203)=0,"",'Détail des projets'!G203) -> 06-Montréal | E203: =IF(LEN('Détail des projets'!K203)=0,"",'Détail des projets'!K203) -> 371800 | F203: 139 | G203: À la fin du projet (suite au dernier versement)
B204: =IF(LEN('Détail des projets'!B204)=0,"",'Détail des projets'!B204) -> 50643-205 - Mammouth - Construction d'une école primaire-secondaire à l'Île-des-Sœurs (18 classes du primaire et 959 places-élèves au secondaire) | C204: =IF(LEN('Détail des projets'!C204)=0,"",'Détail des projets'!C204) -> Marguérite-Bourgeoys | D204: =IF(LEN('Détail des projets'!G204)=0,"",'Détail des projets'!G204) -> 06-Montréal | E204: =IF(LEN('Détail des projets'!K204)=0,"",'Détail des projets'!K204) -> 369600 | F204: 138 | G204: À la fin du projet (suite au dernier versement)
B205: =IF(LEN('Détail des projets'!B205)=0,"",'Détail des projets'!B205) -> 50643-206 - Mammouth - Construction d'une école secondaire à Laval (2 150 places-élèves) | C205: =IF(LEN('Détail des projets'!C205)=0,"",'Détail des projets'!C205) -> Laval | D205: =IF(LEN('Détail des projets'!G205)=0,"",'Détail des projets'!G205) -> 13-Laval | E205: =IF(LEN('Détail des projets'!K205)=0,"",'Détail des projets'!K205) -> 756800 | F205: 283 | G205: À la fin du projet (suite au dernier versement)
B206: =IF(LEN('Détail des projets'!B206)=0,"",'Détail des projets'!B206) -> 50643-207 - Mammouth - Construction d'une école secondaire à Terrebonne | C206: =IF(LEN('Détail des projets'!C206)=0,"",'Détail des projets'!C206) -> Affluents | D206: =IF(LEN('Détail des projets'!G206)=0,"",'Détail des projets'!G206) -> 14-Lanaudière | E206: =IF(LEN('Détail des projets'!K206)=0,"",'Détail des projets'!K206) -> 466400 | F206: 174 | G206: À la fin du projet (suite au dernier versement)
B207: =IF(LEN('Détail des projets'!B207)=0,"",'Détail des projets'!B207) -> 50643-208 - Mammouth - Construction d'une école secondaire à Mirabel (1 280 places-élèves) (Saint-Augustin) | C207: =IF(LEN('Détail des projets'!C207)=0,"",'Détail des projets'!C207) -> Seigneurie-des-Mille-Îles | D207: =IF(LEN('Détail des projets'!G207)=0,"",'Détail des projets'!G207) -> 15-Laurentides | E207: =IF(LEN('Détail des projets'!K207)=0,"",'Détail des projets'!K207) -> 490600 | F207: 184 | G207: À la fin du projet (suite au dernier versement)
B208: =IF(LEN('Détail des projets'!B208)=0,"",'Détail des projets'!B208) -> 50643-209 - Mammouth - Construction d'une école secondaire à Saint-Jérôme (1 256 places-élèves) | C208: =IF(LEN('Détail des projets'!C208)=0,"",'Détail des projets'!C208) -> Rivière-du-Nord | D208: =IF(LEN('Détail des projets'!G208)=0,"",'Détail des projets'!G208) -> 15-Laurentides | E208: =IF(LEN('Détail des projets'!K208)=0,"",'Détail des projets'!K208) -> 466400 | F208: 174 | G208: À la fin du projet (suite au dernier versement)
B209: =IF(LEN('Détail des projets'!B209)=0,"",'Détail des projets'!B209) -> 50643-210 - Mammouth - Agrandissement de l'école secondaire de Chambly (1 365 places-élèves) | C209: =IF(LEN('Détail des projets'!C209)=0,"",'Détail des projets'!C209) -> Patriotes | D209: =IF(LEN('Détail des projets'!G209)=0,"",'Détail des projets'!G209) -> 16-Montérégie | E209: =IF(LEN('Détail des projets'!K209)=0,"",'Détail des projets'!K209) -> 486200 | F209: 182 | G209: À la fin du projet (suite au dernier versement)
B210: =IF(LEN('Détail des projets'!B210)=0,"",'Détail des projets'!B210) -> 50643-211 - Mammouth - Construction de l'école secondaire Louis-Philippe-Paré (2512 places-élèves) et démolition de l'infrastructure existante | C210: =IF(LEN('Détail des projets'!C210)=0,"",'Détail des projets'!C210) -> Grandes-Seigneuries | D210: =IF(LEN('Détail des projets'!G210)=0,"",'Détail des projets'!G210) -> 16-Montérégie | E210: =IF(LEN('Détail des projets'!K210)=0,"",'Détail des projets'!K210) -> 919600 | F210: 344 | G210: À la fin du projet (suite au dernier versement)
B211: =IF(LEN('Détail des projets'!B211)=0,"",'Détail des projets'!B211) -> 50643-212 - Mammouth - Construction d'une école secondaire à Vaudreuil-Dorion (1 256 places-élèves) | C211: =IF(LEN('Détail des projets'!C211)=0,"",'Détail des projets'!C211) -> Trois-Lacs | D211: =IF(LEN('Détail des projets'!G211)=0,"",'Détail des projets'!G211) -> 16-Montérégie | E211: =IF(LEN('Détail des projets'!K211)=0,"",'Détail des projets'!K211) -> 466400 | F211: 174 | G211: À la fin du projet (suite au dernier versement)
B212: =IF(LEN('Détail des projets'!B212)=0,"",'Détail des projets'!B212) -> 50643-213 - Mammouth - Construction d'une école secondaire à Saint-Zotique (1256 places-élèves) | C212: =IF(LEN('Détail des projets'!C212)=0,"",'Détail des projets'!C212) -> Trois-Lacs | D212: =IF(LEN('Détail des projets'!G212)=0,"",'Détail des projets'!G212) -> 16-Montérégie | E212: =IF(LEN('Détail des projets'!K212)=0,"",'Détail des projets'!K212) -> 466400 | F212: 174 | G212: À la fin du projet (suite au dernier versement)
B213: =IF(LEN('Détail des projets'!B213)=0,"",'Détail des projets'!B213) -> 50643-214 - Mammouth - Construction d'une école secondaire à Drummondville | C213: =IF(LEN('Détail des projets'!C213)=0,"",'Détail des projets'!C213) -> Chênes | D213: =IF(LEN('Détail des projets'!G213)=0,"",'Détail des projets'!G213) -> 17-Centre-du-Québec | E213: =IF(LEN('Détail des projets'!K213)=0,"",'Détail des projets'!K213) -> 466400 | F213: 174 | G213: À la fin du projet (suite au dernier versement)
B214: =IF(LEN('Détail des projets'!B214)=0,"",'Détail des projets'!B214) -> 50643-300 - Nouveau Batiment: Mise en œuvre de mesure pour favoriser l'évitement d'émission de GES | C214: =IF(LEN('Détail des projets'!C214)=0,"",'Détail des projets'!C214) -> Kamouraska - Rivière-du-loup | D214: =IF(LEN('Détail des projets'!G214)=0,"",'Détail des projets'!G214) -> 01-Bas-Saint-Laurent | E214: =IF(LEN('Détail des projets'!K214)=0,"",'Détail des projets'!K214) -> 137500 | F214: 62.5 | G214: À la fin du projet (suite au dernier versement)
... 161 more rows

Sheet Indicateurs
B2: =Utilitaire!E8 -> Plan d'action 2013-2020 sur les changements climatiques
B3: ="Action " & Accueil!D58 -> Action en cours
B4: =Accueil!D55 -> 11.5 | C4: =Accueil!E55 -> Investissements en infrastructures écoresponsables
B5: Ministère porteur: | C5: =Accueil!$D$65 -> MEQ
B6: Indicateurs
B20: Informations en date du : | E20: 2022-03-31
B22: INDICATEURS DE PERFORMANCE | H22: =IF(OR(AND(MONTH(#REF!)>6,YEAR(#REF!)=VALUE(MID(G23,1,4))),YEAR(#REF!)>VALUE(MID(G23,1,4))),"Réel","Prévu") ->  | I22: =IF(OR(AND(MONTH(#REF!)>6,YEAR(#REF!)=VALUE(MID(H23,1,4))),YEAR(#REF!)>VALUE(MID(H23,1,4))),"Réel","Prévu") ->  | J22: =IF(OR(AND(MONTH(#REF!)>6,YEAR(#REF!)=VALUE(MID(I23,1,4))),YEAR(#REF!)>VALUE(MID(I23,1,4))),"Réel","Prévu") ->  | K22: =IF(OR(AND(MONTH(#REF!)>6,YEAR(#REF!)=VALUE(MID(J23,1,4))),YEAR(#REF!)>VALUE(MID(J23,1,4))),"Réel","Prévu") ->  | L22: =IF(OR(AND(MONTH(#REF!)>6,YEAR(#REF!)=VALUE(MID(K23,1,4))),YEAR(#REF!)>VALUE(MID(K23,1,4))),"Réel","Prévu") ->  | M22: =IF(OR(AND(MONTH(#REF!)>6,YEAR(#REF!)=VALUE(MID(L23,1,4))),YEAR(#REF!)>VALUE(MID(L23,1,4))),"Réel","Prévu") ->  | N22: =IF(OR(AND(MONTH(#REF!)>6,YEAR(#REF!)=VALUE(MID(M23,1,4))),YEAR(#REF!)>VALUE(MID(M23,1,4))),"Réel","Prévu") ->  | O22: =IF(OR(AND(MONTH(#REF!)>6,YEAR(#REF!)=VALUE(MID(N23,1,4))),YEAR(#REF!)>VALUE(MID(N23,1,4))),"Réel","Prévu") ->  | P22: =IF(OR(AND(MONTH(#REF!)>6,YEAR(#REF!)=VALUE(MID(O23,1,4))),YEAR(#REF!)>VALUE(MID(O23,1,4))),"Réel","Prévu") ->  | Q22: =IF(OR(AND(MONTH(#REF!)>6,YEAR(#REF!)=VALUE(MID(P23,1,4))),YEAR(#REF!)>VALUE(MID(P23,1,4))),"Réel","Prévu") ->  | S22: =IF(OR(AND(MONTH(#REF!)>6,YEAR(#REF!)=VALUE(MID(Q23,1,4))),YEAR(#REF!)>VALUE(MID(Q23,1,4))),"Réel","Prévu") ->  | T22: =MONTH(#REF!) -> 
B23: Cible | C23: Unité de mesure | D23: Année prévue d'atteinte de la cible | E23: Description de l'indicateur | F23: Type d'indicateur | G23: 2013-2014 | H23: 2014-2015 | I23: 2015-2016 | J23: 2016-2017 | K23: 2017-2018 | L23: 2018-2019 | M23: 2019-2020 | N23: 2020-2021 | O23: 2021-2022 | P23: 2022-2023 | Q23: 2023-2024 | R23: 2024-2025 | S23: RÉSULTAT À COMPARER AVEC LA CIBLE | T23: Pourcentage d'atteinte de la cible | U23: Commentaires sur les résultats
G24: Réel | H24: Réel | I24: Réel | J24: Réel | K24: Réel | L24: Réel | M24: Réel | N24: Réel | O24: Réel | P24: Prévu | Q24: Prévu | R24: Prévu | U24: (facultatif)
A25: 1 | G25: =PourcentageAvancementJbf(Utilitaire!C229,'Détail des projets'!O374,1000000*Accueil!$D$67) -> 0 | H25: =PourcentageAvancementJbf(Utilitaire!D229,'Détail des projets'!P374,1000000*Accueil!$D$67) -> 0 | I25: =PourcentageAvancementJbf(Utilitaire!E229,'Détail des projets'!Q374,1000000*Accueil!$D$67) -> 0 | J25: =PourcentageAvancementJbf(Utilitaire!F229,'Détail des projets'!R374,1000000*Accueil!$D$67) -> 0 | K25: =PourcentageAvancementJbf(Utilitaire!G229,'Détail des projets'!S374,1000000*Accueil!$D$67) -> 0 | L25: =PourcentageAvancementJbf(Utilitaire!H229,'Détail des projets'!T374,1000000*Accueil!$D$67) -> 0 | M25: =PourcentageAvancementJbf(Utilitaire!I229,'Détail des projets'!U374,1000000*Accueil!$D$67) -> 0 | N25: =PourcentageAvancementJbf(Utilitaire!J229,'Détail des projets'!V374,1000000*Accueil!$D$67) -> 0 | O25: =PourcentageAvancementJbf(Utilitaire!K227,'Détail des projets'!W374,1000000*Accueil!$D$67) -> 0.5530499321 | T25: =IF(COUNTA(B25)=1,IF(COUNTA(S25)=1,IF(F25="Minimum à atteindre",IF(B25=0,IF(S25>0,1,0),S25/B25),IF(F25="Maximum à ne pas dépasser",IF(B25=0,IF(S25<0,1,0),(B25-S25)/B25+1),IF(F25="Binaire",IF(B25=S25,1,0),""))),0),"") -> 
A26: 2 | B26: 140 | C26: $ / tonne | D26: 2020 | E26: Coûts par tonne d'émission de GES réduite ou évitée | F26: maximum à ne pas dépasser | G26: 0 | H26: 0 | I26: 0 | J26: 0 | K26: 0 | L26: 0 | M26: 0 | N26: 0 | O26: 213 | S26: 213 | T26: =IF(COUNTA(B26)=1,IF(COUNTA(S26)=1,IF(F26="Minimum à atteindre",IF(B26=0,IF(S26>0,1,0),S26/B26),IF(F26="Maximum à ne pas dépasser",IF(B26=0,IF(S26<0,1,0),(B26-S26)/B26+1),IF(F26="Binaire",IF(B26=S26,1,0),""))),0),"") -> 0.4785714286
A27: 3 | B27: 22754 | C27: T/CO2 | D27: 2020 | E27: Réduction annuelle des émissions de gaz à effet de serre (GES). | F27: minimum à atteindre | G27: 0 | H27: 0 | I27: 0 | J27: 0 | K27: 0 | L27: 0 | T27: 0 | U27: Les résultats sont à venir.
A28: 4 | B28: 30 | C28: % | D28: 2020 | E28: Réduction du nombre de bâtiments utilisant le mazout ou le gaz naturel comme source de chauffage principal et qui ont bénéficié du programme PACC par rapport au nombre total de bâtiments chauffés au mazout (415) ou au gaz naturel (1583) en 2015 | F28: minimum à atteindre | G28: 0 | H28: 0 | I28: 0 | J28: 0 | K28: 0 | L28: 0 | T28: 0 | U28: Les résultats sont à venir.
A29: 5
A30: 6
A31: 7
A32: 8
A33: 9
A34: 10
A35: 11 | T35: =IF(COUNTA(B35)=1,IF(COUNTA(S35)=1,IF(F35="Minimum à atteindre",IF(B35=0,IF(S35>0,1,0),S35/B35),IF(F35="Maximum à ne pas dépasser",IF(B35=0,IF(S35<0,1,0),(B35-S35)/B35+1),IF(F35="Binaire",IF(B35=S35,1,0),""))),0),"") -> 
A36: 12 | T36: =IF(COUNTA(B36)=1,IF(COUNTA(S36)=1,IF(F36="Minimum à atteindre",IF(B36=0,IF(S36>0,1,0),S36/B36),IF(F36="Maximum à ne pas dépasser",IF(B36=0,IF(S36<0,1,0),(B36-S36)/B36+1),IF(F36="Binaire",IF(B36=S36,1,0),""))),0),"") -> 
A37: 13 | T37: =IF(COUNTA(B37)=1,IF(COUNTA(S37)=1,IF(F37="Minimum à atteindre",IF(B37=0,IF(S37>0,1,0),S37/B37),IF(F37="Maximum à ne pas dépasser",IF(B37=0,IF(S37<0,1,0),(B37-S37)/B37+1),IF(F37="Binaire",IF(B37=S37,1,0),""))),0),"") -> 
A38: 14
A39: 15 | T39: =IF(COUNTA(B39)=1,IF(COUNTA(S39)=1,IF(F39="Minimum à atteindre",IF(B39=0,IF(S39>0,1,0),S39/B39),IF(F39="Maximum à ne pas dépasser",IF(B39=0,IF(S39<0,1,0),(B39-S39)/B39+1),IF(F39="Binaire",IF(B39=S39,1,0),""))),0),"") -> 
A40: 16 | T40: =IF(COUNTA(B40)=1,IF(COUNTA(S40)=1,IF(F40="Minimum à atteindre",IF(B40=0,IF(S40>0,1,0),S40/B40),IF(F40="Maximum à ne pas dépasser",IF(B40=0,IF(S40<0,1,0),(B40-S40)/B40+1),IF(F40="Binaire",IF(B40=S40,1,0),""))),0),"") -> 
A41: 17
A42: 18
A43: 19
A44: 20
A45: 21 | AQ45: FALSE
B69: PRÉVISIONS DES RETOMBÉES SUR LES RÉDUCTIONS DES ÉMISSIONS DE GES | F69: Ce tableau et les résultats par action qu'il contient ne seront pas publiés. L'objectif est de permettre une appréciation à l'échelle du PACC des résultats escomptés. Veuillez le compléter et vérifier l'information qui y est contenue, au meilleur de vos connaissances et avec l'information dont vous disposez.
B70: Niveau de certitude | E70: Lieu | F70: 2020 | G70: 2021 | H70: 2022 | I70: 2023 | J70: 2024 | K70: 2025 | L70: 2026 | M70: 2030 | N70: 2035 | O70: 2036 | P70: 2038 | Q70: 2029 | R70: 2031 | S70: 2040 | T70: 2050 | U70: Commentaires sur les résultats
B71: Pérennité des réductions d'émissions de GES réalisées à ce jour (T éq. CO2) | E71: Au Québec
E72: Hors Québec
E73: Non distingué
B74: Développement du potentiel de réduction des émissions de GES pour le futur (T éq. CO2) | E74: Au Québec
E75: Hors Québec
E76: Non distingué
B153: ADAPTATION AUX EFFETS DES CHANGEMENTS CLIMATIQUES
B154: Solutions d'adaptation proposées | D154: Lignes concernées de l'onglet Détail des projets | E154: Étape | F154: Ajustements | H154: Risques | J154: Effets des changements climatiques | L154: Région | S154: Échelle humaine | U154: Échelle environnementale
F155: La solution agit sur : | H155: afin de protéger : | J155: de : | S155: (estimation du nombre de personnes desservies) | U155: (estimation du nombre d'espèces desservies)
D156: 25
D157: 26
D158: 27
D159: 28
D160: 29
D161: 30
D162: 31
D163: 32
B292: Ajouter une ligne

Sheet Évaluation (hidden)
B2: =Utilitaire!E8 -> Plan d'action 2013-2020 sur les changements climatiques | H2: Conseils de rédaction : | M2: Informations en date du : | N2: =Utilitaire!G6 -> 2022-03-31
B3: ="Action " & Accueil!D58 -> Action en cours | H3: - Veuillez compléter la section "Évaluation de l'action" (OBLIGATOIRE) - ligne 204 (Fin du PACC) - Cet onglet sera pour usage interne seulement, il ne sera pas publié. - Des bulles commentaires dans chacun des titres vous aideront à remplir adéquatement les différentes colonnes. - Les cases de la section « Évaluation de l'action » sont limitées à 3000 caractères.
B4: =Accueil!D55 -> 11.5 | C4: =Accueil!E55 -> Investissements en infrastructures écoresponsables
B5: Ministère porteur: | C5: =Accueil!$D$65 -> MEQ
B6: Évaluation
B7: Informations en date du : | D7: 2022-03-31
B38: Est-ce qu'une production d'un rapport d'évaluation complet est prévue dans le cadre de cette action :
B40: Liste des livrables
B41: Titre du document | D41: Date du document | F41: Type de document | I41: Date prévue de transmission au BECC | K41: Date réelle de transmission au BECC | M41: Référence | N41: Commentaires
B146: Ajouter une ligne
B204: Évaluation de l'action
C209: Début : | D209: =Accueil!$D$68 -> 2018-04-27 | I209: Fin : | J209: =Accueil!$K$68 -> 2025-12-31
B210: Résultats attendus : | C210: =IF(LEN(Description!C49)>0,Description!C49,"") -> Réduction des émissions de GES des bâtiments du réseau des centres de services scolaires et des commissions scolaires et l'amélioration de leur consommation énergétique.
B211: Résultats obtenus (Cibles, indicateurs et description) : | C211: =IF(COUNTA(Indicateurs!B25:B45)=0,0,AVERAGE(Indicateurs!$T$25:$T$45)) -> 0.1595238095 | D211: =IF(LEN(Description!C50)>0,Description!C50,"") -> Dans la dernière année, considérant l'année budgétaire 2021-2022 (1er avril 2021 au 31 mars 2022), les travaux de 25 projets ont été finalisés. Les réductions annuelles prévues pour ces projets est de 4,3 kT de CO2eq annuellement.
D212: =IF(LEN(Description!C51)>0,Description!C51,"") -> Depuis son lancement le 27 avril 2018, l'action a permis d'autoriser la réalisation de 353 projets, pour un total de plus de 86,24M$. Ces projets touchent 516 bâtiments répartis dans plus de 127 municipalités.
B217: Type d'évaluation : | C217: En cours d'action
B218: Est-ce que les résultats obtenus dans le cadre de l'action sont satisfaisants? | C218: Oui | D218: Les résultats attendus en matière de réduction ou d'évitement de GES sont très prometteurs. Avec un engament financcier de d'environ 86,24M$, il est prévu une réduction / évitement d'environ 38 320 tonnes de CO2 éq. Ce qui représente dépasse la cible de 22 754 t CO2 éq à atteindre.
B219: Quelles sont les améliorations possibles pour le futur? | C219: Il serait pertinent que le programme puisse permettre aussi le financement de la mise œuvre des mesures visant l'ADAPTATION AUX EFFETS DES CHANGEMENTS CLIMATIQUES comme la surchauffe dans les bâtiments scolaires et la qualité de l'air intérieur par l'amélioration de paramètres de confort comme le taux de CO2, la température et le taux d'humidité relative pour favoriser la réussite éducative.
B220: Quels sont les forces et les points positifs de l'action? | C220: 1. Permet de réduire ou d'éviter les émissions de GES des bâtiments du réseau des centres de serices scolaires (CSS) et des commissions scolaires (CS) 2. Permet de renover les chaufferies des bâtiments des CSS et CS dans lesquels les projets sont réalisés 3. Permet d'améliorer l'efficacité énergétique des bâtiments dans lesquels les projets sont réalisés par l'installation d'équipements plus performants et moins énergivores 4. Permet dans certains cas des économies sur les factures énergétiques
B221: Quelle est votre recommandation quant à la poursuite de cette action? | C221: Reconduire
B222: Autres commentaires

Sheet Commentaires (hidden)
B2: =Utilitaire!E8 -> Plan d'action 2013-2020 sur les changements climatiques | T2: COF
B3: ="Action " & Accueil!D58 -> Action en cours | T3: Frais
B4: =Accueil!D55 -> 11.5 | C4: =Accueil!E55 -> Investissements en infrastructures écoresponsables | T4: ETC
B5: Ministère porteur: | C5: =Accueil!$D$65 -> MEQ | T5: Détail des projets
B6: Commentaires | T6: Détail des projets (GES)
T7: Bilan GES
T8: Indicateurs
T9: Toutes-Autre
T12: 2013-2014
T13: 2014-2015
T14: 2015-2016
T15: 2016-2017
T16: 2017-2018
T17: 2018-2019
T18: 2019-2020
T19: 2020-2021
B20: Informations en date du : | E20: 2022-03-31 | T20: 2021-2022
T21: 2022-2023
T22: 2023-2024
B24: Commentaires | M24: Section concernée | O24: Année | P24: Exercice | Q24: nom Commentateur | R24: courriel Commentateur
T32: juin
T33: décembre

Sheet Validation (hidden)
B2: =Utilitaire!E8 -> Plan d'action 2013-2020 sur les changements climatiques
B3: ="Action " & Accueil!D58 -> Action en cours
B4: =Accueil!D55 -> 11.5
B5: Ministère porteur: | D5: =Accueil!$D$65 -> MEQ | E5: =Accueil!$D$65 -> MEQ
B6: Rapport de validation de la fiche de suivi
B8: Conseils de rédaction : | E8: Informations en date du : | G8: =Utilitaire!G6 -> 2022-03-31
B9: '- Cet onglet ne sera pas diffusé. - Nous apprécierions vos commentaires constructifs par rapport aux nouvelles fiches de suivi. La case B15 est réservée à cet effet. - Complétez la grille de validation ci-dessous (ligne 19) en cochant chaque point. Vous pouvez inscrire des commentaires à l'endroit prévu à cet effet.
B14: Votre appréciation de la fiche de suivi et suggestions pour les prochains exercices
B17: Grille de validation de la fiche de suivi
B18: Fin du PACC | G18: Commentaires
B19: Avez-vous complété le tableau de la ligne 204 de l'onglet Évaluation?
B20: Avez-vous saisi tous vos engagements à SAGIR (vous avez jusqu'au 31 mai)?
B21: Onglet Accueil | G21: Commentaires
B22: Vérifier que toutes les cases sont remplies.
B23: Les cases non remplies s'affichent en orange Les lignes 69 à 73 seront masquées pour la publication.
B24: Vérifier que la part de financement est écrite sous forme de pourcentage (ex. : 60 %). | G24: % variable en fonction des projets.
B25: Inscrire un nombre entre 0 et 100 suivi du symbole "%". Si le pourcentage est variable, inscrire "Variable".
B26: Vérifier que le statut de l'action est toujours conforme avec son évolution.
B27: Utiliser l'information des onglets "Description" et Détail des projets" afin que le statut soit conforme avec l'évolution de l'action.
B28: Vérifier, s'il y a lieu, que le nom du programme est inscrit.
B29: Onglet Description | G29: Commentaires
B30: Vérifier que toutes les cases obligatoires sont remplies.
B31: Vérifier que tous les éléments pertinents en lien avec le COVID-19 sont inscrits au tableau prévu à cet effet.
B32: Vérifier que les éléments de classification de l'action sont sélectionnés à partir du menu déroulant.
B33: Vérifier que l'entièreté du texte est lisible.
B34: Vérifier que l'échéancier dans la section "Mise en œuvre" est inscrit.
B35: Vérifier que l'état d'avancement est sélectionné à partir du menu déroulant.
B36: Vérifier que le tableau "Plans, stratégies, politiques incluant la mise en œuvre de cette action" est rempli.
B37: Onglet Détail des projets | G37: Commentaires
B38: Vérifier que les informations confidentielles sont inscrites en bleu.
B39: Transmettre au BECC le rapport des résultats, si un projet est terminé.
B40: Vérifier le total des dépenses réelles de tous les projets correspond à celui inscrit dans les COF pour chaque année financière complétée. | G40: Divergence à la suite de l'exercice de mise à jour des données au 31 mars 2022
B41: Vérifier que le total des dépenses réelles et prévues pour un projet n'excède pas le montant engagé.
B42: Vérifier l'utilisation des nouveaux statuts de projets pour les projets affectés par le COVID-19
B43: Onglet GES | G43: Commentaires
B44: Vérifier que le total des réductions de GES correspond aux données de l'onglet "Indicateurs".
B45: Vérifier que les deux cases de la ligne 20 sont bien remplies.
B46: Vérifier que le coût la tonne et la durée du projet sont bien indiqués pour tous les projets ayant soit un potentiel de réduction ou des réductions réelles (colonnes H et K).
B47: La méthode de calcul du coût la tonne doit respecter les indications en commentaire dans la cellule H23.
B48: Onglet Indicateurs | G48: Commentaires
B49: Vérifier la cohérence des cibles, des résultats et des résultats à comparer avec les cibles. (même unité de mesure, évolution des résultats annuels)
B50: S'il y a lieu, utiliser la colonne "Commentaires sur les résultats" afin de fournir davantage d'informations.
B51: Vérifier que les commentaires à l'intention du BECC qui ne sont pas pour diffusion sont inscrits en bleu.
B52: Vérifier qu'il y a des résultats pour tous les indicateurs. Inscrire un 0 comme résultat pour les indicateurs ne présentant pas de résultats.
B53: Si les résultats ne sont pas disponibles, vous devez inscrire un commentaire dans la colonne prévue à cet effet indiquant à quel moment ils seront disponibles.
B54: Transmettre au BECC pour approbation une annexe 4 (fiche-indicateur) si vous désirez qu'un indicateur soit ajouté. | G54: N/A
B55: Vérifier que le tableau "PRÉVISIONS DES RETOMBÉES SUR LES RÉDUCTIONS DES ÉMISSIONS DE GES" est bien rempli si votre action vise la réduction des GES.
B56: Vérifier que le tableau "ADAPTATION AUX EFFETS DES CHANGEMENTS CLIMATIQUES" est bien rempli si votre action vise l'adaptation aux changements climatiques.
B57: Onglet Commentaires | G57: Commentaires
B58: Vérifier que les commentaires de l'exercice précédent s'appliquent toujours. Retirer tous les commentaires qui ne s'appliquent plus.
B59: Inscrire en noir les commentaires nécessaires à afficher lors de la publication des fiches
B60: Onglet Évaluation | G60: Commentaires
B61: Remplir et mettre à jour la liste des livrables. Veuillez transmettre tout livrable attendu au BECC avec votre fiche de suivi.
B62: Veuillez remplir la section Évaluation de l'action. Obligatoire pour la fin du PACC.
A81: Code de couleur | B81: Onglet concerné | C81: no ligne | D81: Description de la problématique | E81: No d'erreur | G81: Commentaires
B82: Description | D82: Les informations "Description, objectif, clientèle, critères d'admissibilité, processus de suivi de l'action, résultats attendus, résultats obtenus dans la dernière année, résultats obtenus, finalité, catégorie" sont manquantes dans l'onglet Description. | E82: 18
B83: détail des projets | D83: Aucun projet n'est mentionné dans la fiche. Cette situation est acceptable seulement si l'action n'est pas encore lancée (statut non démarrée ou en élaboration). | E83: 12
B84: GES | D84: Les informations "Potentiel de réduction des GES, réduction réelle des émissions de GES" sont manquantes dans l'onglet GES. | E84: 18
B85: indicateurs | D85: Aucun indicateur n'est inscrit pour cette action. Acceptable seulement si l'action n'est pas démarrée. | E85: 20

Sheet Modalités de fin du PACC (hidden)
B2: Échéancier de la fin du Plan d'action 2013-2020 sur les changements climatiques
B4: - | C4: 2021-03-31 | E4: Fin du PACC. Vous ne pouvez plus prendre de nouveaux engagements en vertu des actions du PACC.
B5: - | C5: 2021-05-31 | E5: Échéance pour saisir dans SAGIR les engagements (lettre d'octroi suffisante) pris avant le 31 mars.
B6: - | C6: 2021-12-31 | E6: Échéance pour signer les conventions de subventions se rapportant aux engagements saisis à SAGIR.
B7: - | C7: 2022-12-31 | E7: Fin des projets réalisés à l'interne des Partenaires
B8: - | C8: 2025-12-31 | E8: Fin des projets
B9: Lorsque tous les projets liés à une action seront terminés et que tous les résultats liés à l'action seront colligés, l'action sera inscrite comme étant « terminée » et sera retirée du suivi semestriel.
B13: Modalités détaillées de la fin du PACC
B14: (Ces modalités sont annexées à l'entente administrative concernant la mise en œuvre du PACC et concordent avec l'échéancier ci-dessus)
C15: 1. Les enveloppes budgétaires 2013-2020 des actions et sous-actions (Annexe 2 de l’ENTENTE) doivent être respectées en tout temps.
C16: 2. Tous les engagements (c.-à-d. une dépense jugée admissible et autorisée) doivent être pris avant le 31 mars 2021. Après cette date, les engagements pris ne peuvent plus être bonifiés.
C17: 3. Tous les engagements pris avant le 31 mars 2021 (par exemple : lettre d’octroi de subvention signée par vos autorités, contrat, convention ou entente signés, décret ou CT approuvé) doivent être saisis dans SAGIR au plus tard le 31 mai 2021. Une nouvelle version de la « Procédure de comptabilisation des dépenses portées au débit du Fonds d’électrification et de changements climatiques par les ministères et organismes partenaires » sera transmise ultérieurement lors de la fermeture de la fin d’année financière 2020-2021 afin de tenir compte de la fin du PACC.
C18: 4. Les conventions d’aide financière qui ne pourront être signées avant le 31 mars 2021 pourront être reconnues comme engagées seulement si le Partenaire transmet une lettre d’octroi de subvention au bénéficiaire avant cette date :
D19: · La lettre d’octroi devra mentionner le montant total de la subvention avec le détail des versements estimés par année financière et devra préciser qu’elle est conditionnelle à une décision du Conseil des ministres ou du Conseil du trésor lorsqu’applicable. Enfin, la lettre devra préciser que la subvention est conditionnelle à la signature d’une convention de subvention au plus tard le 31 décembre 2021.
C20: 5. Aucun engagement ne pourra s’échelonner au-delà du 31 décembre 2025.
C21: 6. Les frais d’administration (dépenses de rémunération et de fonctionnement) nécessaires au suivi de conventions d’aide financière ou de contrats pourront être imputés au FECC jusqu’au terme des projets ou au plus tard au 31 décembre 2025.
C22: 7. Les suivis se poursuivront tant que les actions ne seront pas terminées.
C23: 8. Aucune dépense pour les projets réalisés à l’interne (projets majoritairement réalisés en régie interne par le personnel du Partenaire) ne pourra être effectuée au-delà du 31 mars 2022.

Sheet Prochain Exercice-Commentaire (hidden)
B2: =Utilitaire!E8 -> Plan d'action 2013-2020 sur les changements climatiques
B4: Commentaires | E4: =Accueil!D65 & " - " &Accueil!D53 -> MEQ - 11.5
E5: ="Action " & Accueil!D58 -> Action en cours
B6: Conseils de rédaction : | D6: Informations en date du : | F6: =Utilitaire!G6 -> 2022-03-31
B7: - Veuillez inscrire ici tout commentaire pour prochain exercice
B10: Onglet de la fiche | C10: Case | D10: Commentaire
B11: Évaluation | C11: M38 | D11: Veuillez préciser si un rapport final est prévu. | E11: Dany
